﻿Authority,URI,Payment date,Service/Directorate,Purpose of Spend,Supplier,Transaction Ref,Amount
Borough Council of Kings Lynn and West Norfolk,E07000146,07/04/2022,Housing Options Programme,Temporary Accommodation,Broadland Housing Association,21014208,"1,065.34"
Borough Council of Kings Lynn and West Norfolk,E07000146,07/04/2022,Housing Options Programme,Temporary Accommodation,Broadland Housing Association,21014210,999.44
Borough Council of Kings Lynn and West Norfolk,E07000146,07/04/2022,Housing Options Programme,Temporary Accommodation,Broadland Housing Association,21014211,"1,153.92"
Borough Council of Kings Lynn and West Norfolk,E07000146,07/04/2022,West Winch Growth Area,Professional Fees,Gerald Eve LLP,21014189,"3,287.00"
Borough Council of Kings Lynn and West Norfolk,E07000146,07/04/2022,Register of Electors,Recruitment,TMP (UK) Ltd,22007645,"1,103.08"
Borough Council of Kings Lynn and West Norfolk,E07000146,07/04/2022,Register of Electors,Recruitment,TMP (UK) Ltd,22007646,580.80
Borough Council of Kings Lynn and West Norfolk,E07000146,07/04/2022,Kings Lynn Bid,Agency,Kings Lynn BID Ltd,22007835,"95,008.00"
Borough Council of Kings Lynn and West Norfolk,E07000146,07/04/2022,ICT,Computer Hardware Maint,4Sight Communications,21013367,"8,749.85"
Borough Council of Kings Lynn and West Norfolk,E07000146,07/04/2022,ICT,Computer Hardware Maint,4Sight Communications,21013368,"10,416.47"
Borough Council of Kings Lynn and West Norfolk,E07000146,07/04/2022,Food Hygiene General,Drinking Water,Anglian Water Services Ltd,21014171,"1,008.62"
Borough Council of Kings Lynn and West Norfolk,E07000146,07/04/2022,Food Hygiene General,Drinking Water,Anglian Water Services Ltd,21014172,419.62
Borough Council of Kings Lynn and West Norfolk,E07000146,07/04/2022,Careline,Tools And Equipment,Tunstall Healthcare (UK) Ltd,21014127,"2,478.50"
Borough Council of Kings Lynn and West Norfolk,E07000146,07/04/2022,Dry Box Collection Scheme,Waste Processing Cost,Norse Environmental Services,21013516,"26,875.00"
Borough Council of Kings Lynn and West Norfolk,E07000146,07/04/2022,Air Quality,Membership & Subscription,CIEH,21014105,128.75
Borough Council of Kings Lynn and West Norfolk,E07000146,07/04/2022,Food Hygiene/H&S Sals/Sup,Membership & Subscription,CIEH,21014105,128.75
Borough Council of Kings Lynn and West Norfolk,E07000146,07/04/2022,Housing Standards - Supp,Membership & Subscription,CIEH,21014105,128.75
Borough Council of Kings Lynn and West Norfolk,E07000146,07/04/2022,Comm Safety & Nuisance,Membership & Subscription,CIEH,21014105,128.75
Borough Council of Kings Lynn and West Norfolk,E07000146,07/04/2022,Printroom,Materials,Canon (UK) Limited,21013782,"1,758.84"
Borough Council of Kings Lynn and West Norfolk,E07000146,07/04/2022,Printroom,Materials,Premier Paper Group Ltd,21014130,"1,115.15"
Borough Council of Kings Lynn and West Norfolk,E07000146,07/04/2022,Printroom,Materials,Premier Paper Group Ltd,21014130,6.95
Borough Council of Kings Lynn and West Norfolk,E07000146,07/04/2022,Kings Court Kings Lynn,Purchased For Resale,Premier Paper Group Ltd,21014199,482.00
Borough Council of Kings Lynn and West Norfolk,E07000146,07/04/2022,Kings Court Kings Lynn,Purchased For Resale,Premier Paper Group Ltd,21014199,3.98
Borough Council of Kings Lynn and West Norfolk,E07000146,07/04/2022,Internal Audit,Membership & Subscription,Tameside MBC,22007820,"1,600.00"
Borough Council of Kings Lynn and West Norfolk,E07000146,07/04/2022,Public Cleansing,Vehicle - repairs & Maint,Bucher Muncipal Ltd,21013674,972.40
Borough Council of Kings Lynn and West Norfolk,E07000146,07/04/2022,Housing Options Programme,Temporary Accommodation,The Grange Hotel,21014250,800.00
Borough Council of Kings Lynn and West Norfolk,E07000146,07/04/2022,North Lynn Managed Workshops,Repairs & Maintenance,AMR Electrical Services Ltd,21013960,"2,899.25"
Borough Council of Kings Lynn and West Norfolk,E07000146,07/04/2022,Kings Court Flat Roof,Works,AMR Electrical Services Ltd,21014149,444.10
Borough Council of Kings Lynn and West Norfolk,E07000146,07/04/2022,ICT,Computer Hardware Maint,Kingsfield Computer Product Ltd,21013471,450.00
Borough Council of Kings Lynn and West Norfolk,E07000146,07/04/2022,Cost of Collection - CTax,Professional Fees,Civica UK Ltd,21013392,"1,620.00"
Borough Council of Kings Lynn and West Norfolk,E07000146,07/04/2022,Cost of Collection - CTax,Professional Fees,Civica UK Ltd,21013393,"1,000.00"
Borough Council of Kings Lynn and West Norfolk,E07000146,07/04/2022,NEWS Depot,Repairs & Maintenance,Cooks Blinds & Shutters Ltd,21013970,980.00
Borough Council of Kings Lynn and West Norfolk,E07000146,07/04/2022,Kings Court Kings Lynn,Repairs & Maintenance,Cooks Blinds & Shutters Ltd,21013588,"1,565.00"
Borough Council of Kings Lynn and West Norfolk,E07000146,07/04/2022,Kings Court Kings Lynn,Repairs & Maintenance,Cooks Blinds & Shutters Ltd,21013588,150.00
Borough Council of Kings Lynn and West Norfolk,E07000146,07/04/2022,Resort Seafront,Professional Fees,Keep Britain Tidy,21014163,530.00
Borough Council of Kings Lynn and West Norfolk,E07000146,07/04/2022,Refuse & Recyc Mgmt,Computer Equipment,Whitespace Work Software  Ltd,21013489,"8,400.00"
Borough Council of Kings Lynn and West Norfolk,E07000146,07/04/2022,Kings Court Service Charges,Repairs & Maintenance,AMR Mechanical Services Ltd,21014150,574.44
Borough Council of Kings Lynn and West Norfolk,E07000146,07/04/2022,Parking Operations - Brgh,Repairs & Maintenance,LWG Services Limited,21014230,"1,425.00"
Borough Council of Kings Lynn and West Norfolk,E07000146,07/04/2022,Air Quality,Repairs & Maintenance,G Broughton,21013602,"1,070.00"
Borough Council of Kings Lynn and West Norfolk,E07000146,07/04/2022,ICT,Telephones,EE Limited,21013456,432.24
Borough Council of Kings Lynn and West Norfolk,E07000146,07/04/2022,Careline,Tools And Equipment,AMR Fire and Security Limited,21014080,"4,846.32"
Borough Council of Kings Lynn and West Norfolk,E07000146,07/04/2022,Kings Court Service Charges,Repairs & Maintenance,Cooler Sense Ltd,21014157,547.71
Borough Council of Kings Lynn and West Norfolk,E07000146,07/04/2022,Home Improvements Agency,Agency Staff,Seven Resourcing Ltd,21013511,"1,361.28"
Borough Council of Kings Lynn and West Norfolk,E07000146,07/04/2022,Home Improvements Agency,Agency Staff,Seven Resourcing Ltd,21013512,"1,104.08"
Borough Council of Kings Lynn and West Norfolk,E07000146,07/04/2022,Home Improvements Agency,Agency Staff,Seven Resourcing Ltd,21013736,"1,672.27"
Borough Council of Kings Lynn and West Norfolk,E07000146,07/04/2022,Home Improvements Agency,Agency Staff,Seven Resourcing Ltd,21013737,"1,127.54"
Borough Council of Kings Lynn and West Norfolk,E07000146,07/04/2022,Training Holding Account,Training,St Thomas Training Ltd,21013536,625.00
Borough Council of Kings Lynn and West Norfolk,E07000146,07/04/2022,Home Improvements Agency,Contractor Payments,Millennium Pest Control Ltd,21013643,864.00
Borough Council of Kings Lynn and West Norfolk,E07000146,07/04/2022,Corporate Policy,Small Projects,Engaging People Company,21013619,"1,925.00"
Borough Council of Kings Lynn and West Norfolk,E07000146,07/04/2022,DWP at Kings Court,Contract Security,MPD FM Ltd,21013553,"1,946.16"
Borough Council of Kings Lynn and West Norfolk,E07000146,07/04/2022,DWP at Kings Court,Contract Security,MPD FM Ltd,21013558,"6,443.37"
Borough Council of Kings Lynn and West Norfolk,E07000146,07/04/2022,Personnel Services,Membership & Subscription,Croner-I-Limited,21014158,"2,306.37"
Borough Council of Kings Lynn and West Norfolk,E07000146,07/04/2022,Crematorium Trading Account,Book Of Remembrance Costs,F G Marshall Ltd,21013328,830.90
Borough Council of Kings Lynn and West Norfolk,E07000146,07/04/2022,Home Improvements Agency,Contractor Payments,Mr Brights Ltd,21014232,708.00
Borough Council of Kings Lynn and West Norfolk,E07000146,07/04/2022,KL Innovation Centre,Contract Cleaning,Mr Brights Ltd,21014194,"1,973.16"
Borough Council of Kings Lynn and West Norfolk,E07000146,07/04/2022,St Georges Guildhall Complex,Professional Fees,Norfolk County Council,21014164,750.00
Borough Council of Kings Lynn and West Norfolk,E07000146,07/04/2022,Econ Partnership Working,Initiative Supprt Funding,Norfolk County Council,21014053,"4,174.00"
Borough Council of Kings Lynn and West Norfolk,E07000146,07/04/2022,Corporate,Stationery & Office,Adept Technology Group Plc,21013554,"1,129.42"
Borough Council of Kings Lynn and West Norfolk,E07000146,07/04/2022,ICT,Communications,Adept Technology Group Plc,21013554,"2,860.40"
Borough Council of Kings Lynn and West Norfolk,E07000146,07/04/2022,CCTV,Repairs & Maintenance,Adept Technology Group Plc,21013554,350.00
Borough Council of Kings Lynn and West Norfolk,E07000146,07/04/2022,ICT,Recoverable Fees,Adept Technology Group Plc,21013554,186.17
Borough Council of Kings Lynn and West Norfolk,E07000146,07/04/2022,ICT,Telephones,Adept Technology Group Plc,21013547,"5,852.48"
Borough Council of Kings Lynn and West Norfolk,E07000146,07/04/2022,Mintlyn Crematorium,Materials,MKM B.S. (Kings Lynn) Ltd,21013747,575.40
Borough Council of Kings Lynn and West Norfolk,E07000146,07/04/2022,Mintlyn Crematorium,Materials,MKM B.S. (Kings Lynn) Ltd,21013748,434.55
Borough Council of Kings Lynn and West Norfolk,E07000146,07/04/2022,Parking Operations - Brgh,Tools And Equipment,Amey LG Ltd,21013680,"5,278.81"
Borough Council of Kings Lynn and West Norfolk,E07000146,07/04/2022,Parish/B Coun. Elections,Stationery & Office,Civica Election Services Ltd,22007733,"1,418.06"
Borough Council of Kings Lynn and West Norfolk,E07000146,07/04/2022,Natl Assist Act Burials,Burial Fees-Nat.Ass.Act,Thornalley Funeral Services Ltd,21014202,"1,170.00"
Borough Council of Kings Lynn and West Norfolk,E07000146,07/04/2022,Natl Assist Act Burials,Burial Fees-Nat.Ass.Act,Thornalley Funeral Services Ltd,21014203,"1,170.00"
Borough Council of Kings Lynn and West Norfolk,E07000146,07/04/2022,Dry Box Collection Scheme,Contracted Services,Serco Ltd,21013542,"66,271.94"
Borough Council of Kings Lynn and West Norfolk,E07000146,07/04/2022,Domestic Refuse,Contracted Services,Serco Ltd,21013542,"66,945.15"
Borough Council of Kings Lynn and West Norfolk,E07000146,07/04/2022,Food Waste,Contracted Services,Serco Ltd,21013542,"58,519.81"
Borough Council of Kings Lynn and West Norfolk,E07000146,07/04/2022,Refuse & Recyc Mgmt,Contracted Services,Serco Ltd,21013542,"35,112.60"
Borough Council of Kings Lynn and West Norfolk,E07000146,07/04/2022,Dry Box Collection Scheme,Contracted Services,Serco Ltd,21013543,"66,271.94"
Borough Council of Kings Lynn and West Norfolk,E07000146,07/04/2022,Domestic Refuse,Contracted Services,Serco Ltd,21013543,"66,945.15"
Borough Council of Kings Lynn and West Norfolk,E07000146,07/04/2022,Food Waste,Contracted Services,Serco Ltd,21013543,"58,519.81"
Borough Council of Kings Lynn and West Norfolk,E07000146,07/04/2022,Refuse & Recyc Mgmt,Contracted Services,Serco Ltd,21013543,"35,112.60"
Borough Council of Kings Lynn and West Norfolk,E07000146,07/04/2022,EZ Dev of Spec Units,Works,R G Carter Cambridge Ltd,21013984,"361,291.75"
Borough Council of Kings Lynn and West Norfolk,E07000146,07/04/2022,Parkway - Gaywood,Works,A T Coombes Associates Ltd,21014145,560.00
Borough Council of Kings Lynn and West Norfolk,E07000146,07/04/2022,Careline,Tools And Equipment,Lifeline24 Ltd,21013905,"22,137.90"
Borough Council of Kings Lynn and West Norfolk,E07000146,07/04/2022,COMF Phase 3,Covid 19,Bauer Radio Ltd,21014146,760.50
Borough Council of Kings Lynn and West Norfolk,E07000146,07/04/2022,Air Quality,Repairs & Maintenance,Matts Monitors Ltd,21013560,"3,250.00"
Borough Council of Kings Lynn and West Norfolk,E07000146,07/04/2022,COMF Phase 3,Agency Staff,Vivid Resourcing,21013421,"2,778.19"
Borough Council of Kings Lynn and West Norfolk,E07000146,07/04/2022,Environmental Protection,Agency Staff,Vivid Resourcing,21014166,"3,542.40"
Borough Council of Kings Lynn and West Norfolk,E07000146,07/04/2022,Environmental Protection,Agency Staff,Vivid Resourcing,21014142,"1,771.20"
Borough Council of Kings Lynn and West Norfolk,E07000146,07/04/2022,St Georges Guildhall Complex,Professional Fees,Festival and Events International Ltd,21014159,"5,653.40"
Borough Council of Kings Lynn and West Norfolk,E07000146,07/04/2022,Towns Fund-Town Centre Repurposing,Professional Fees,Fathom Consultancy Solutions Ltd,21013607,"4,000.00"
Borough Council of Kings Lynn and West Norfolk,E07000146,07/04/2022,Special Events,Miscellaneous,Glyn Williams Photography,21014160,599.11
Borough Council of Kings Lynn and West Norfolk,E07000146,07/04/2022,Housing Options Programme,Homeless Prevention Fund,Hastoe Housing Association,22007815,"3,674.31"
Borough Council of Kings Lynn and West Norfolk,E07000146,07/04/2022,Parking Operations - Brgh,Repairs & Maintenance,Penty Contractors Ltd,21014213,"8,250.00"
Borough Council of Kings Lynn and West Norfolk,E07000146,07/04/2022,Parking Operations - Brgh,Repairs & Maintenance,Penty Contractors Ltd,21013982,520.00
Borough Council of Kings Lynn and West Norfolk,E07000146,07/04/2022,Neighbourhood Teams,Materials,Origin Amenity Solutions Ltd,21013548,556.00
Borough Council of Kings Lynn and West Norfolk,E07000146,07/04/2022,Grounds Northern Area,Materials,Origin Amenity Solutions Ltd,21013548,556.00
Borough Council of Kings Lynn and West Norfolk,E07000146,07/04/2022,GM Central Area,Materials,Origin Amenity Solutions Ltd,21013548,556.00
Borough Council of Kings Lynn and West Norfolk,E07000146,07/04/2022,Grounds Southern Area,Materials,Origin Amenity Solutions Ltd,21013548,556.00
Borough Council of Kings Lynn and West Norfolk,E07000146,07/04/2022,Grounds Northern Area,Materials,Origin Amenity Solutions Ltd,21013714,"1,117.00"
Borough Council of Kings Lynn and West Norfolk,E07000146,07/04/2022,Financial Services,Postages,Royal Mail Group Ltd,22007819,71.56
Borough Council of Kings Lynn and West Norfolk,E07000146,07/04/2022,Benefit Administration,Postages,Royal Mail Group Ltd,22007819,398.74
Borough Council of Kings Lynn and West Norfolk,E07000146,07/04/2022,Cost of Collection - CTax,Postages,Royal Mail Group Ltd,22007819,589.82
Borough Council of Kings Lynn and West Norfolk,E07000146,07/04/2022,Pub & Tourism int charges,Postages,Royal Mail Group Ltd,22007819,1.44
Borough Council of Kings Lynn and West Norfolk,E07000146,07/04/2022,Financial Services,Postages,Royal Mail Group Ltd,22007819,0.45
Borough Council of Kings Lynn and West Norfolk,E07000146,07/04/2022,Benefit Administration,Postages,Royal Mail Group Ltd,22007819,3.15
Borough Council of Kings Lynn and West Norfolk,E07000146,07/04/2022,Pub & Tourism int charges,Postages,Royal Mail Group Ltd,22007819,0.45
Borough Council of Kings Lynn and West Norfolk,E07000146,07/04/2022,General Property,Repairs & Maintenance,Smith Building Services Ltd,21014152,944.82
Borough Council of Kings Lynn and West Norfolk,E07000146,07/04/2022,Priory Road D Market,Repairs & Maintenance,Smith Building Services Ltd,21014153,985.00
Borough Council of Kings Lynn and West Norfolk,E07000146,11/04/2022,CCTV Breckland,Repairs & Maintenance,Clearview Window Cleaning,21014347,550.00
Borough Council of Kings Lynn and West Norfolk,E07000146,11/04/2022,CCTV,Repairs & Maintenance,Clearview Window Cleaning,21014347,550.00
Borough Council of Kings Lynn and West Norfolk,E07000146,11/04/2022,Local Land Charges,CNC Costs,CNC Buiding Control,22007944,"15,600.50"
Borough Council of Kings Lynn and West Norfolk,E07000146,11/04/2022,Training Holding Account,Training,Norse Eastern Ltd,21013742,960.00
Borough Council of Kings Lynn and West Norfolk,E07000146,11/04/2022,Dog Warden and Services,Contracted Services,Dogotel Kennels & Cattery,22007945,820.00
Borough Council of Kings Lynn and West Norfolk,E07000146,11/04/2022,Dog Warden and Services,Kennel Fees Recd - Extl,Dogotel Kennels & Cattery,22007945,-191.00
Borough Council of Kings Lynn and West Norfolk,E07000146,11/04/2022,Dog Warden and Services,Contracted Services,Dogotel Kennels & Cattery,22007946,"1,000.00"
Borough Council of Kings Lynn and West Norfolk,E07000146,11/04/2022,Dog Warden and Services,Kennel Fees,Dogotel Kennels & Cattery,22007946,88.80
Borough Council of Kings Lynn and West Norfolk,E07000146,11/04/2022,Dog Warden and Services,Kennel Fees Recd - Extl,Dogotel Kennels & Cattery,22007946,-211.50
Borough Council of Kings Lynn and West Norfolk,E07000146,11/04/2022,Printroom,Repairs & Maintenance,AMR Mechanical Services Ltd,21014301,"1,573.68"
Borough Council of Kings Lynn and West Norfolk,E07000146,11/04/2022,Public Cleansing,Repairs & Maintenance,Smart Refurbishments,21014278,250.00
Borough Council of Kings Lynn and West Norfolk,E07000146,11/04/2022,Public Cleansing,Repairs & Maintenance,Smart Refurbishments,21014278,340.00
Borough Council of Kings Lynn and West Norfolk,E07000146,11/04/2022,LILY 5,Lily Advisor Payments,Family Action,21014336,958.33
Borough Council of Kings Lynn and West Norfolk,E07000146,11/04/2022,LILY 5,Lily Advisor Payments,West Norfolk Carers Association,21014280,"1,852.50"
Borough Council of Kings Lynn and West Norfolk,E07000146,11/04/2022,Crematorium Trading Account,Memorial Plates,Anglia Sign Casting Ltd,21013788,"1,320.22"
Borough Council of Kings Lynn and West Norfolk,E07000146,11/04/2022,Kings Lynn Bid,Agency,Kings Lynn BID Ltd,22007949,"173,428.00"
Borough Council of Kings Lynn and West Norfolk,E07000146,11/04/2022,LILY 5,Lily Advisor Payments,Norfolk and Waveney Mind,21014293,"1,852.50"
Borough Council of Kings Lynn and West Norfolk,E07000146,11/04/2022,Rough Sleeper Fund,Covid 19,Excaliber Security Services Ltd,21014337,"5,107.20"
Borough Council of Kings Lynn and West Norfolk,E07000146,11/04/2022,Rough Sleeper Fund,Covid 19,Excaliber Security Services Ltd,21014338,"5,107.20"
Borough Council of Kings Lynn and West Norfolk,E07000146,11/04/2022,KL Arts Centre,Hirings Ticketed,Kings Lynn Festival Ltd,22007951,"1,006.25"
Borough Council of Kings Lynn and West Norfolk,E07000146,11/04/2022,KL Arts Centre,Hiring Charges Income,Kings Lynn Festival Ltd,22007951,-300.00
Borough Council of Kings Lynn and West Norfolk,E07000146,11/04/2022,KL Arts Centre,Commission On Box Office,Kings Lynn Festival Ltd,22007951,-60.38
Borough Council of Kings Lynn and West Norfolk,E07000146,11/04/2022,KL Arts Centre,Credit Card Recharge,Kings Lynn Festival Ltd,22007951,-22.95
Borough Council of Kings Lynn and West Norfolk,E07000146,11/04/2022,KL Arts Centre,Equipment Hire,Kings Lynn Festival Ltd,22007951,-77.00
Borough Council of Kings Lynn and West Norfolk,E07000146,11/04/2022,Grounds Northern Area,Vehicle - repairs & Maint,Lawn Boy (Farm Services),21014322,"2,858.17"
Borough Council of Kings Lynn and West Norfolk,E07000146,11/04/2022,Reopening High Streets Safely Fund,Materials,Nisbets,21014294,"1,069.90"
Borough Council of Kings Lynn and West Norfolk,E07000146,11/04/2022,Local Land Charges,Agency,Norfolk County Council,22007953,"5,229.84"
Borough Council of Kings Lynn and West Norfolk,E07000146,11/04/2022,Local Land Charges,Agency,Norfolk County Council,22007954,"4,515.83"
Borough Council of Kings Lynn and West Norfolk,E07000146,11/04/2022,Local Land Charges,Agency,Norfolk County Council,22007955,"4,009.17"
Borough Council of Kings Lynn and West Norfolk,E07000146,11/04/2022,Local Land Charges,Agency,Norfolk County Council,22007956,"5,865.30"
Borough Council of Kings Lynn and West Norfolk,E07000146,11/04/2022,Internal Audit,Contracted Services,South Norfolk Council,21014287,"1,700.00"
Borough Council of Kings Lynn and West Norfolk,E07000146,11/04/2022,Corporate Insurance,Insurance Premium,Zurich Insurance Plc,21014279,"18,953.93"
Borough Council of Kings Lynn and West Norfolk,E07000146,11/04/2022,Community Projects CRS,Service Level Agreements,North End Trust,21014292,"2,545.00"
Borough Council of Kings Lynn and West Norfolk,E07000146,11/04/2022,Rough Sleeper Fund,Offender Incentive Funding (expenditure),Shelter,21014288,"10,000.00"
Borough Council of Kings Lynn and West Norfolk,E07000146,11/04/2022,Open Cemeteries,Tools And Equipment,Teleshore UK Ltd t/a Gemini CCS Ltd,21013700,840.00
Borough Council of Kings Lynn and West Norfolk,E07000146,11/04/2022,Open Cemeteries,Miscellaneous,Teleshore UK Ltd t/a Gemini CCS Ltd,21013700,131.00
Borough Council of Kings Lynn and West Norfolk,E07000146,11/04/2022,Open Cemeteries,Tools And Equipment,Teleshore UK Ltd t/a Gemini CCS Ltd,21013701,"4,177.60"
Borough Council of Kings Lynn and West Norfolk,E07000146,11/04/2022,Printroom,Materials,Canon (UK) Limited,21013781,420.14
Borough Council of Kings Lynn and West Norfolk,E07000146,11/04/2022,Improving Attainment,Small Projects,Ashwicken C.E.V.A. First School,22007939,900.00
Borough Council of Kings Lynn and West Norfolk,E07000146,11/04/2022,Printroom,Materials,Antalis Ltd,21013668,760.90
Borough Council of Kings Lynn and West Norfolk,E07000146,11/04/2022,Corporate,Miscellaneous,PHF Training Ltd,21014236,"1,000.00"
Borough Council of Kings Lynn and West Norfolk,E07000146,11/04/2022,Mintlyn Crematorium,Repairs & Maintenance,Facultatieve Technologies Ltd,21013682,"3,822.18"
Borough Council of Kings Lynn and West Norfolk,E07000146,11/04/2022,Sports Grounds North,Materials,Advance Grass Solutions,21013834,463.50
Borough Council of Kings Lynn and West Norfolk,E07000146,11/04/2022,COMF Phase 3,Agency Staff,Danielle Barrett,21014346,"1,130.00"
Borough Council of Kings Lynn and West Norfolk,E07000146,11/04/2022,Salters Road,Works,Saunders Boston Limited,21014257,"1,500.00"
Borough Council of Kings Lynn and West Norfolk,E07000146,11/04/2022,Housing Options Programme,Homeless Prevention Fund,RF Green,22007958,"1,110.00"
Borough Council of Kings Lynn and West Norfolk,E07000146,11/04/2022,LILY 5,Lily Advisor Payments,West Norfolk Befriending,21014281,"1,000.00"
Borough Council of Kings Lynn and West Norfolk,E07000146,11/04/2022,Community Projects CS,Service Level Agreements,West Norfolk Befriending,21014282,"1,050.00"
Borough Council of Kings Lynn and West Norfolk,E07000146,11/04/2022,Rough Sleeper Fund,Covid 19,Freebridge Community Housing,21014335,566.67
Borough Council of Kings Lynn and West Norfolk,E07000146,14/04/2022,Public conveniences,Materials,Robert Fox,21014476,"1,115.00"
Borough Council of Kings Lynn and West Norfolk,E07000146,14/04/2022,Public conveniences,Materials,Robert Fox,21014476,285.00
Borough Council of Kings Lynn and West Norfolk,E07000146,14/04/2022,Printroom,Konica Usage,Konica Minolta Business Solutions,22007980,"1,906.72"
Borough Council of Kings Lynn and West Norfolk,E07000146,14/04/2022,Parking Operations - Brgh,Tools And Equipment,Mobius Networks Ltd,21014389,633.30
Borough Council of Kings Lynn and West Norfolk,E07000146,14/04/2022,Street Lighting,Repairs & Maintenance,Westcotec Ltd,21013807,423.51
Borough Council of Kings Lynn and West Norfolk,E07000146,14/04/2022,Domestic Refuse,Dayworks and Addnl Works,MGB Plastics,21013947,675.00
Borough Council of Kings Lynn and West Norfolk,E07000146,14/04/2022,Regis Place,Repairs & Maintenance,AMR Fire and Security Limited,21014270,643.51
Borough Council of Kings Lynn and West Norfolk,E07000146,14/04/2022,VAT,VAT Input - VAT Only Purchases,Newlyn PLC,22007981,"2,800.28"
Borough Council of Kings Lynn and West Norfolk,E07000146,14/04/2022,VAT,VAT Input - VAT Only Purchases,Newlyn PLC,22007983,742.47
Borough Council of Kings Lynn and West Norfolk,E07000146,14/04/2022,Housing standards,External Legal fees,Fenland District Council,21014452,"1,186.75"
Borough Council of Kings Lynn and West Norfolk,E07000146,14/04/2022,Grounds Northern Area,Vehicle - repairs & Maint,Lawn Boy (Farm Services),21014395,498.46
Borough Council of Kings Lynn and West Norfolk,E07000146,14/04/2022,NEWS Depot,Contract Cleaning,Marathon Services Ltd,21014392,"1,634.85"
Borough Council of Kings Lynn and West Norfolk,E07000146,14/04/2022,Parking Operations - Brgh,Repairs & Maintenance,Penty Contractors Ltd,21014474,985.00
Borough Council of Kings Lynn and West Norfolk,E07000146,14/04/2022,Public Cleansing,Repairs & Maintenance,Pick & Banham,21014475,477.12
Borough Council of Kings Lynn and West Norfolk,E07000146,14/04/2022,Postage Services K Court,Stationery & Office,Postage By Phone,22007985,"6,643.00"
Borough Council of Kings Lynn and West Norfolk,E07000146,14/04/2022,Sports Grounds Central,Materials,Huws Gray Ridgeons Ltd,21014380,"1,718.92"
Borough Council of Kings Lynn and West Norfolk,E07000146,14/04/2022,NORA Phase 4,Professional Fees,G C Baxter & Associates Ltd,21014413,640.00
Borough Council of Kings Lynn and West Norfolk,E07000146,14/04/2022,Salters Road,Professional Fees,G C Baxter & Associates Ltd,21014413,640.00
Borough Council of Kings Lynn and West Norfolk,E07000146,14/04/2022,Lynnsport General Account,Repairs & Maintenance,Kew Grasscare,21014325,580.00
Borough Council of Kings Lynn and West Norfolk,E07000146,14/04/2022,NNDC Carpark Operation,Vehicle - repairs & Maint,EMG Anglia Ltd,21014487,432.92
Borough Council of Kings Lynn and West Norfolk,E07000146,14/04/2022,Grounds Northern Area,Vehicle - repairs & Maint,Ernest Doe & Sons Ltd,21014418,"1,078.32"
Borough Council of Kings Lynn and West Norfolk,E07000146,14/04/2022,Grounds Northern Area,Vehicle - repairs & Maint,Ernest Doe & Sons Ltd,21014419,779.03
Borough Council of Kings Lynn and West Norfolk,E07000146,14/04/2022,ICT,MPhone Usage & Top-up,TelefonicaO2UK Ltd,22008039,"1,007.24"
Borough Council of Kings Lynn and West Norfolk,E07000146,14/04/2022,Public conveniences,Sewerage/Cesspool Empty,BACO-Compak (Norfolk) Ltd,21014455,"1,545.00"
Borough Council of Kings Lynn and West Norfolk,E07000146,14/04/2022,Public conveniences,Sewerage/Cesspool Empty,BACO-Compak (Norfolk) Ltd,21014456,840.00
Borough Council of Kings Lynn and West Norfolk,E07000146,14/04/2022,Fairstead Community  Centre,Repairs & Maintenance,Premcheck Ltd,21014437,430.00
Borough Council of Kings Lynn and West Norfolk,E07000146,14/04/2022,Grounds Southern Area,Fuel,UK Fuels Ltd,22007994,31.83
Borough Council of Kings Lynn and West Norfolk,E07000146,14/04/2022,Grounds Southern Area,Fuel,UK Fuels Ltd,22007994,8.75
Borough Council of Kings Lynn and West Norfolk,E07000146,14/04/2022,Grounds Southern Area,Fuel,UK Fuels Ltd,22007994,85.47
Borough Council of Kings Lynn and West Norfolk,E07000146,14/04/2022,Public Cleansing,Fuel,UK Fuels Ltd,22007994,465.18
Borough Council of Kings Lynn and West Norfolk,E07000146,14/04/2022,Grounds Southern Area,Fuel,UK Fuels Ltd,22007994,122.33
Borough Council of Kings Lynn and West Norfolk,E07000146,14/04/2022,ICT,Computer Software Maint,Gladstone MRM Ltd,21014411,"1,451.68"
Borough Council of Kings Lynn and West Norfolk,E07000146,14/04/2022,Public Cleansing,Cleaning Material & Equip,Graffiti Removal Ltd,21013817,"1,346.55"
Borough Council of Kings Lynn and West Norfolk,E07000146,14/04/2022,Careline,Vehicle - repairs & Maint,Trakm8 Limited,22007993,51.00
Borough Council of Kings Lynn and West Norfolk,E07000146,14/04/2022,Neighbourhood Teams,Vehicle - repairs & Maint,Trakm8 Limited,22007993,51.00
Borough Council of Kings Lynn and West Norfolk,E07000146,14/04/2022,Public Cleansing,Vehicle - repairs & Maint,Trakm8 Limited,22007993,51.00
Borough Council of Kings Lynn and West Norfolk,E07000146,14/04/2022,Domestic Refuse,Vehicle - repairs & Maint,Trakm8 Limited,22007993,51.00
Borough Council of Kings Lynn and West Norfolk,E07000146,14/04/2022,Neighbourhood Teams,Vehicle - repairs & Maint,Trakm8 Limited,22007993,51.00
Borough Council of Kings Lynn and West Norfolk,E07000146,14/04/2022,GM Central Area,Vehicle - repairs & Maint,Trakm8 Limited,22007993,51.00
Borough Council of Kings Lynn and West Norfolk,E07000146,14/04/2022,Public Cleansing,Vehicle - repairs & Maint,Trakm8 Limited,22007993,51.00
Borough Council of Kings Lynn and West Norfolk,E07000146,14/04/2022,Tech/Officers/Repairs,Vehicle - repairs & Maint,Trakm8 Limited,22007993,9.99
Borough Council of Kings Lynn and West Norfolk,E07000146,14/04/2022,Tech/Officers/Repairs,Vehicle - repairs & Maint,Trakm8 Limited,22007993,9.99
Borough Council of Kings Lynn and West Norfolk,E07000146,14/04/2022,Grounds Northern Area,Vehicle - repairs & Maint,Trakm8 Limited,22007993,9.99
Borough Council of Kings Lynn and West Norfolk,E07000146,14/04/2022,Tech/Officers/Repairs,Vehicle - repairs & Maint,Trakm8 Limited,22007993,51.00
Borough Council of Kings Lynn and West Norfolk,E07000146,14/04/2022,Careline,Vehicle - repairs & Maint,Trakm8 Limited,22007993,51.00
Borough Council of Kings Lynn and West Norfolk,E07000146,14/04/2022,Home Improvements Agency,Agency Staff,Seven Resourcing Ltd,21014061,"1,577.97"
Borough Council of Kings Lynn and West Norfolk,E07000146,14/04/2022,Home Improvements Agency,Agency Staff,Seven Resourcing Ltd,21014062,"1,077.40"
Borough Council of Kings Lynn and West Norfolk,E07000146,14/04/2022,Parking Operations - Brgh,Tools And Equipment,Parking and Secure Documents,21013822,477.40
Borough Council of Kings Lynn and West Norfolk,E07000146,14/04/2022,Property Services,Recruitment,TMP (UK) Ltd,22007765,"4,950.00"
Borough Council of Kings Lynn and West Norfolk,E07000146,14/04/2022,KL Arts Centre,Hirings Ticketed,Theatre Train Kings Lynn,22007992,"3,000.00"
Borough Council of Kings Lynn and West Norfolk,E07000146,14/04/2022,KL Arts Centre,Hiring Charges Income,Theatre Train Kings Lynn,22007992,-421.67
Borough Council of Kings Lynn and West Norfolk,E07000146,14/04/2022,KL Arts Centre,Commission On Box Office,Theatre Train Kings Lynn,22007992,-180.00
Borough Council of Kings Lynn and West Norfolk,E07000146,14/04/2022,KL Arts Centre,PRS Recharge,Theatre Train Kings Lynn,22007992,-40.58
Borough Council of Kings Lynn and West Norfolk,E07000146,14/04/2022,KL Arts Centre,Credit Card Recharge,Theatre Train Kings Lynn,22007992,-104.40
Borough Council of Kings Lynn and West Norfolk,E07000146,14/04/2022,KL Arts Centre,Equipment Hire,Theatre Train Kings Lynn,22007992,-187.00
Borough Council of Kings Lynn and West Norfolk,E07000146,14/04/2022,Jubilee 2022,Professional Fees,Boogie Monsters,22007967,"2,375.00"
Borough Council of Kings Lynn and West Norfolk,E07000146,14/04/2022,Mintlyn Crematorium,Tools And Equipment,Teleshore UK Ltd t/a Gemini CCS Ltd,21013729,804.50
Borough Council of Kings Lynn and West Norfolk,E07000146,14/04/2022,Air Quality,Repairs & Maintenance,Turnkey Instruments Ltd,21013722,"3,280.48"
Borough Council of Kings Lynn and West Norfolk,E07000146,14/04/2022,Corporate,Bank Charges,Allpay,22008043,528.52
Borough Council of Kings Lynn and West Norfolk,E07000146,14/04/2022,Kings Court Kings Lynn,Confectionery - Supplies,Propel Finance Plc,22008053,"1,206.70"
Borough Council of Kings Lynn and West Norfolk,E07000146,14/04/2022,Waveney Road,Other,PSG,22008055,607.58
Borough Council of Kings Lynn and West Norfolk,E07000146,14/04/2022,Waveney Road,Other,PSG,22008055,28.00
Borough Council of Kings Lynn and West Norfolk,E07000146,14/04/2022,KL Innovation Centre,Telephones,Spitfire Network Services Ltd,22008056,912.45
Borough Council of Kings Lynn and West Norfolk,E07000146,14/04/2022,Balance Sheet,Rail Warrants Suspense,RSP Rail Travel,22008057,509.00
Borough Council of Kings Lynn and West Norfolk,E07000146,14/04/2022,ICT,MPhone Usage & Top-up,TelefonicaO2UK Ltd,22008058,"1,259.75"
Borough Council of Kings Lynn and West Norfolk,E07000146,14/04/2022,ICT,MPhone Usage & Top-up,TelefonicaO2UK Ltd,22008059,"1,272.25"
Borough Council of Kings Lynn and West Norfolk,E07000146,14/04/2022,Corporate,Bank Charges,Worldpay Ltd,22008060,"7,470.23"
Borough Council of Kings Lynn and West Norfolk,E07000146,14/04/2022,Corporate,Bank Charges,Worldpay Ltd,22008060,329.42
Borough Council of Kings Lynn and West Norfolk,E07000146,14/04/2022,Utility Holding,Gas,Total Gas & Power Ltd,22008061,"42,683.03"
Borough Council of Kings Lynn and West Norfolk,E07000146,14/04/2022,ICT,Computer Software Maint,Capita Business Services Ltd,22008050,509.53
Borough Council of Kings Lynn and West Norfolk,E07000146,14/04/2022,Kings Court Kings Lynn,Confectionery - Supplies,Propel Finance Plc,22008040,"1,206.70"
Borough Council of Kings Lynn and West Norfolk,E07000146,14/04/2022,Mintlyn Crematorium,Vending Machines,Propel Finance Plc,22008041,436.50
Borough Council of Kings Lynn and West Norfolk,E07000146,14/04/2022,Utility Holding,Electricity Bulk Billing,EDF Energy Ltd,22008051,"73,731.60"
Borough Council of Kings Lynn and West Norfolk,E07000146,20/04/2022,Financial Services,Computer Equipment,Dell Corporation Ltd,21014483,544.31
Borough Council of Kings Lynn and West Norfolk,E07000146,20/04/2022,CCTV,Repairs & Maintenance,E Akers,21014467,700.00
Borough Council of Kings Lynn and West Norfolk,E07000146,20/04/2022,CCTV,Repairs & Maintenance,E Akers,21014467,91.46
Borough Council of Kings Lynn and West Norfolk,E07000146,20/04/2022,Refuse & Recyc Mgmt,Miscellaneous,ESPO,21014343,"1,456.10"
Borough Council of Kings Lynn and West Norfolk,E07000146,20/04/2022,NNDC Penalty Notice,Agency,North Norfolk District Council,21014522,"7,479.31"
Borough Council of Kings Lynn and West Norfolk,E07000146,20/04/2022,NNDC Penalty Notice,Agency,North Norfolk District Council,21014523,"7,950.47"
Borough Council of Kings Lynn and West Norfolk,E07000146,20/04/2022,NNDC Penalty Notice,Agency,North Norfolk District Council,21014524,"10,051.64"
Borough Council of Kings Lynn and West Norfolk,E07000146,20/04/2022,NNDC Penalty Notice,Agency,North Norfolk District Council,21014525,"10,052.93"
Borough Council of Kings Lynn and West Norfolk,E07000146,20/04/2022,NNDC Penalty Notice,Agency,North Norfolk District Council,21014526,"9,821.84"
Borough Council of Kings Lynn and West Norfolk,E07000146,20/04/2022,Planning Control,Professional Fees,North Norfolk District Council,21014528,823.46
Borough Council of Kings Lynn and West Norfolk,E07000146,20/04/2022,Financial Services,Postages,Royal Mail Group Ltd,22008004,78.84
Borough Council of Kings Lynn and West Norfolk,E07000146,20/04/2022,Benefit Administration,Postages,Royal Mail Group Ltd,22008004,428.52
Borough Council of Kings Lynn and West Norfolk,E07000146,20/04/2022,Cost of Collection - CTax,Postages,Royal Mail Group Ltd,22008004,745.41
Borough Council of Kings Lynn and West Norfolk,E07000146,20/04/2022,Kings Lynn Bid,Postages,Royal Mail Group Ltd,22008004,36.48
Borough Council of Kings Lynn and West Norfolk,E07000146,20/04/2022,Benefit Administration,Postages,Royal Mail Group Ltd,22008004,4.95
Borough Council of Kings Lynn and West Norfolk,E07000146,20/04/2022,Cost of Collection - CTax,Postages,Royal Mail Group Ltd,22008004,2.32
Borough Council of Kings Lynn and West Norfolk,E07000146,20/04/2022,Pub & Tourism int charges,Postages,Royal Mail Group Ltd,22008004,3.60
Borough Council of Kings Lynn and West Norfolk,E07000146,20/04/2022,Reopening High Streets Safely Fund,Marketing / Tourism,Wallgate Ltd,21013954,"4,622.40"
Borough Council of Kings Lynn and West Norfolk,E07000146,20/04/2022,At Homes,Hospitality,West Norfolk Flying Chef,21014534,"1,231.00"
Borough Council of Kings Lynn and West Norfolk,E07000146,20/04/2022,Parking Operations - Brgh,Repairs & Maintenance,Able Engineering Ltd,21014496,"1,100.00"
Borough Council of Kings Lynn and West Norfolk,E07000146,20/04/2022,Public Cleansing,Cleaning Material & Equip,V & J Knitwear Ltd,21014533,599.51
Borough Council of Kings Lynn and West Norfolk,E07000146,20/04/2022,Civic Function Expenses,Bellringers/Flowers,St Margarets PCC,22008005,"1,100.00"
Borough Council of Kings Lynn and West Norfolk,E07000146,20/04/2022,Kings Court Service Charges,Repairs & Maintenance,J Redpath Buchanan & Co Ltd,21013829,100.00
Borough Council of Kings Lynn and West Norfolk,E07000146,20/04/2022,General Properties Investment,Repairs & Maintenance,J Redpath Buchanan & Co Ltd,21013829,100.00
Borough Council of Kings Lynn and West Norfolk,E07000146,20/04/2022,Greyfriars Tower,Repairs & Maintenance,J Redpath Buchanan & Co Ltd,21013829,200.00
Borough Council of Kings Lynn and West Norfolk,E07000146,20/04/2022,Red Mount Chapel,Repairs & Maintenance,J Redpath Buchanan & Co Ltd,21013829,200.00
Borough Council of Kings Lynn and West Norfolk,E07000146,20/04/2022,KL Innovation Centre,Repairs & Maintenance,J Redpath Buchanan & Co Ltd,21013829,350.00
Borough Council of Kings Lynn and West Norfolk,E07000146,20/04/2022,Parking Operations - Brgh,Repairs & Maintenance,J Redpath Buchanan & Co Ltd,21013829,300.00
Borough Council of Kings Lynn and West Norfolk,E07000146,20/04/2022,Custom House & Tics,Repairs & Maintenance,J Redpath Buchanan & Co Ltd,21013829,100.00
Borough Council of Kings Lynn and West Norfolk,E07000146,20/04/2022,Training Holding Account,Training,Norse Eastern Ltd,21013950,"2,435.10"
Borough Council of Kings Lynn and West Norfolk,E07000146,20/04/2022,Towns Fund,Professional Fees,New Anglia Local Enterprise Ptn Ltd,21014521,"4,707.00"
Borough Council of Kings Lynn and West Norfolk,E07000146,20/04/2022,General Property,Advertising & Marketing,Rightmove Group Ltd,21013952,720.00
Borough Council of Kings Lynn and West Norfolk,E07000146,20/04/2022,NORA Phase 4,Works,WSP UK Ltd,21014206,"1,200.00"
Borough Council of Kings Lynn and West Norfolk,E07000146,20/04/2022,Development Control,Recruitment,TMP (UK) Ltd,22007764,531.08
Borough Council of Kings Lynn and West Norfolk,E07000146,20/04/2022,CIC Main,Recruitment,TMP (UK) Ltd,22007764,180.00
Borough Council of Kings Lynn and West Norfolk,E07000146,20/04/2022,Rough Sleeper Fund,Covid 19,Excaliber Security Services Ltd,21014512,"5,107.20"
Borough Council of Kings Lynn and West Norfolk,E07000146,20/04/2022,Dry Box Collection Scheme,Contracted Services,Serco Ltd,21014133,"66,271.94"
Borough Council of Kings Lynn and West Norfolk,E07000146,20/04/2022,Domestic Refuse,Contracted Services,Serco Ltd,21014133,"66,945.15"
Borough Council of Kings Lynn and West Norfolk,E07000146,20/04/2022,Food Waste,Contracted Services,Serco Ltd,21014133,"58,519.81"
Borough Council of Kings Lynn and West Norfolk,E07000146,20/04/2022,Refuse & Recyc Mgmt,Contracted Services,Serco Ltd,21014133,"35,112.60"
Borough Council of Kings Lynn and West Norfolk,E07000146,20/04/2022,NEWS Depot,Vehicle - repairs & Maint,Thompson Forktruck Services Ltd,21014507,"4,335.40"
Borough Council of Kings Lynn and West Norfolk,E07000146,20/04/2022,Jubilee 2022,Promotional Activities,House of Logos Ltd,21013935,"26,750.00"
Borough Council of Kings Lynn and West Norfolk,E07000146,20/04/2022,Housing Options Programme,Homeless Prevention Fund,B Rowland,22007998,"1,400.00"
Borough Council of Kings Lynn and West Norfolk,E07000146,20/04/2022,Parking Operations - Brgh,Stationery & Office,Bemrose Booth Paragon Ltd,21013951,"3,543.00"
Borough Council of Kings Lynn and West Norfolk,E07000146,20/04/2022,Licensing,CRB Forms - Expenditure,Disclosure & Barring Service,22008033,240.00
Borough Council of Kings Lynn and West Norfolk,E07000146,20/04/2022,Parking Operations - Brgh,Personnel DBS Checks,Disclosure & Barring Service,22008033,200.00
Borough Council of Kings Lynn and West Norfolk,E07000146,20/04/2022,Cafe in the Park,Personnel DBS Checks,Disclosure & Barring Service,22008033,40.00
Borough Council of Kings Lynn and West Norfolk,E07000146,20/04/2022,Resort Seafront,Personnel DBS Checks,Disclosure & Barring Service,22008033,160.00
Borough Council of Kings Lynn and West Norfolk,E07000146,20/04/2022,Housing Options Programme,Personnel DBS Checks,Disclosure & Barring Service,22008033,80.00
Borough Council of Kings Lynn and West Norfolk,E07000146,20/04/2022,Personnel Services,Personnel DBS Checks,Disclosure & Barring Service,22008033,320.00
Borough Council of Kings Lynn and West Norfolk,E07000146,20/04/2022,Public Cleansing,Personnel DBS Checks,Disclosure & Barring Service,22008033,120.00
Borough Council of Kings Lynn and West Norfolk,E07000146,21/04/2022,Comm Infrastructure Levy,Small Projects,Hunstanton Town Council,22008064,"4,000.00"
Borough Council of Kings Lynn and West Norfolk,E07000146,21/04/2022,Rough Sleeper Initiative Y3,Miscellaneous,The Purfleet Trust,21014567,605.00
Borough Council of Kings Lynn and West Norfolk,E07000146,21/04/2022,Housing Options Programme,Homeless Prevention Fund,The Purfleet Trust,21014568,"1,640.00"
Borough Council of Kings Lynn and West Norfolk,E07000146,21/04/2022,Custom House & Tics,Repairs & Maintenance,CTS Security Ltd,21014553,420.00
Borough Council of Kings Lynn and West Norfolk,E07000146,21/04/2022,KL Innovation Centre,Repairs & Maintenance,M English Security Limited,21014041,600.00
Borough Council of Kings Lynn and West Norfolk,E07000146,21/04/2022,Heacham Depot,Tools And Equipment,TMA Bark Supplies Ltd,21014067,517.50
Borough Council of Kings Lynn and West Norfolk,E07000146,21/04/2022,General Property,Covid 19,AMR Electrical Services Ltd,21014148,850.35
Borough Council of Kings Lynn and West Norfolk,E07000146,21/04/2022,Recycling Composting,Waste Processing Cost,Greenworld Sales Ltd t/a Greenworld,21014558,"23,156.48"
Borough Council of Kings Lynn and West Norfolk,E07000146,21/04/2022,The Walks,Repairs & Maintenance,Westcotec Ltd,22007774,"3,432.00"
Borough Council of Kings Lynn and West Norfolk,E07000146,21/04/2022,Parking Operations - Brgh,Repairs & Maintenance,Swarco Traffic Ltd,21014064,"1,731.75"
Borough Council of Kings Lynn and West Norfolk,E07000146,21/04/2022,Home Improvements Agency,Agency Staff,Seven Resourcing Ltd,21014200,"1,647.20"
Borough Council of Kings Lynn and West Norfolk,E07000146,21/04/2022,Home Improvements Agency,Agency Staff,Seven Resourcing Ltd,21014201,"1,109.14"
Borough Council of Kings Lynn and West Norfolk,E07000146,21/04/2022,NORA Phase 4,Professional Fees,Gateley Plc,21014412,"1,858.00"
Borough Council of Kings Lynn and West Norfolk,E07000146,21/04/2022,Housing standards,Recruitment,TMP (UK) Ltd,22007809,"1,438.16"
Borough Council of Kings Lynn and West Norfolk,E07000146,21/04/2022,Housing standards,Recruitment,TMP (UK) Ltd,22007810,297.90
Borough Council of Kings Lynn and West Norfolk,E07000146,21/04/2022,Public Cleansing,Recruitment,TMP (UK) Ltd,22007810,297.90
Borough Council of Kings Lynn and West Norfolk,E07000146,21/04/2022,Housing Options Programme,Homeless Prevention Fund,A1 Removals Ltd,22008062,540.00
Borough Council of Kings Lynn and West Norfolk,E07000146,21/04/2022,Sail the Wash,Consultants Fees,PD Harvey & Co,21013932,"2,640.00"
Borough Council of Kings Lynn and West Norfolk,E07000146,21/04/2022,CCTV,Rental CCTV - BT,BT Redcare,21014538,"1,200.00"
Borough Council of Kings Lynn and West Norfolk,E07000146,21/04/2022,Planning Control,Professional Fees,Alder King LLP,21013872,"2,250.00"
Borough Council of Kings Lynn and West Norfolk,E07000146,21/04/2022,Property Services,Professional Fees,Lambert Smith Hampton Group Ltd,21014040,"2,000.00"
Borough Council of Kings Lynn and West Norfolk,E07000146,21/04/2022,Resort Seafront,Tools And Equipment,Industrial Water Jetting Systems Ltd,21014217,850.00
Borough Council of Kings Lynn and West Norfolk,E07000146,21/04/2022,Kings Lynn Mart,Professional Fees,Discreet Security Limited,21014277,"7,608.00"
Borough Council of Kings Lynn and West Norfolk,E07000146,21/04/2022,KLIC2,Professional Fees,SQW Limited,21014132,"31,429.60"
Borough Council of Kings Lynn and West Norfolk,E07000146,21/04/2022,Training Holding Account,Training,EQV (UK) Ltd,21014555,"4,285.00"
Borough Council of Kings Lynn and West Norfolk,E07000146,21/04/2022,Comm Infrastructure Levy,Small Projects,Ouse Amateur Sailing Club,22008066,"25,461.60"
Borough Council of Kings Lynn and West Norfolk,E07000146,21/04/2022,Discover KL Distribution,Discover KL Distribution,Best 4 Promotions Norfolk,21014457,"3,600.00"
Borough Council of Kings Lynn and West Norfolk,E07000146,21/04/2022,Financial Services,Agency Staff,Hays Specialist Recruitment,21014559,"3,040.25"
Borough Council of Kings Lynn and West Norfolk,E07000146,25/04/2022,ICT,Telephones,British Telecommunications PLC,21014614,504.84
Borough Council of Kings Lynn and West Norfolk,E07000146,25/04/2022,ICT,Broadband Charge,British Telecommunications PLC,21014616,"1,122.18"
Borough Council of Kings Lynn and West Norfolk,E07000146,25/04/2022,Cashless Pk JI (GY Carparks),Agency,Great Yarmouth Borough Council,22008071,"18,387.40"
Borough Council of Kings Lynn and West Norfolk,E07000146,25/04/2022,Cashless Pk JE (NN Carparks),Agency,North Norfolk District Council,22008075,"22,659.90"
Borough Council of Kings Lynn and West Norfolk,E07000146,25/04/2022,Planning Control,Professional Fees,Sharpe Pritchard,21014582,700.00
Borough Council of Kings Lynn and West Norfolk,E07000146,25/04/2022,Major Housing Management,Professional Fees,G C Baxter & Associates Ltd,21014597,640.00
Borough Council of Kings Lynn and West Norfolk,E07000146,25/04/2022,Community Projects CS,Service Level Agreements,Shelter,21014581,"15,121.00"
Borough Council of Kings Lynn and West Norfolk,E07000146,25/04/2022,Postage Services K Court,Postages,Pitney Bowes Purchase Power Pre Pay,22008076,960.13
Borough Council of Kings Lynn and West Norfolk,E07000146,25/04/2022,Postage Services K Court,Postages,Pitney Bowes Purchase Power Pre Pay,22008076,"5,052.13"
Borough Council of Kings Lynn and West Norfolk,E07000146,25/04/2022,NNDC Carpark Operation,Broadband Charge,Claranet Ltd,21014608,188.36
Borough Council of Kings Lynn and West Norfolk,E07000146,25/04/2022,ICT,Broadband Charge,Claranet Ltd,21014608,48.32
Borough Council of Kings Lynn and West Norfolk,E07000146,25/04/2022,South Lynn Community Centre,Broadband Charge,Claranet Ltd,21014608,48.32
Borough Council of Kings Lynn and West Norfolk,E07000146,25/04/2022,Benefit Administration,Broadband Charge,Claranet Ltd,21014608,288.85
Borough Council of Kings Lynn and West Norfolk,E07000146,25/04/2022,ICT,Communications,Claranet Ltd,21014608,"4,674.90"
Borough Council of Kings Lynn and West Norfolk,E07000146,25/04/2022,Radio Phones,Communications,Claranet Ltd,21014608,67.76
Borough Council of Kings Lynn and West Norfolk,E07000146,25/04/2022,ICT,Computer Software Maint,Idox Software Ltd,21014192,"72,255.13"
Borough Council of Kings Lynn and West Norfolk,E07000146,25/04/2022,Corporate,Membership & Subscription,East of England LGA,21014621,"4,714.29"
Borough Council of Kings Lynn and West Norfolk,E07000146,25/04/2022,Financial Services,Agency Staff,Hays Specialist Recruitment,21014560,"1,824.15"
Borough Council of Kings Lynn and West Norfolk,E07000146,25/04/2022,Financial Services,Agency Staff,Hays Specialist Recruitment,21014596,"2,432.20"
Borough Council of Kings Lynn and West Norfolk,E07000146,25/04/2022,St James Plant,Equipment/Materials,Sterling Hydrotech Ltd,21014165,"3,548.00"
Borough Council of Kings Lynn and West Norfolk,E07000146,25/04/2022,Kings Court Flat Roof,Works,Proctor UK Ltd,21014550,"22,425.52"
Borough Council of Kings Lynn and West Norfolk,E07000146,25/04/2022,Refuse & Recyc Mgmt,Advertising & Marketing,Your Local Paper Ltd,21014090,900.00
Borough Council of Kings Lynn and West Norfolk,E07000146,25/04/2022,Comm Infrastructure Levy,Advertising & Marketing,Iliffe Media Publishing Ltd,21014446,544.00
Borough Council of Kings Lynn and West Norfolk,E07000146,25/04/2022,Personnel Welfare,Pre- Employment Medical,Healthwork Group Ltd,21014167,640.00
Borough Council of Kings Lynn and West Norfolk,E07000146,25/04/2022,KL Innovation Centre,Repairs & Maintenance,Lucid Systems Ltd,21014128,430.50
Borough Council of Kings Lynn and West Norfolk,E07000146,25/04/2022,Printing&Copying-Floor Copiers,Other Machine Lease,Capita Business Services Ltd,21014539,"2,005.75"
Borough Council of Kings Lynn and West Norfolk,E07000146,25/04/2022,Head of Legal Services,External Legal fees,Browne Jacobson LLP,22008069,"3,000.00"
Borough Council of Kings Lynn and West Norfolk,E07000146,25/04/2022,Housing Options Programme,Homeless Prevention Fund,Andrew Clarke Flooring Ltd,22008077,433.33
Borough Council of Kings Lynn and West Norfolk,E07000146,25/04/2022,Recycling Composting,Contracted Services,Serco Ltd,21014570,"42,854.87"
Borough Council of Kings Lynn and West Norfolk,E07000146,25/04/2022,Trade Refuse,Contracted Services,Serco Ltd,21014570,"9,829.61"
Borough Council of Kings Lynn and West Norfolk,E07000146,25/04/2022,Recycling Commercial,Contracted Services,Serco Ltd,21014570,"5,378.00"
Borough Council of Kings Lynn and West Norfolk,E07000146,25/04/2022,Domestic Refuse,Dayworks and Addnl Works,Serco Ltd,21014570,"14,142.94"
Borough Council of Kings Lynn and West Norfolk,E07000146,25/04/2022,Domestic Refuse,Clinical & Medical Waste,Serco Ltd,21014570,"1,293.07"
Borough Council of Kings Lynn and West Norfolk,E07000146,25/04/2022,Domestic Refuse,Litter Bins,Serco Ltd,21014570,"9,553.32"
Borough Council of Kings Lynn and West Norfolk,E07000146,25/04/2022,Domestic Refuse,Litter Bins,Serco Ltd,21014571,"9,114.16"
Borough Council of Kings Lynn and West Norfolk,E07000146,25/04/2022,Domestic Refuse,Clinical & Medical Waste,Serco Ltd,21014571,"1,435.36"
Borough Council of Kings Lynn and West Norfolk,E07000146,25/04/2022,Domestic Refuse,Dayworks and Addnl Works,Serco Ltd,21014571,"13,508.78"
Borough Council of Kings Lynn and West Norfolk,E07000146,25/04/2022,Recycling Commercial,Contracted Services,Serco Ltd,21014571,"5,378.00"
Borough Council of Kings Lynn and West Norfolk,E07000146,25/04/2022,Trade Refuse,Contracted Services,Serco Ltd,21014571,"9,829.61"
Borough Council of Kings Lynn and West Norfolk,E07000146,25/04/2022,Recycling Composting,Contracted Services,Serco Ltd,21014571,"42,881.89"
Borough Council of Kings Lynn and West Norfolk,E07000146,25/04/2022,Riverfront regeneration,Professional Fees,Greyfriars Project Management Ltd,21014410,"3,928.50"
Borough Council of Kings Lynn and West Norfolk,E07000146,25/04/2022,KL Innovation Centre,Repairs & Maintenance,MDH Landscaping Ltd,21014578,900.00
Borough Council of Kings Lynn and West Norfolk,E07000146,25/04/2022,KL Innovation Centre,Repairs & Maintenance,MDH Landscaping Ltd,21014578,270.00
Borough Council of Kings Lynn and West Norfolk,E07000146,01/05/2022,General Property,Repairs & Maintenance,CGM Group (East Anglia) Ltd,21015093,"1,541.09"
Borough Council of Kings Lynn and West Norfolk,E07000146,04/05/2022,Public conveniences,Repairs & Maintenance,Citron Hygiene Uk Ltd,21014742,495.64
Borough Council of Kings Lynn and West Norfolk,E07000146,04/05/2022,Rough Sleeper Fund,Covid 19,Bunkabin Ltd,21014351,"1,764.00"
Borough Council of Kings Lynn and West Norfolk,E07000146,04/05/2022,Rough Sleeper Fund,Covid 19,Bunkabin Ltd,21014352,"2,016.00"
Borough Council of Kings Lynn and West Norfolk,E07000146,04/05/2022,Grounds Southern Area,Materials,Collier Turf Care Ltd,21014730,"3,533.83"
Borough Council of Kings Lynn and West Norfolk,E07000146,04/05/2022,General Property,Repairs & Maintenance,CGM Group (East Anglia) Ltd,21014501,"1,541.09"
Borough Council of Kings Lynn and West Norfolk,E07000146,04/05/2022,Town Hall Kings Lynn,Repairs & Maintenance,E Akers,21014768,290.00
Borough Council of Kings Lynn and West Norfolk,E07000146,04/05/2022,Town Hall Kings Lynn,Repairs & Maintenance,E Akers,21014768,236.23
Borough Council of Kings Lynn and West Norfolk,E07000146,04/05/2022,Cost of Collection - CTax,Tracing Fees,Experian Ltd,22008117,"4,838.00"
Borough Council of Kings Lynn and West Norfolk,E07000146,04/05/2022,Public Cleansing,Vehicle - repairs & Maint,Ford & Slater DAF Kings Lynn,21014726,876.51
Borough Council of Kings Lynn and West Norfolk,E07000146,04/05/2022,Resort Trading Operations,Rent,Le Strange Estate,21014690,"3,587.50"
Borough Council of Kings Lynn and West Norfolk,E07000146,04/05/2022,Parking Operations - Brgh,Rent,Le Strange Estate,21014691,"25,141.50"
Borough Council of Kings Lynn and West Norfolk,E07000146,04/05/2022,Sports Grounds North,Rent,Le Strange Estate,21014694,"1,750.00"
Borough Council of Kings Lynn and West Norfolk,E07000146,04/05/2022,KL Innovation Centre,Contract Cleaning,Mr Brights Ltd,21014675,"2,067.12"
Borough Council of Kings Lynn and West Norfolk,E07000146,04/05/2022,Decrim - Operational,Repairs & Maintenance,Metric Group Ltd,21014268,"1,648.47"
Borough Council of Kings Lynn and West Norfolk,E07000146,04/05/2022,Stories of Lynn,Professional Fees,Norfolk County Council,21014674,"30,544.00"
Borough Council of Kings Lynn and West Norfolk,E07000146,04/05/2022,NORA Phase 3,Professional Fees,North Norfolk District Council,21014655,800.00
Borough Council of Kings Lynn and West Norfolk,E07000146,04/05/2022,CCTV,Repairs & Maintenance,North Norfolk District Council,21014658,950.00
Borough Council of Kings Lynn and West Norfolk,E07000146,04/05/2022,Head of Legal Services,External Legal fees,North Norfolk District Council,22008084,300.00
Borough Council of Kings Lynn and West Norfolk,E07000146,04/05/2022,Head of Legal Services,External Legal fees,North Norfolk District Council,22008084,153.00
Borough Council of Kings Lynn and West Norfolk,E07000146,04/05/2022,Sports Grounds North,Repairs & Maintenance,Penty Contractors Ltd,21014686,515.00
Borough Council of Kings Lynn and West Norfolk,E07000146,04/05/2022,Street Sweeping,Bins,Huws Gray Ridgeons Ltd,21014720,848.50
Borough Council of Kings Lynn and West Norfolk,E07000146,04/05/2022,GM Central Area,Materials,Origin Amenity Solutions Ltd,21014385,895.00
Borough Council of Kings Lynn and West Norfolk,E07000146,04/05/2022,Financial Services,Agency Staff,Hays Specialist Recruitment,21014808,"2,432.20"
Borough Council of Kings Lynn and West Norfolk,E07000146,04/05/2022,Trade Refuse,Computer Equipment,Whitespace Work Software  Ltd,21014205,"5,000.00"
Borough Council of Kings Lynn and West Norfolk,E07000146,04/05/2022,Bus Development& Start Up,BBUSINESS ADVICE SERVICES,New Anglia Local Enterprise Ptn Ltd,21014666,"1,000.00"
Borough Council of Kings Lynn and West Norfolk,E07000146,04/05/2022,NNDC Carpark Operation,Security Services Charge,LOOMIS UK Ltd,21013908,266.44
Borough Council of Kings Lynn and West Norfolk,E07000146,04/05/2022,Leisure Management Costs,Security Services Charge,LOOMIS UK Ltd,21013908,562.78
Borough Council of Kings Lynn and West Norfolk,E07000146,04/05/2022,Parking Operations - Brgh,Security Services Charge,LOOMIS UK Ltd,21013908,682.60
Borough Council of Kings Lynn and West Norfolk,E07000146,04/05/2022,NNDC Carpark Operation,Security Services Charge,LOOMIS UK Ltd,21014719,356.67
Borough Council of Kings Lynn and West Norfolk,E07000146,04/05/2022,Leisure Management Costs,Security Services Charge,LOOMIS UK Ltd,21014719,668.94
Borough Council of Kings Lynn and West Norfolk,E07000146,04/05/2022,Parking Operations - Brgh,Security Services Charge,LOOMIS UK Ltd,21014719,863.55
Borough Council of Kings Lynn and West Norfolk,E07000146,04/05/2022,Handyperson Scheme K Lynn,Purchased For Resale,NRS Healthcare,21014739,563.30
Borough Council of Kings Lynn and West Norfolk,E07000146,04/05/2022,ICT,Computer Software Maint,Network Utilities (Systems) Ltd,21014794,"3,101.12"
Borough Council of Kings Lynn and West Norfolk,E07000146,04/05/2022,Air Quality,Servicing,NPL Management Ltd,21014197,750.00
Borough Council of Kings Lynn and West Norfolk,E07000146,04/05/2022,Home Improvements Agency,Agency Staff,Seven Resourcing Ltd,21014375,"1,626.63"
Borough Council of Kings Lynn and West Norfolk,E07000146,04/05/2022,Home Improvements Agency,Agency Staff,Seven Resourcing Ltd,21014376,897.50
Borough Council of Kings Lynn and West Norfolk,E07000146,04/05/2022,Lynnsport 1,Works,Golden Tree Surgeons Ltd,21014684,"2,530.00"
Borough Council of Kings Lynn and West Norfolk,E07000146,04/05/2022,Parks & Open Spaces,Tree Surgery,Golden Tree Surgeons Ltd,21014685,980.00
Borough Council of Kings Lynn and West Norfolk,E07000146,04/05/2022,Parks & Open Spaces,Tree Surgery,Golden Tree Surgeons Ltd,21014681,"1,230.00"
Borough Council of Kings Lynn and West Norfolk,E07000146,04/05/2022,Parks & Open Spaces,Tree Surgery,Golden Tree Surgeons Ltd,21014818,"1,230.00"
Borough Council of Kings Lynn and West Norfolk,E07000146,04/05/2022,Parks & Open Spaces,Tree Surgery,Golden Tree Surgeons Ltd,21014769,"1,230.00"
Borough Council of Kings Lynn and West Norfolk,E07000146,04/05/2022,Parks & Open Spaces,Tree Surgery,Golden Tree Surgeons Ltd,21014770,"1,480.00"
Borough Council of Kings Lynn and West Norfolk,E07000146,04/05/2022,Parks & Open Spaces,Tree Surgery,Golden Tree Surgeons Ltd,21014771,"1,230.00"
Borough Council of Kings Lynn and West Norfolk,E07000146,04/05/2022,Cashless Pk JC (SN on street),Merchant Fees,Chipside Ltd,21014664,0.11
Borough Council of Kings Lynn and West Norfolk,E07000146,04/05/2022,Cashless Pk JG (Bk on street),Merchant Fees,Chipside Ltd,21014664,0.21
Borough Council of Kings Lynn and West Norfolk,E07000146,04/05/2022,Cashless Pk JT (Brd on street),Merchant Fees,Chipside Ltd,21014664,0.75
Borough Council of Kings Lynn and West Norfolk,E07000146,04/05/2022,Cashless Pk JE (NN on street),Merchant Fees,Chipside Ltd,21014664,13.39
Borough Council of Kings Lynn and West Norfolk,E07000146,04/05/2022,Cashless Pk KZ (KLWN Carparks),Merchant Fees,Chipside Ltd,21014664,62.08
Borough Council of Kings Lynn and West Norfolk,E07000146,04/05/2022,Cashless Pk JI (GY on street),Merchant Fees,Chipside Ltd,21014664,73.40
Borough Council of Kings Lynn and West Norfolk,E07000146,04/05/2022,Cashless Pk JI (GY Carparks),Merchant Fees,Chipside Ltd,21014664,186.32
Borough Council of Kings Lynn and West Norfolk,E07000146,04/05/2022,Cashless Pk JE (NN Carparks),Merchant Fees,Chipside Ltd,21014664,227.38
Borough Council of Kings Lynn and West Norfolk,E07000146,04/05/2022,Cashless Pk KZ (KLWN on street),Merchant Fees,Chipside Ltd,21014664,"1,358.65"
Borough Council of Kings Lynn and West Norfolk,E07000146,04/05/2022,Cashless Pk JG (Bk on street),Transaction Fee,Chipside Ltd,21014665,2.00
Borough Council of Kings Lynn and West Norfolk,E07000146,04/05/2022,Cashless Pk JC (SN on street),Transaction Fee,Chipside Ltd,21014665,2.00
Borough Council of Kings Lynn and West Norfolk,E07000146,04/05/2022,Cashless Pk JT (Brd on street),Transaction Fee,Chipside Ltd,21014665,4.00
Borough Council of Kings Lynn and West Norfolk,E07000146,04/05/2022,Cashless Pk JE (NN on street),Transaction Fee,Chipside Ltd,21014665,134.00
Borough Council of Kings Lynn and West Norfolk,E07000146,04/05/2022,Cashless Pk JI (GY on street),Transaction Fee,Chipside Ltd,21014665,226.48
Borough Council of Kings Lynn and West Norfolk,E07000146,04/05/2022,Cashless Pk KZ (KLWN on street),Transaction Fee,Chipside Ltd,21014665,286.50
Borough Council of Kings Lynn and West Norfolk,E07000146,04/05/2022,Cashless Pk JI (GY Carparks),Transaction Fee,Chipside Ltd,21014665,487.25
Borough Council of Kings Lynn and West Norfolk,E07000146,04/05/2022,Cashless Pk JE (NN Carparks),Transaction Fee,Chipside Ltd,21014665,616.00
Borough Council of Kings Lynn and West Norfolk,E07000146,04/05/2022,Cashless Pk KZ (KLWN Carparks),Transaction Fee,Chipside Ltd,21014665,"3,511.42"
Borough Council of Kings Lynn and West Norfolk,E07000146,04/05/2022,Public Realm/Town Deal,Equipment/Materials,Stuart Power Ltd,21014531,885.71
Borough Council of Kings Lynn and West Norfolk,E07000146,04/05/2022,St Georges Guildhall Complex,Professional Fees,Engaging People Company,21014345,550.00
Borough Council of Kings Lynn and West Norfolk,E07000146,04/05/2022,Public conveniences,Sewerage/Cesspool Empty,BACO-Compak (Norfolk) Ltd,21014745,"1,155.00"
Borough Council of Kings Lynn and West Norfolk,E07000146,04/05/2022,Public conveniences,Sewerage/Cesspool Empty,BACO-Compak (Norfolk) Ltd,21014747,580.00
Borough Council of Kings Lynn and West Norfolk,E07000146,04/05/2022,Financial Services,Postages,Royal Mail Group Ltd,22008086,150.47
Borough Council of Kings Lynn and West Norfolk,E07000146,04/05/2022,Benefit Administration,Postages,Royal Mail Group Ltd,22008086,402.24
Borough Council of Kings Lynn and West Norfolk,E07000146,04/05/2022,Cost of Collection - CTax,Postages,Royal Mail Group Ltd,22008086,498.51
Borough Council of Kings Lynn and West Norfolk,E07000146,04/05/2022,Kings Lynn Bid,Postages,Royal Mail Group Ltd,22008086,219.84
Borough Council of Kings Lynn and West Norfolk,E07000146,04/05/2022,Research,Postages,Royal Mail Group Ltd,22008086,7.65
Borough Council of Kings Lynn and West Norfolk,E07000146,04/05/2022,Benefit Administration,Postages,Royal Mail Group Ltd,22008086,5.69
Borough Council of Kings Lynn and West Norfolk,E07000146,04/05/2022,Financial Services,Postages,Royal Mail Group Ltd,22008086,0.45
Borough Council of Kings Lynn and West Norfolk,E07000146,04/05/2022,Financial Services,Postages,Royal Mail Group Ltd,22008087,"3,737.88"
Borough Council of Kings Lynn and West Norfolk,E07000146,04/05/2022,Benefit Administration,Postages,Royal Mail Group Ltd,22008087,383.99
Borough Council of Kings Lynn and West Norfolk,E07000146,04/05/2022,Cost of Collection - CTax,Postages,Royal Mail Group Ltd,22008087,448.79
Borough Council of Kings Lynn and West Norfolk,E07000146,04/05/2022,Kings Lynn Bid,Postages,Royal Mail Group Ltd,22008087,0.96
Borough Council of Kings Lynn and West Norfolk,E07000146,04/05/2022,Pub & Tourism int charges,Postages,Royal Mail Group Ltd,22008087,6.30
Borough Council of Kings Lynn and West Norfolk,E07000146,04/05/2022,Financial Services,Postages,Royal Mail Group Ltd,22008087,1.61
Borough Council of Kings Lynn and West Norfolk,E07000146,04/05/2022,Benefit Administration,Postages,Royal Mail Group Ltd,22008087,34.71
Borough Council of Kings Lynn and West Norfolk,E07000146,04/05/2022,KL Innovation Centre,Postages,Royal Mail Group Ltd,21014712,787.00
Borough Council of Kings Lynn and West Norfolk,E07000146,04/05/2022,Town Hall Kings Lynn,Repairs & Maintenance,Smith Building Services Ltd,21014609,"1,295.00"
Borough Council of Kings Lynn and West Norfolk,E07000146,04/05/2022,Dry Box Collection Scheme,Waste Processing Cost,Norse Environmental Services,21014543,"45,915.91"
Borough Council of Kings Lynn and West Norfolk,E07000146,04/05/2022,Food Waste,Waste Processing Cost,Norse Environmental Services,21014566,"6,915.06"
Borough Council of Kings Lynn and West Norfolk,E07000146,04/05/2022,Home Improvements Agency,Agency,David Trundley Design Services Ltd,21014640,900.00
Borough Council of Kings Lynn and West Norfolk,E07000146,04/05/2022,Princess Theatre Roof Replacement,Professional Fees,David Trundley Design Services Ltd,21014729,"1,950.00"
Borough Council of Kings Lynn and West Norfolk,E07000146,04/05/2022,Town Hall Kings Lynn,Repairs & Maintenance,Dorma UK Ltd,21014264,569.00
Borough Council of Kings Lynn and West Norfolk,E07000146,04/05/2022,Crematorium Trading Account,Memorial Plates,Odlings Ltd t/a The Columbaria Company,21014198,750.00
Borough Council of Kings Lynn and West Norfolk,E07000146,04/05/2022,Grounds Northern Area,Vehicle - repairs & Maint,Ernest Doe & Sons Ltd,21014424,"1,078.32"
Borough Council of Kings Lynn and West Norfolk,E07000146,04/05/2022,Cost of Collection - CTax,Stationery & Office,Hound Envelopes Ltd,21014229,466.25
Borough Council of Kings Lynn and West Norfolk,E07000146,04/05/2022,Street Sweeping,Hazardous Waste Disposal,WEAAR Ltd,21014772,550.00
Borough Council of Kings Lynn and West Norfolk,E07000146,04/05/2022,Tech/Officers/Repairs,Vehicle - repairs & Maint,Trakm8 Limited,22008092,9.99
Borough Council of Kings Lynn and West Norfolk,E07000146,04/05/2022,Tech/Officers/Repairs,Vehicle - repairs & Maint,Trakm8 Limited,22008092,9.99
Borough Council of Kings Lynn and West Norfolk,E07000146,04/05/2022,Grounds Northern Area,Vehicle - repairs & Maint,Trakm8 Limited,22008092,9.99
Borough Council of Kings Lynn and West Norfolk,E07000146,04/05/2022,Public Cleansing,Vehicle - repairs & Maint,Trakm8 Limited,22008092,51.00
Borough Council of Kings Lynn and West Norfolk,E07000146,04/05/2022,Careline,Vehicle - repairs & Maint,Trakm8 Limited,22008092,51.00
Borough Council of Kings Lynn and West Norfolk,E07000146,04/05/2022,Neighbourhood Teams,Vehicle - repairs & Maint,Trakm8 Limited,22008092,51.00
Borough Council of Kings Lynn and West Norfolk,E07000146,04/05/2022,Public Cleansing,Vehicle - repairs & Maint,Trakm8 Limited,22008092,51.00
Borough Council of Kings Lynn and West Norfolk,E07000146,04/05/2022,Neighbourhood Teams,Vehicle - repairs & Maint,Trakm8 Limited,22008092,51.00
Borough Council of Kings Lynn and West Norfolk,E07000146,04/05/2022,GM Central Area,Vehicle - repairs & Maint,Trakm8 Limited,22008092,51.00
Borough Council of Kings Lynn and West Norfolk,E07000146,04/05/2022,GM Central Area,Vehicle - repairs & Maint,Trakm8 Limited,22008092,51.00
Borough Council of Kings Lynn and West Norfolk,E07000146,04/05/2022,Neighbourhood Teams,Vehicle - repairs & Maint,Trakm8 Limited,22008092,51.00
Borough Council of Kings Lynn and West Norfolk,E07000146,04/05/2022,Public Cleansing,Vehicle - repairs & Maint,Trakm8 Limited,22008092,51.00
Borough Council of Kings Lynn and West Norfolk,E07000146,04/05/2022,Public Cleansing,Vehicle - repairs & Maint,Trakm8 Limited,22008092,51.00
Borough Council of Kings Lynn and West Norfolk,E07000146,04/05/2022,Grounds Southern Area,Vehicle - repairs & Maint,Trakm8 Limited,22008092,51.00
Borough Council of Kings Lynn and West Norfolk,E07000146,04/05/2022,Public Cleansing,Vehicle - repairs & Maint,Trakm8 Limited,22008092,51.00
Borough Council of Kings Lynn and West Norfolk,E07000146,04/05/2022,Neighbourhood Teams,Vehicle - repairs & Maint,Trakm8 Limited,22008092,51.00
Borough Council of Kings Lynn and West Norfolk,E07000146,04/05/2022,Neighbourhood Teams,Vehicle - repairs & Maint,Trakm8 Limited,22008092,51.00
Borough Council of Kings Lynn and West Norfolk,E07000146,04/05/2022,Public Cleansing,Vehicle - repairs & Maint,Trakm8 Limited,22008092,51.00
Borough Council of Kings Lynn and West Norfolk,E07000146,04/05/2022,Grounds Northern Area,Vehicle - repairs & Maint,Trakm8 Limited,22008092,51.00
Borough Council of Kings Lynn and West Norfolk,E07000146,04/05/2022,Public Cleansing,Vehicle - repairs & Maint,Trakm8 Limited,22008092,51.00
Borough Council of Kings Lynn and West Norfolk,E07000146,04/05/2022,The Walks,Vehicle - repairs & Maint,Trakm8 Limited,22008092,51.00
Borough Council of Kings Lynn and West Norfolk,E07000146,04/05/2022,Public Cleansing,Vehicle - repairs & Maint,Trakm8 Limited,22008092,51.00
Borough Council of Kings Lynn and West Norfolk,E07000146,04/05/2022,Public Cleansing,Vehicle - repairs & Maint,Trakm8 Limited,22008092,51.00
Borough Council of Kings Lynn and West Norfolk,E07000146,04/05/2022,Public Cleansing,Vehicle - repairs & Maint,Trakm8 Limited,22008092,51.00
Borough Council of Kings Lynn and West Norfolk,E07000146,04/05/2022,CCTV,Vehicle - repairs & Maint,Trakm8 Limited,22008092,51.00
Borough Council of Kings Lynn and West Norfolk,E07000146,04/05/2022,Public Cleansing,Vehicle - repairs & Maint,Trakm8 Limited,22008092,51.00
Borough Council of Kings Lynn and West Norfolk,E07000146,04/05/2022,Public Cleansing,Vehicle - repairs & Maint,Trakm8 Limited,22008092,51.00
Borough Council of Kings Lynn and West Norfolk,E07000146,04/05/2022,Public Cleansing,Vehicle - repairs & Maint,Trakm8 Limited,22008092,51.00
Borough Council of Kings Lynn and West Norfolk,E07000146,04/05/2022,Public Cleansing,Vehicle - repairs & Maint,Trakm8 Limited,22008092,51.00
Borough Council of Kings Lynn and West Norfolk,E07000146,04/05/2022,Public Cleansing,Vehicle - repairs & Maint,Trakm8 Limited,22008092,51.00
Borough Council of Kings Lynn and West Norfolk,E07000146,04/05/2022,Public Cleansing,Vehicle - repairs & Maint,Trakm8 Limited,22008092,51.00
Borough Council of Kings Lynn and West Norfolk,E07000146,04/05/2022,Public Cleansing,Vehicle - repairs & Maint,Trakm8 Limited,22008092,51.00
Borough Council of Kings Lynn and West Norfolk,E07000146,04/05/2022,Public Cleansing,Vehicle - repairs & Maint,Trakm8 Limited,22008092,51.00
Borough Council of Kings Lynn and West Norfolk,E07000146,04/05/2022,Public Cleansing,Vehicle - repairs & Maint,Trakm8 Limited,22008092,51.00
Borough Council of Kings Lynn and West Norfolk,E07000146,04/05/2022,Public Cleansing,Vehicle - repairs & Maint,Trakm8 Limited,22008092,51.00
Borough Council of Kings Lynn and West Norfolk,E07000146,04/05/2022,Public Cleansing,Vehicle - repairs & Maint,Trakm8 Limited,22008092,51.00
Borough Council of Kings Lynn and West Norfolk,E07000146,04/05/2022,Public Cleansing,Vehicle - repairs & Maint,Trakm8 Limited,22008092,51.00
Borough Council of Kings Lynn and West Norfolk,E07000146,04/05/2022,Public Cleansing,Vehicle - repairs & Maint,Trakm8 Limited,22008092,51.00
Borough Council of Kings Lynn and West Norfolk,E07000146,04/05/2022,Grounds Northern Area,Vehicle - repairs & Maint,Trakm8 Limited,22008092,51.00
Borough Council of Kings Lynn and West Norfolk,E07000146,04/05/2022,Public Cleansing,Vehicle - repairs & Maint,Trakm8 Limited,22008092,51.00
Borough Council of Kings Lynn and West Norfolk,E07000146,04/05/2022,Neighbourhood Teams,Vehicle - repairs & Maint,Trakm8 Limited,22008092,51.00
Borough Council of Kings Lynn and West Norfolk,E07000146,04/05/2022,GM Central Area,Vehicle - repairs & Maint,Trakm8 Limited,22008092,51.00
Borough Council of Kings Lynn and West Norfolk,E07000146,04/05/2022,ICT,Telephones,Adept Technology Group Plc,21014620,"5,662.53"
Borough Council of Kings Lynn and West Norfolk,E07000146,04/05/2022,Welfare Reform Funding,Professional Fees,CIPFA Business Ltd,21014667,"2,132.75"
Borough Council of Kings Lynn and West Norfolk,E07000146,04/05/2022,Financial Services,Membership & Subscription,CIPFA Business Ltd,21014668,"3,667.00"
Borough Council of Kings Lynn and West Norfolk,E07000146,04/05/2022,Financial Services,Membership & Subscription,CIPFA Business Ltd,21014669,"3,633.75"
Borough Council of Kings Lynn and West Norfolk,E07000146,04/05/2022,Community Projects CRS,Small Projects,Norfolk Community Foundation,21014663,"3,013.00"
Borough Council of Kings Lynn and West Norfolk,E07000146,04/05/2022,Community Projects CRS,Donations,Norfolk Community Foundation,21014663,"5,846.00"
Borough Council of Kings Lynn and West Norfolk,E07000146,04/05/2022,CCTV,Repairs & Maintenance,Focus Security (East Anglia) Ltd,21014702,"1,006.98"
Borough Council of Kings Lynn and West Norfolk,E07000146,04/05/2022,Personnel Welfare,Eye Test,Specsavers Corporate Eyecare,21014646,850.00
Borough Council of Kings Lynn and West Norfolk,E07000146,04/05/2022,Towns Fund Programme Management,Works,KL Publications Ltd,21014800,762.00
Borough Council of Kings Lynn and West Norfolk,E07000146,04/05/2022,Community Transport,Transport Subsidies,West Lynn Ferry Ltd,21014626,"1,716.66"
Borough Council of Kings Lynn and West Norfolk,E07000146,04/05/2022,Community Transport,Transport Subsidies,West Lynn Ferry Ltd,21014627,"5,149.98"
Borough Council of Kings Lynn and West Norfolk,E07000146,04/05/2022,Sports Grounds Central,Materials,Advance Grass Solutions,21014454,333.33
Borough Council of Kings Lynn and West Norfolk,E07000146,04/05/2022,Sports Grounds North,Materials,Advance Grass Solutions,21014454,333.33
Borough Council of Kings Lynn and West Norfolk,E07000146,04/05/2022,Sports Grounds South,Materials,Advance Grass Solutions,21014454,333.34
Borough Council of Kings Lynn and West Norfolk,E07000146,04/05/2022,Flitcham Workshops,Repairs & Maintenance,PIKESTAFF BUILDING CO LTD,21014687,840.00
Borough Council of Kings Lynn and West Norfolk,E07000146,04/05/2022,Flitcham Workshops,Repairs & Maintenance,PIKESTAFF BUILDING CO LTD,21014687,80.00
Borough Council of Kings Lynn and West Norfolk,E07000146,04/05/2022,Flitcham Workshops,Repairs & Maintenance,PIKESTAFF BUILDING CO LTD,21014689,"3,215.00"
Borough Council of Kings Lynn and West Norfolk,E07000146,04/05/2022,Flitcham Workshops,Repairs & Maintenance,PIKESTAFF BUILDING CO LTD,21014689,692.50
Borough Council of Kings Lynn and West Norfolk,E07000146,04/05/2022,Cost of Collection - CTax,Stationery & Office,DSI Billing Services Ltd,22007947,"4,820.00"
Borough Council of Kings Lynn and West Norfolk,E07000146,04/05/2022,Cost of Collection - CTax,Stationery & Office,DSI Billing Services Ltd,22007948,"7,247.08"
Borough Council of Kings Lynn and West Norfolk,E07000146,04/05/2022,Cost of Collection - CTax,Postages,DSI Billing Services Ltd,22007948,"21,627.98"
Borough Council of Kings Lynn and West Norfolk,E07000146,04/05/2022,Benefit Administration,Stationery & Office,DSI Billing Services Ltd,22007948,604.20
Borough Council of Kings Lynn and West Norfolk,E07000146,04/05/2022,Benefit Administration,Postages,DSI Billing Services Ltd,22007948,"3,687.06"
Borough Council of Kings Lynn and West Norfolk,E07000146,04/05/2022,GM Central Area,Vehicle - repairs & Maint,Anglia Mowers,21014815,"1,982.58"
Borough Council of Kings Lynn and West Norfolk,E07000146,04/05/2022,Treasury Management,Management Expenses,Link Treasury Services Ltd,21014823,485.00
Borough Council of Kings Lynn and West Norfolk,E07000146,04/05/2022,Comm Infrastructure Levy,Small Projects,King's Lynn Sea Cadets,22008115,"9,208.51"
Borough Council of Kings Lynn and West Norfolk,E07000146,04/05/2022,Homechoice,Computer Software Maint,Home Connections Lettings Ltd,21014517,"6,428.10"
Borough Council of Kings Lynn and West Norfolk,E07000146,04/05/2022,Public Cleansing,Cleaning Material & Equip,V & J Knitwear Ltd,21014628,688.20
Borough Council of Kings Lynn and West Norfolk,E07000146,04/05/2022,Public Cleansing,Cleaning Material & Equip,V & J Knitwear Ltd,21014778,473.46
Borough Council of Kings Lynn and West Norfolk,E07000146,04/05/2022,Public Cleansing,Cleaning Material & Equip,V & J Knitwear Ltd,21014778,25.00
Borough Council of Kings Lynn and West Norfolk,E07000146,04/05/2022,Public Cleansing,Cleaning Material & Equip,V & J Knitwear Ltd,21014780,534.98
Borough Council of Kings Lynn and West Norfolk,E07000146,04/05/2022,Public Cleansing,Cleaning Material & Equip,V & J Knitwear Ltd,21014782,560.88
Borough Council of Kings Lynn and West Norfolk,E07000146,04/05/2022,Cafe in the Park,Confectionery - Supplies,Booker Cash & Carry Ltd,21014659,637.73
Borough Council of Kings Lynn and West Norfolk,E07000146,04/05/2022,Town Hall Kings Lynn,Repairs & Maintenance,GSL Dardan Ltd,21014515,500.00
Borough Council of Kings Lynn and West Norfolk,E07000146,04/05/2022,Apprenticeship Scheme,Apprentice Levy,Bedford Borough Council,21014647,"4,735.00"
Borough Council of Kings Lynn and West Norfolk,E07000146,04/05/2022,Register of Electors,Stationery & Office,Civica Election Services Ltd,22007825,462.34
Borough Council of Kings Lynn and West Norfolk,E07000146,04/05/2022,Natl Assist Act Burials,Burial Fees-Nat.Ass.Act,Thornalley Funeral Services Ltd,21014820,"1,170.00"
Borough Council of Kings Lynn and West Norfolk,E07000146,04/05/2022,Grounds Northern Area,Vehicle - repairs & Maint,Ernest Doe & Sons Ltd,21014420,"2,405.00"
Borough Council of Kings Lynn and West Norfolk,E07000146,04/05/2022,Careline,Tools And Equipment,HOIP Telecom Ltd,21014696,792.50
Borough Council of Kings Lynn and West Norfolk,E07000146,04/05/2022,Neighbourhood Teams,Covid 19,Enterprise Flex-E Rent,21014430,724.50
Borough Council of Kings Lynn and West Norfolk,E07000146,04/05/2022,COMF Phase 3,Agency Staff,Vivid Resourcing,21014244,"2,839.12"
Borough Council of Kings Lynn and West Norfolk,E07000146,04/05/2022,Environmental Protection,Agency Staff,Vivid Resourcing,21014204,"3,542.40"
Borough Council of Kings Lynn and West Norfolk,E07000146,04/05/2022,Discover KL Distribution,Marketing / Tourism,Potts Print Ltd,21014587,"8,585.00"
Borough Council of Kings Lynn and West Norfolk,E07000146,04/05/2022,VAT,VAT Input - VAT Only Purchases,Marston (Holdings) Ltd,22008001,"1,527.17"
Borough Council of Kings Lynn and West Norfolk,E07000146,04/05/2022,LILY 5,Advertising & Marketing,Global Media Group Services Ltd,21014333,470.00
Borough Council of Kings Lynn and West Norfolk,E07000146,04/05/2022,Careline,Advertising & Marketing,Global Media Group Services Ltd,21014333,470.00
Borough Council of Kings Lynn and West Norfolk,E07000146,04/05/2022,Towns Fund Active and Clean Connectivity,Professional Fees,INVVU Construction Consultants Ltd,21014695,"27,500.00"
Borough Council of Kings Lynn and West Norfolk,E07000146,04/05/2022,St Georges Guildhall Complex,Professional Fees,Montagu Evans LLP,21014590,"36,355.00"
Borough Council of Kings Lynn and West Norfolk,E07000146,04/05/2022,Parking Operations - Brgh,Repairs & Maintenance,Ebuyer UK Limited,21014789,"7,546.00"
Borough Council of Kings Lynn and West Norfolk,E07000146,04/05/2022,Careline,Tools And Equipment,Doro Care UK,22008119,"13,305.60"
Borough Council of Kings Lynn and West Norfolk,E07000146,04/05/2022,KL Arts Centre,Hirings Ticketed,Theatre Train Kings Lynn,22008089,"2,780.00"
Borough Council of Kings Lynn and West Norfolk,E07000146,04/05/2022,KL Arts Centre,Hiring Charges Income,Theatre Train Kings Lynn,22008089,-638.83
Borough Council of Kings Lynn and West Norfolk,E07000146,04/05/2022,KL Arts Centre,Commission On Box Office,Theatre Train Kings Lynn,22008089,-166.80
Borough Council of Kings Lynn and West Norfolk,E07000146,04/05/2022,KL Arts Centre,PRS Recharge,Theatre Train Kings Lynn,22008089,-40.58
Borough Council of Kings Lynn and West Norfolk,E07000146,04/05/2022,KL Arts Centre,Credit Card Recharge,Theatre Train Kings Lynn,22008089,-97.68
Borough Council of Kings Lynn and West Norfolk,E07000146,04/05/2022,KL Arts Centre,Hire Of Equipment,Theatre Train Kings Lynn,22008089,-274.00
Borough Council of Kings Lynn and West Norfolk,E07000146,04/05/2022,DWP at Kings Court,Repairs & Maintenance,MPD FM Ltd,21014795,"1,946.16"
Borough Council of Kings Lynn and West Norfolk,E07000146,04/05/2022,DWP at Kings Court,Contract Security,MPD FM Ltd,21014520,"7,458.21"
Borough Council of Kings Lynn and West Norfolk,E07000146,04/05/2022,Southgate Regen Area,Professional Fees,Survey Solutions,21014773,"5,950.00"
Borough Council of Kings Lynn and West Norfolk,E07000146,04/05/2022,NORA Phase 4,Legal Fees,Gateley Plc,21014809,750.00
Borough Council of Kings Lynn and West Norfolk,E07000146,04/05/2022,NORA Phase 4,Legal Fees,Gateley Plc,21014809,12.00
Borough Council of Kings Lynn and West Norfolk,E07000146,04/05/2022,Development Control,Recruitment,TMP (UK) Ltd,22008090,"1,640.00"
Borough Council of Kings Lynn and West Norfolk,E07000146,04/05/2022,Financial Services,Contracted Services,Embridge Consulting (UK) Ltd,21014622,"2,700.00"
Borough Council of Kings Lynn and West Norfolk,E07000146,04/05/2022,Crematorium Trading Account,Webcasts/Tributes/Recordings,Vivedia Ltd,21014246,"3,203.00"
Borough Council of Kings Lynn and West Norfolk,E07000146,04/05/2022,Grounds Northern Area,Vehicle - repairs & Maint,Motor Parts Direct Ltd,21014518,659.92
Borough Council of Kings Lynn and West Norfolk,E07000146,04/05/2022,Planning Control,Professional Fees,T Leader St Johns Regulatory Fee Share Account,21014785,750.00
Borough Council of Kings Lynn and West Norfolk,E07000146,04/05/2022,Training Holding Account,Training,Mighty Oak Training Ltd,21014565,"7,700.00"
Borough Council of Kings Lynn and West Norfolk,E07000146,05/05/2022,Personnel Services,Recruitment,TMP (UK) Ltd,21014865,488.95
Borough Council of Kings Lynn and West Norfolk,E07000146,05/05/2022,Decarbonisation ReFit 2,Works,Ameresco Ltd,21014837,"257,207.99"
Borough Council of Kings Lynn and West Norfolk,E07000146,05/05/2022,ICT,Computer Software Maint,cloudDNA Ltd,21014480,"4,188.49"
Borough Council of Kings Lynn and West Norfolk,E07000146,05/05/2022,Princess Theatre Main,Repairs & Maintenance,Ward Electrical Contractors,21014844,"1,500.00"
Borough Council of Kings Lynn and West Norfolk,E07000146,05/05/2022,Salters Road,Contractor Works,Lovell Partnerships Ltd,21014851,"190,571.16"
Borough Council of Kings Lynn and West Norfolk,E07000146,05/05/2022,Home Improvements Agency,Agency Staff,Seven Resourcing Ltd,21014584,"1,589.41"
Borough Council of Kings Lynn and West Norfolk,E07000146,05/05/2022,Parks & Open Spaces,Tree Work/Storm Damage,Golden Tree Surgeons Ltd,21014852,"1,480.00"
Borough Council of Kings Lynn and West Norfolk,E07000146,05/05/2022,Parks & Open Spaces,Tree Surgery,Golden Tree Surgeons Ltd,21014853,650.00
Borough Council of Kings Lynn and West Norfolk,E07000146,05/05/2022,Arts Initatives,Project Costs,Collusion Cambridge Ltd,21014890,"12,000.00"
Borough Council of Kings Lynn and West Norfolk,E07000146,05/05/2022,Creditors Holding Account,Water & Drainage Rates,WAVE,22008137,"1,292.29"
Borough Council of Kings Lynn and West Norfolk,E07000146,05/05/2022,Major Planning Appeals,Consultants Fees,Kenneth Bush Solicitors,22008139,"6,793.00"
Borough Council of Kings Lynn and West Norfolk,E07000146,05/05/2022,Resort Trading Operations,Repairs & Maintenance,C G Godfrey Ltd,21014670,"1,026.38"
Borough Council of Kings Lynn and West Norfolk,E07000146,05/05/2022,Parking Operations - Brgh,Tools And Equipment,Bemrose Booth Paragon Ltd,21014537,"2,211.00"
Borough Council of Kings Lynn and West Norfolk,E07000146,05/05/2022,KL Innovation Centre,Beverage Supplies,NVCS Ltd,21014875,780.00
Borough Council of Kings Lynn and West Norfolk,E07000146,05/05/2022,Housing Options Programme,Professional Fees,P Harvey,21014882,"1,295.00"
Borough Council of Kings Lynn and West Norfolk,E07000146,05/05/2022,Cost of Collection - CTax,Professional Fees,Civica UK Ltd,21014478,"6,500.00"
Borough Council of Kings Lynn and West Norfolk,E07000146,05/05/2022,Street Sweeping,Hazardous Waste Disposal,WEAAR Ltd,21014842,"1,650.00"
Borough Council of Kings Lynn and West Norfolk,E07000146,05/05/2022,Resort Seafront,Tools And Equipment,GrafityP,21014513,685.92
Borough Council of Kings Lynn and West Norfolk,E07000146,05/05/2022,Kings Court Service Charges,Repairs & Maintenance,H2O Vend Ltd,21014883,494.00
Borough Council of Kings Lynn and West Norfolk,E07000146,05/05/2022,"St Edmunds, D'ham Mkt",Repairs & Maintenance,Norse Commercial Services Ltd,21014874,"1,176.00"
Borough Council of Kings Lynn and West Norfolk,E07000146,05/05/2022,Regis Place,Repairs & Maintenance,Artisan (UK) Developments Ltd,22008128,"1,410.10"
Borough Council of Kings Lynn and West Norfolk,E07000146,05/05/2022,Grounds Southern Area,Fuel,UK Fuels Ltd,22008138,74.10
Borough Council of Kings Lynn and West Norfolk,E07000146,05/05/2022,Grounds Southern Area,Fuel,UK Fuels Ltd,22008138,457.20
Borough Council of Kings Lynn and West Norfolk,E07000146,05/05/2022,Public Cleansing,Fuel,UK Fuels Ltd,22008138,426.02
Borough Council of Kings Lynn and West Norfolk,E07000146,05/05/2022,Grounds Southern Area,Fuel,UK Fuels Ltd,22008138,55.59
Borough Council of Kings Lynn and West Norfolk,E07000146,05/05/2022,Grounds Southern Area,Fuel,UK Fuels Ltd,22008138,328.77
Borough Council of Kings Lynn and West Norfolk,E07000146,05/05/2022,Grounds Southern Area,Fuel,UK Fuels Ltd,22008138,76.01
Borough Council of Kings Lynn and West Norfolk,E07000146,05/05/2022,NORA Phase 4,Contractor Works,Lovell Partnerships Ltd,21014850,"645,707.87"
Borough Council of Kings Lynn and West Norfolk,E07000146,05/05/2022,Parking Operations - Brgh,Repairs & Maintenance,Smart Refurbishments,21014848,400.00
Borough Council of Kings Lynn and West Norfolk,E07000146,05/05/2022,Parking Operations - Brgh,Repairs & Maintenance,Smart Refurbishments,21014848,380.00
Borough Council of Kings Lynn and West Norfolk,E07000146,09/05/2022,Food Hygiene General,Shellfish Sampling,UK Health Security Agency,21014286,891.38
Borough Council of Kings Lynn and West Norfolk,E07000146,09/05/2022,Parking Operations - Brgh,Tools And Equipment,Mobius Networks Ltd,21014951,633.66
Borough Council of Kings Lynn and West Norfolk,E07000146,09/05/2022,Community Projects,Service Level Agreements,Community Action Norfolk,21014552,"16,000.00"
Borough Council of Kings Lynn and West Norfolk,E07000146,09/05/2022,Improving Attainment,Small Projects,Diocese of Norwich Education Academies,22008144,900.00
Borough Council of Kings Lynn and West Norfolk,E07000146,09/05/2022,Comm Infrastructure Levy,Small Projects,Holly Meadows School,22008148,"10,000.00"
Borough Council of Kings Lynn and West Norfolk,E07000146,09/05/2022,Parking Operations - Brgh,Repairs & Maintenance,Supreme Surfacing Ltd,21014921,"2,250.00"
Borough Council of Kings Lynn and West Norfolk,E07000146,09/05/2022,Crematorium Trading Account,Book Of Remembrance Costs,F G Marshall Ltd,21014557,578.81
Borough Council of Kings Lynn and West Norfolk,E07000146,09/05/2022,NEWS Depot,Contract Cleaning,Marathon Services Ltd,21014950,"1,450.95"
Borough Council of Kings Lynn and West Norfolk,E07000146,09/05/2022,Car Park - Great Yarmouth,Tools And Equipment,Metric Group Ltd,21014913,"4,132.80"
Borough Council of Kings Lynn and West Norfolk,E07000146,09/05/2022,Towns Fund,Professional Fees,Mott MacDonald Limited,21014680,"10,407.99"
Borough Council of Kings Lynn and West Norfolk,E07000146,09/05/2022,Comm Infrastructure Levy,Small Projects,West Norfolk Community Transport Project,22008156,"19,713.00"
Borough Council of Kings Lynn and West Norfolk,E07000146,09/05/2022,Public Cleansing,Cleaning Material & Equip,V & J Knitwear Ltd,21014966,429.02
Borough Council of Kings Lynn and West Norfolk,E07000146,09/05/2022,Supplier Holding Account,Vehicle - repairs & Maint,North Street Tyres,22008150,962.76
Borough Council of Kings Lynn and West Norfolk,E07000146,09/05/2022,Street Sweeping,Animal Removal,Peaceful Pets Ltd,22008151,"1,215.00"
Borough Council of Kings Lynn and West Norfolk,E07000146,09/05/2022,Street Sweeping,Animal Removal,Peaceful Pets Ltd,22008152,660.00
Borough Council of Kings Lynn and West Norfolk,E07000146,09/05/2022,Custom House & Tics,Rent,R Gawn 1990 Accumulation & Maint Sett't,22008140,"1,280.00"
Borough Council of Kings Lynn and West Norfolk,E07000146,09/05/2022,Street Sweeping,Hazardous Waste Disposal,WEAAR Ltd,21014843,"1,650.00"
Borough Council of Kings Lynn and West Norfolk,E07000146,09/05/2022,ICT,Communications,Adept Technology Group Plc,21014758,"2,991.17"
Borough Council of Kings Lynn and West Norfolk,E07000146,09/05/2022,Corporate,Stationery & Office,Adept Technology Group Plc,21014758,"1,129.42"
Borough Council of Kings Lynn and West Norfolk,E07000146,09/05/2022,CCTV,Repairs & Maintenance,Adept Technology Group Plc,21014758,350.00
Borough Council of Kings Lynn and West Norfolk,E07000146,09/05/2022,ICT,Recoverable Fees,Adept Technology Group Plc,21014758,186.17
Borough Council of Kings Lynn and West Norfolk,E07000146,09/05/2022,Neighbourhood Teams,Fuel,RIX Petroleum (East Anglia) Ltd,21014569,"7,229.00"
Borough Council of Kings Lynn and West Norfolk,E07000146,09/05/2022,Public conveniences,Repairs & Maintenance,Robert Fox,21014918,"2,910.00"
Borough Council of Kings Lynn and West Norfolk,E07000146,09/05/2022,Public conveniences,Repairs & Maintenance,Robert Fox,21014918,460.00
Borough Council of Kings Lynn and West Norfolk,E07000146,12/05/2022,Planning Control,Professional Fees,Northstar Urban Design Ltd,21014588,"1,164.50"
Borough Council of Kings Lynn and West Norfolk,E07000146,12/05/2022,Nursery,Materials,Raes Flowerseeds Ltd,21014984,"6,675.06"
Borough Council of Kings Lynn and West Norfolk,E07000146,12/05/2022,Towns Fund Programme Management,Works,Burton Richards Ltd,21014997,"1,550.00"
Borough Council of Kings Lynn and West Norfolk,E07000146,12/05/2022,Public Cleansing,Sweeper Consumables,A T Johnson,21014990,"1,546.05"
Borough Council of Kings Lynn and West Norfolk,E07000146,12/05/2022,Natl Assist Act Burials,Burial Fees-Nat.Ass.Act,Thornalley Funeral Services Ltd,21014983,"1,045.00"
Borough Council of Kings Lynn and West Norfolk,E07000146,12/05/2022,Arts Centre Complex,Works,T M Browne Ltd,22008167,"14,143.81"
Borough Council of Kings Lynn and West Norfolk,E07000146,12/05/2022,Kings Court Service Charges,Tools And Equipment,Ken Booth & Co Ltd,21014563,810.28
Borough Council of Kings Lynn and West Norfolk,E07000146,12/05/2022,Careline,Tools And Equipment,Supra UK Ltd T/A The Key Safe Company,21014572,"4,245.00"
Borough Council of Kings Lynn and West Norfolk,E07000146,12/05/2022,ICT,Computer Software Maint,Access Intelligence Media and Communications Ltd,21015019,"3,600.00"
Borough Council of Kings Lynn and West Norfolk,E07000146,12/05/2022,Grounds Northern Area,Tools And Equipment,Groundsman Tools & Supplies Ltd,21014699,241.73
Borough Council of Kings Lynn and West Norfolk,E07000146,12/05/2022,Neighbourhood Teams,Tools And Equipment,Groundsman Tools & Supplies Ltd,21014699,274.96
Borough Council of Kings Lynn and West Norfolk,E07000146,12/05/2022,Fairstead Community  Centre,Repairs & Maintenance,Robert Fox,21015017,630.00
Borough Council of Kings Lynn and West Norfolk,E07000146,12/05/2022,Fairstead Community  Centre,Repairs & Maintenance,Robert Fox,21015017,90.00
Borough Council of Kings Lynn and West Norfolk,E07000146,12/05/2022,Public Cleansing,Sweeper Consumables,Kings Lynn Auto Electrical Ltd,21014980,726.52
Borough Council of Kings Lynn and West Norfolk,E07000146,12/05/2022,Careline,Advertising & Marketing,Your Local Paper Ltd,21014968,500.00
Borough Council of Kings Lynn and West Norfolk,E07000146,12/05/2022,LILY 5,Project Costs,Your Local Paper Ltd,21014968,500.00
Borough Council of Kings Lynn and West Norfolk,E07000146,12/05/2022,Jubilee 2022,Professional Fees,MED PTS Ambulance Services,21014975,"8,204.95"
Borough Council of Kings Lynn and West Norfolk,E07000146,12/05/2022,Hunstanton Southend Road,Contractor Works,Lovell Partnerships Ltd,21014998,"39,359.01"
Borough Council of Kings Lynn and West Norfolk,E07000146,12/05/2022,Jubilee 2022,Professional Fees,Boogie Monsters,22008166,"2,375.00"
Borough Council of Kings Lynn and West Norfolk,E07000146,12/05/2022,Public conveniences,Sewerage/Cesspool Empty,BACO-Compak (Norfolk) Ltd,21014995,"1,290.00"
Borough Council of Kings Lynn and West Norfolk,E07000146,12/05/2022,ICT,Computer Software Maint,Capita Business Services Ltd,21015026,"23,200.47"
Borough Council of Kings Lynn and West Norfolk,E07000146,12/05/2022,EZ- Roads/Infrastructure,Works,Norfolk County Council,22008170,675.90
Borough Council of Kings Lynn and West Norfolk,E07000146,12/05/2022,Public Cleansing,Repairs & Maintenance,Pick & Banham,21014973,668.75
Borough Council of Kings Lynn and West Norfolk,E07000146,12/05/2022,Financial Services,Postages,Royal Mail Group Ltd,22008161,92.76
Borough Council of Kings Lynn and West Norfolk,E07000146,12/05/2022,Benefit Administration,Postages,Royal Mail Group Ltd,22008161,380.28
Borough Council of Kings Lynn and West Norfolk,E07000146,12/05/2022,Cost of Collection - CTax,Postages,Royal Mail Group Ltd,22008161,592.11
Borough Council of Kings Lynn and West Norfolk,E07000146,12/05/2022,Kings Lynn Bid,Postages,Royal Mail Group Ltd,22008161,4.32
Borough Council of Kings Lynn and West Norfolk,E07000146,12/05/2022,Financial Services,Postages,Royal Mail Group Ltd,22008161,1.35
Borough Council of Kings Lynn and West Norfolk,E07000146,12/05/2022,Benefit Administration,Postages,Royal Mail Group Ltd,22008161,5.00
Borough Council of Kings Lynn and West Norfolk,E07000146,12/05/2022,Pub & Tourism int charges,Postages,Royal Mail Group Ltd,22008161,1.00
Borough Council of Kings Lynn and West Norfolk,E07000146,12/05/2022,Financial Services,Postages,Royal Mail Group Ltd,22008162,39.08
Borough Council of Kings Lynn and West Norfolk,E07000146,12/05/2022,Benefit Administration,Postages,Royal Mail Group Ltd,22008162,239.85
Borough Council of Kings Lynn and West Norfolk,E07000146,12/05/2022,Cost of Collection - CTax,Postages,Royal Mail Group Ltd,22008162,384.43
Borough Council of Kings Lynn and West Norfolk,E07000146,12/05/2022,Kings Lynn Bid,Postages,Royal Mail Group Ltd,22008162,8.64
Borough Council of Kings Lynn and West Norfolk,E07000146,12/05/2022,Benefit Administration,Postages,Royal Mail Group Ltd,22008162,1.96
Borough Council of Kings Lynn and West Norfolk,E07000146,12/05/2022,Pub & Tourism int charges,Postages,Royal Mail Group Ltd,22008162,6.86
Borough Council of Kings Lynn and West Norfolk,E07000146,12/05/2022,Internal Audit,Contracted Services,South Norfolk Council,21014961,"2,282.25"
Borough Council of Kings Lynn and West Norfolk,E07000146,12/05/2022,Supplier Holding Account,Vehicle - repairs & Maint,Paul Johnson Motor Services Ltd,22008174,265.80
Borough Council of Kings Lynn and West Norfolk,E07000146,12/05/2022,Supplier Holding Account,Vehicle - repairs & Maint,Paul Johnson Motor Services Ltd,22008174,"4,017.94"
Borough Council of Kings Lynn and West Norfolk,E07000146,12/05/2022,Supplier Holding Account,Vehicle - repairs & Maint,North Street Tyres,22008160,"1,247.07"
Borough Council of Kings Lynn and West Norfolk,E07000146,12/05/2022,Lynnsport 3,Contractor Works,Lovell Partnerships Ltd,21014970,"49,729.72"
Borough Council of Kings Lynn and West Norfolk,E07000146,12/05/2022,Lynnsport 1,Contractor Works,Lovell Partnerships Ltd,21014971,"7,024.39"
Borough Council of Kings Lynn and West Norfolk,E07000146,12/05/2022,Nora 5,Contractor Works,Lovell Partnerships Ltd,21014972,787.54
Borough Council of Kings Lynn and West Norfolk,E07000146,12/05/2022,Planning Policy - Dept,Professional Fees,T Leader St Johns Regulatory Fee Share Account,21015003,500.00
Borough Council of Kings Lynn and West Norfolk,E07000146,12/05/2022,Parks & Open Spaces,Tree Surgery,Golden Tree Surgeons Ltd,21015014,"1,130.00"
Borough Council of Kings Lynn and West Norfolk,E07000146,12/05/2022,ICT,Computer Hardware Maint,Bytes Software Services Ltd,21015025,"5,418.75"
Borough Council of Kings Lynn and West Norfolk,E07000146,12/05/2022,Refuse & Recyc Mgmt,Advertising & Marketing,Iliffe Media Publishing Ltd,21014593,544.00
Borough Council of Kings Lynn and West Norfolk,E07000146,12/05/2022,Cashless Pk JC (SN on street),Merchant Fees,Chipside Ltd,21015029,0.53
Borough Council of Kings Lynn and West Norfolk,E07000146,12/05/2022,Cashless Pk JG (Bk on street),Merchant Fees,Chipside Ltd,21015029,1.21
Borough Council of Kings Lynn and West Norfolk,E07000146,12/05/2022,Cashless Pk JE (NN on street),Merchant Fees,Chipside Ltd,21015029,18.30
Borough Council of Kings Lynn and West Norfolk,E07000146,12/05/2022,Cashless Pk KZ (KLWN on street),Merchant Fees,Chipside Ltd,21015029,44.21
Borough Council of Kings Lynn and West Norfolk,E07000146,12/05/2022,Cashless Pk JE (NN Carparks),Merchant Fees,Chipside Ltd,21015029,356.51
Borough Council of Kings Lynn and West Norfolk,E07000146,12/05/2022,Cashless Pk JI (GY on street),Merchant Fees,Chipside Ltd,21015029,365.27
Borough Council of Kings Lynn and West Norfolk,E07000146,12/05/2022,Cashless Pk JI (GY Carparks),Merchant Fees,Chipside Ltd,21015029,838.21
Borough Council of Kings Lynn and West Norfolk,E07000146,12/05/2022,Cashless Pk KZ (KLWN Carparks),Merchant Fees,Chipside Ltd,21015029,"1,782.12"
Borough Council of Kings Lynn and West Norfolk,E07000146,12/05/2022,Cashless Pk JG (Bk on street),Transaction Fee,Chipside Ltd,21015031,6.00
Borough Council of Kings Lynn and West Norfolk,E07000146,12/05/2022,Cashless Pk JE (NN on street),Transaction Fee,Chipside Ltd,21015031,115.00
Borough Council of Kings Lynn and West Norfolk,E07000146,12/05/2022,Cashless Pk KZ (KLWN on street),Transaction Fee,Chipside Ltd,21015031,183.25
Borough Council of Kings Lynn and West Norfolk,E07000146,12/05/2022,Cashless Pk JI (GY on street),Transaction Fee,Chipside Ltd,21015031,786.13
Borough Council of Kings Lynn and West Norfolk,E07000146,12/05/2022,Cashless Pk JC (SN on street),Transaction Fee,Chipside Ltd,21015031,943.42
Borough Council of Kings Lynn and West Norfolk,E07000146,12/05/2022,Cashless Pk JI (GY Carparks),Transaction Fee,Chipside Ltd,21015031,"1,489.92"
Borough Council of Kings Lynn and West Norfolk,E07000146,12/05/2022,Cashless Pk KZ (KLWN Carparks),Transaction Fee,Chipside Ltd,21015031,"4,184.92"
Borough Council of Kings Lynn and West Norfolk,E07000146,12/05/2022,NORA Phase 4,Professional Fees,Gateley Plc,21015048,"1,000.00"
Borough Council of Kings Lynn and West Norfolk,E07000146,12/05/2022,Salters Road,Professional Fees,Gateley Plc,21015045,"3,500.00"
Borough Council of Kings Lynn and West Norfolk,E07000146,12/05/2022,NORA Phase 4,Professional Fees,Gateley Plc,21015046,"2,000.00"
Borough Council of Kings Lynn and West Norfolk,E07000146,12/05/2022,Crematorium Trading Account,Memorial Plates,Anglia Sign Casting Ltd,21014987,907.11
Borough Council of Kings Lynn and West Norfolk,E07000146,12/05/2022,Financial Services,Recruitment,TMP (UK) Ltd,22008163,"6,406.68"
Borough Council of Kings Lynn and West Norfolk,E07000146,12/05/2022,Subscriptions,Membership & Subscription,West Devon Borough Council,21014969,"3,381.00"
Borough Council of Kings Lynn and West Norfolk,E07000146,12/05/2022,Food Hygiene General,Shellfish Sampling,Anglian Water Services Ltd,21014894,"1,485.33"
Borough Council of Kings Lynn and West Norfolk,E07000146,12/05/2022,ICT,Computer Hardware Maint,Enghouse Interactive UK Ltd,21014554,"1,656.85"
Borough Council of Kings Lynn and West Norfolk,E07000146,12/05/2022,EZ Dev of Spec Units,Works,R G Carter Cambridge Ltd,21014919,"243,089.12"
Borough Council of Kings Lynn and West Norfolk,E07000146,12/05/2022,Sports Grounds North,Materials,Advance Grass Solutions,21014986,612.50
Borough Council of Kings Lynn and West Norfolk,E07000146,12/05/2022,Sports Grounds Central,Materials,Advance Grass Solutions,21014986,612.50
Borough Council of Kings Lynn and West Norfolk,E07000146,12/05/2022,Towns Fund Programme Management,Works,Burton Richards Ltd,21015023,800.00
Borough Council of Kings Lynn and West Norfolk,E07000146,12/05/2022,KL Arts Centre,Hirings Ticketed,Jo Sarsby Personal Management,22008159,"1,829.17"
Borough Council of Kings Lynn and West Norfolk,E07000146,12/05/2022,KL Arts Centre,Hiring Charges Income,Jo Sarsby Personal Management,22008159,-421.67
Borough Council of Kings Lynn and West Norfolk,E07000146,12/05/2022,KL Arts Centre,Commission On Box Office,Jo Sarsby Personal Management,22008159,-109.75
Borough Council of Kings Lynn and West Norfolk,E07000146,12/05/2022,KL Arts Centre,PRS Recharge,Jo Sarsby Personal Management,22008159,-92.19
Borough Council of Kings Lynn and West Norfolk,E07000146,12/05/2022,KL Arts Centre,Credit Card Recharge,Jo Sarsby Personal Management,22008159,-87.22
Borough Council of Kings Lynn and West Norfolk,E07000146,12/05/2022,KL Arts Centre,Advertising Recharge,Jo Sarsby Personal Management,22008159,-200.00
Borough Council of Kings Lynn and West Norfolk,E07000146,16/05/2022,Rough Sleeper Fund,Covid 19,BACO-Compak (Norfolk) Ltd,21015084,580.00
Borough Council of Kings Lynn and West Norfolk,E07000146,16/05/2022,Parkway - Gaywood,Professional Fees,North Norfolk District Council,21015122,"2,197.20"
Borough Council of Kings Lynn and West Norfolk,E07000146,16/05/2022,Public Cleansing,Repairs & Maintenance,Pick & Banham,21015105,586.20
Borough Council of Kings Lynn and West Norfolk,E07000146,16/05/2022,General Property,Repairs & Maintenance,Smith Building Services Ltd,21014920,"1,295.00"
Borough Council of Kings Lynn and West Norfolk,E07000146,16/05/2022,Public Cleansing,Cleaning Material & Equip,V & J Knitwear Ltd,21015076,458.56
Borough Council of Kings Lynn and West Norfolk,E07000146,16/05/2022,Street Sweeping,Animal Removal,Peaceful Pets Ltd,22008181,700.83
Borough Council of Kings Lynn and West Norfolk,E07000146,16/05/2022,Street Sweeping,Animal Removal,Peaceful Pets Ltd,22008182,910.00
Borough Council of Kings Lynn and West Norfolk,E07000146,16/05/2022,Domestic Refuse,Added Years Pension,Norfolk Pension Fund,21015121,"-3,009.74"
Borough Council of Kings Lynn and West Norfolk,E07000146,16/05/2022,Trade Refuse,Added Years Pension,Norfolk Pension Fund,21015121,520.56
Borough Council of Kings Lynn and West Norfolk,E07000146,16/05/2022,Corporate,Added Years Pension,Norfolk Pension Fund,21015121,"20,140.60"
Borough Council of Kings Lynn and West Norfolk,E07000146,16/05/2022,ICT,Computer Software Maint,ESRI (UK) Ltd,21014599,"17,822.00"
Borough Council of Kings Lynn and West Norfolk,E07000146,16/05/2022,Kings Court Kings Lynn,Repairs & Maintenance,AMR Mechanical Services Ltd,21014908,418.54
Borough Council of Kings Lynn and West Norfolk,E07000146,16/05/2022,Parks & Open Spaces,Tree Surgery,Golden Tree Surgeons Ltd,21015101,"1,480.00"
Borough Council of Kings Lynn and West Norfolk,E07000146,16/05/2022,Parks & Open Spaces,Tree Surgery,Golden Tree Surgeons Ltd,21015102,800.00
Borough Council of Kings Lynn and West Norfolk,E07000146,16/05/2022,Training Holding Account,Training,Leadership in Action Ltd,21014683,"6,300.00"
Borough Council of Kings Lynn and West Norfolk,E07000146,16/05/2022,Training Holding Account,Training,Leadership in Action Ltd,21014688,"25,200.00"
Borough Council of Kings Lynn and West Norfolk,E07000146,16/05/2022,EZ- Roads/Infrastructure,Works,Survey Solutions,21015004,550.00
Borough Council of Kings Lynn and West Norfolk,E07000146,16/05/2022,West Winch Growth Area,Professional Fees,Gerald Eve LLP,21015068,"3,439.00"
Borough Council of Kings Lynn and West Norfolk,E07000146,16/05/2022,West Winch Growth Area,Professional Fees,Brecher LLP,21015063,735.00
Borough Council of Kings Lynn and West Norfolk,E07000146,16/05/2022,Community Renewal Fund,Consultants Fees,Hydrogen East Ltd T/A Net Zero East,21015069,"30,000.00"
Borough Council of Kings Lynn and West Norfolk,E07000146,16/05/2022,Heacham Toilets South Beach,Works,Walker Construction Services Ltd,21015106,"49,204.13"
Borough Council of Kings Lynn and West Norfolk,E07000146,16/05/2022,Street Sweeping,Hazardous Waste Disposal,WEAAR Ltd,21015018,"1,850.00"
Borough Council of Kings Lynn and West Norfolk,E07000146,16/05/2022,Kings Court Service Charges,Cleaning Material & Equip,Ken Booth & Co Ltd,21014592,596.20
Borough Council of Kings Lynn and West Norfolk,E07000146,19/05/2022,Cntrl & Community Service,Staff Welfare,BUPA,21015218,"1,316.99"
Borough Council of Kings Lynn and West Norfolk,E07000146,19/05/2022,Community Projects CRS,Service Level Agreements,Kings Lynn Festival Ltd,21015170,"15,000.00"
Borough Council of Kings Lynn and West Norfolk,E07000146,19/05/2022,Mintlyn Crematorium,Repairs & Maintenance,Neville Godfrey Ltd,21014914,"1,895.00"
Borough Council of Kings Lynn and West Norfolk,E07000146,19/05/2022,Conservation & Heritage,Countryside Grants,Norfolk County Council,21015147,"3,510.00"
Borough Council of Kings Lynn and West Norfolk,E07000146,19/05/2022,Parking Operations - Brgh,Repairs & Maintenance,Norfolk County Council,21015150,"1,103.65"
Borough Council of Kings Lynn and West Norfolk,E07000146,19/05/2022,Parking Operations - Brgh,Repairs & Maintenance,Norfolk County Council,21015151,882.92
Borough Council of Kings Lynn and West Norfolk,E07000146,19/05/2022,"St Edmunds, D'ham Mkt",Repairs & Maintenance,Richard C F Waite,21015140,450.00
Borough Council of Kings Lynn and West Norfolk,E07000146,19/05/2022,Financial Services,Postages,Royal Mail Group Ltd,22008194,"1,328.22"
Borough Council of Kings Lynn and West Norfolk,E07000146,19/05/2022,Benefit Administration,Postages,Royal Mail Group Ltd,22008194,358.08
Borough Council of Kings Lynn and West Norfolk,E07000146,19/05/2022,Cost of Collection - CTax,Postages,Royal Mail Group Ltd,22008194,552.48
Borough Council of Kings Lynn and West Norfolk,E07000146,19/05/2022,Kings Lynn Bid,Postages,Royal Mail Group Ltd,22008194,2.40
Borough Council of Kings Lynn and West Norfolk,E07000146,19/05/2022,Kings Lynn Bid,Postages,Royal Mail Group Ltd,22008194,5.86
Borough Council of Kings Lynn and West Norfolk,E07000146,19/05/2022,Benefit Administration,Postages,Royal Mail Group Ltd,22008194,2.45
Borough Council of Kings Lynn and West Norfolk,E07000146,19/05/2022,Pub & Tourism int charges,Postages,Royal Mail Group Ltd,22008194,1.49
Borough Council of Kings Lynn and West Norfolk,E07000146,19/05/2022,General Property,Rechargeable Works Insurance,Smith Building Services Ltd,21014845,"4,000.00"
Borough Council of Kings Lynn and West Norfolk,E07000146,19/05/2022,Coast Defence/Protection,Repairs & Maintenance,C G Godfrey Ltd,21015082,"10,657.04"
Borough Council of Kings Lynn and West Norfolk,E07000146,19/05/2022,Coast Defence/Protection,Repairs & Maintenance,C G Godfrey Ltd,21015083,"2,254.00"
Borough Council of Kings Lynn and West Norfolk,E07000146,19/05/2022,Community Projects CRS,Service Level Agreements,Hunstanton & District Festival of Arts,21015215,"4,300.00"
Borough Council of Kings Lynn and West Norfolk,E07000146,19/05/2022,Public Cleansing,Cleaning Material & Equip,V & J Knitwear Ltd,21015127,657.39
Borough Council of Kings Lynn and West Norfolk,E07000146,19/05/2022,Crematorium Trading Account,Memorial Seats (Resale),Street Master (South Wales) Ltd,21015134,476.30
Borough Council of Kings Lynn and West Norfolk,E07000146,19/05/2022,ICT,Computer Hardware Maint,Switchshop Ltd,21015133,"1,810.00"
Borough Council of Kings Lynn and West Norfolk,E07000146,19/05/2022,Mintlyn Crematorium,Repairs & Maintenance,AMR Electrical Services Ltd,21014840,"1,863.75"
Borough Council of Kings Lynn and West Norfolk,E07000146,19/05/2022,Vehicle Recharge on account,Fuel,Worldline IT Services UK Re Fuelgenie,22008198,"15,658.96"
Borough Council of Kings Lynn and West Norfolk,E07000146,19/05/2022,Vehicle Recharge on account,Fuel,Worldline IT Services UK Re Fuelgenie,22008198,1.42
Borough Council of Kings Lynn and West Norfolk,E07000146,19/05/2022,CCTV,Repairs & Maintenance,Focus Security (East Anglia) Ltd,21015210,688.00
Borough Council of Kings Lynn and West Norfolk,E07000146,19/05/2022,Housing Options Programme,Homeless Prevention Fund,Longhurst Group,21015168,"4,897.23"
Borough Council of Kings Lynn and West Norfolk,E07000146,19/05/2022,Printroom,Repairs & Maintenance,Fingerprint Digital Ltd,22008146,673.03
Borough Council of Kings Lynn and West Norfolk,E07000146,19/05/2022,General Property,Advertising & Marketing,Rightmove Group Ltd,21015006,720.00
Borough Council of Kings Lynn and West Norfolk,E07000146,19/05/2022,Training Holding Account,Training,AccessAble,21015020,"1,750.00"
Borough Council of Kings Lynn and West Norfolk,E07000146,19/05/2022,Home Improvements Agency,Agency Staff,Seven Resourcing Ltd,21014867,"1,327.66"
Borough Council of Kings Lynn and West Norfolk,E07000146,19/05/2022,Housing Options Programme,Temporary Accommodation,Broadland Housing Association,21015185,595.50
Borough Council of Kings Lynn and West Norfolk,E07000146,19/05/2022,Rough Sleeper Fund,Covid 19,Excaliber Security Services Ltd,21015206,"5,280.00"
Borough Council of Kings Lynn and West Norfolk,E07000146,19/05/2022,Rough Sleeper Fund,Covid 19,Excaliber Security Services Ltd,21015207,"5,510.40"
Borough Council of Kings Lynn and West Norfolk,E07000146,19/05/2022,St Georges Guildhall Complex,Professional Fees,Andrew Morton Associates,21014623,"4,750.00"
Borough Council of Kings Lynn and West Norfolk,E07000146,19/05/2022,West Winch Growth Area,Professional Fees,Brecher LLP,21015085,"2,866.50"
Borough Council of Kings Lynn and West Norfolk,E07000146,19/05/2022,Brochure & lead genrtn,Marketing / Tourism,Reg Clarke,21015141,900.00
Borough Council of Kings Lynn and West Norfolk,E07000146,19/05/2022,Nursery,Materials,Raes Flowerseeds Ltd,21014714,"1,954.68"
Borough Council of Kings Lynn and West Norfolk,E07000146,19/05/2022,Nora 5,External Fees/Consultancy,William H Brown,21015154,"1,500.00"
Borough Council of Kings Lynn and West Norfolk,E07000146,19/05/2022,ICT,Computer Software Maint,Civica UK Ltd,21014813,"12,020.09"
Borough Council of Kings Lynn and West Norfolk,E07000146,19/05/2022,Towns Fund Active and Clean Connectivity,Professional Fees,INVVU Construction Consultants Ltd,21015171,"14,475.00"
Borough Council of Kings Lynn and West Norfolk,E07000146,19/05/2022,Southgate Regen Area,Professional Fees,Building Design Partnership Ltd,21015191,"32,375.00"
Borough Council of Kings Lynn and West Norfolk,E07000146,19/05/2022,Resort Seafront,Repairs & Maintenance,E King Painter & Decorator,21015095,"3,185.00"
Borough Council of Kings Lynn and West Norfolk,E07000146,19/05/2022,Resort Seafront,Repairs & Maintenance,E King Painter & Decorator,21015095,500.00
Borough Council of Kings Lynn and West Norfolk,E07000146,19/05/2022,Resort Seafront,Repairs & Maintenance,E King Painter & Decorator,21015096,"1,035.00"
Borough Council of Kings Lynn and West Norfolk,E07000146,19/05/2022,Resort Seafront,Repairs & Maintenance,E King Painter & Decorator,21015096,250.00
Borough Council of Kings Lynn and West Norfolk,E07000146,19/05/2022,Housing Options Programme,Homeless Prevention Fund,AJ Devenish & HL Roan,22008190,"2,310.00"
Borough Council of Kings Lynn and West Norfolk,E07000146,19/05/2022,Housing Options Programme,Homeless Prevention Fund,Millsopps Estate Agent,22008189,"1,057.69"
Borough Council of Kings Lynn and West Norfolk,E07000146,19/05/2022,Jubilee 2022,Professional Fees,Odin Events,22008193,"1,150.00"
Borough Council of Kings Lynn and West Norfolk,E07000146,23/05/2022,EZ Dev of Spec Units,Works,R G Carter Cambridge Ltd,21014847,"353,734.77"
Borough Council of Kings Lynn and West Norfolk,E07000146,23/05/2022,Jubilee 2022,Professional Fees,Millington Enterprises t/a Radio West Norfolk,21015372,"1,292.00"
Borough Council of Kings Lynn and West Norfolk,E07000146,23/05/2022,NEWS Depot,Stationery & Office,ESPO,21015232,"1,619.40"
Borough Council of Kings Lynn and West Norfolk,E07000146,23/05/2022,Mintlyn Crematorium,Repairs & Maintenance,AMR Electrical Services Ltd,21015261,"1,589.00"
Borough Council of Kings Lynn and West Norfolk,E07000146,23/05/2022,Rough Sleeper Fund,Covid 19,Freebridge Community Housing,21015328,"1,133.33"
Borough Council of Kings Lynn and West Norfolk,E07000146,23/05/2022,Public Cleansing,Repairs & Maintenance,R & L Engineering Ltd,21015221,"1,200.00"
Borough Council of Kings Lynn and West Norfolk,E07000146,23/05/2022,Financial Services,Agency Staff,Hays Specialist Recruitment,21015303,"3,040.25"
Borough Council of Kings Lynn and West Norfolk,E07000146,23/05/2022,Financial Services,Agency Staff,Hays Specialist Recruitment,21015298,"2,432.20"
Borough Council of Kings Lynn and West Norfolk,E07000146,23/05/2022,Decrim - Operational,Miscellaneous,Patrol,21014871,"2,733.90"
Borough Council of Kings Lynn and West Norfolk,E07000146,23/05/2022,Parking Operations - Brgh,Tek Fund,Traffic Enforcement Centre,22008214,"10,000.00"
Borough Council of Kings Lynn and West Norfolk,E07000146,23/05/2022,Dog Warden and Services,Contracted Services,Dogotel Kennels & Cattery,22008203,"1,266.50"
Borough Council of Kings Lynn and West Norfolk,E07000146,23/05/2022,Dog Warden and Services,Kennel Fees,Dogotel Kennels & Cattery,22008203,284.00
Borough Council of Kings Lynn and West Norfolk,E07000146,23/05/2022,Dog Warden and Services,Kennel Fees Recd - Extl,Dogotel Kennels & Cattery,22008203,-307.00
Borough Council of Kings Lynn and West Norfolk,E07000146,23/05/2022,Printroom,Other Machine Lease,Konica Minolta Business Solutions,21015225,"2,509.85"
Borough Council of Kings Lynn and West Norfolk,E07000146,23/05/2022,Training Holding Account,Training,Ricardo-AEA Ltd,21014713,"2,376.00"
Borough Council of Kings Lynn and West Norfolk,E07000146,23/05/2022,Refuse - Black Bins,Equipment/Materials,MGB Plastics,21014833,"11,580.00"
Borough Council of Kings Lynn and West Norfolk,E07000146,23/05/2022,ICT,Computer Hardware Maint,Amtec Computer Services Ltd,21014821,"7,470.00"
Borough Council of Kings Lynn and West Norfolk,E07000146,23/05/2022,Valentine Road Hunstanton,Repairs & Maintenance,AMR Mechanical Services Ltd,21015013,717.00
Borough Council of Kings Lynn and West Norfolk,E07000146,23/05/2022,Jubilee 2022,Professional Fees,MED PTS Ambulance Services,21015366,"10,960.00"
Borough Council of Kings Lynn and West Norfolk,E07000146,23/05/2022,DuttonSports Pavillion,Repairs & Maintenance,Core Technology Projects Ltd,21015343,436.00
Borough Council of Kings Lynn and West Norfolk,E07000146,23/05/2022,Housing Options Programme,Homeless Prevention Fund,C Adcock,22008201,"4,221.00"
Borough Council of Kings Lynn and West Norfolk,E07000146,23/05/2022,Housing Options Programme,Homeless Prevention Fund,AJ Devenish & HL Roan,22008222,"2,310.00"
Borough Council of Kings Lynn and West Norfolk,E07000146,23/05/2022,Home Improvements Agency,Contractor Payments,Mr Brights Ltd,21014589,"7,596.00"
Borough Council of Kings Lynn and West Norfolk,E07000146,23/05/2022,Lynnsport 1,Works,North Norfolk District Council,21015309,"2,700.00"
Borough Council of Kings Lynn and West Norfolk,E07000146,23/05/2022,Lynnsport 1,Professional Fees,North Norfolk District Council,21015308,"1,400.00"
Borough Council of Kings Lynn and West Norfolk,E07000146,23/05/2022,Resort Trading Operations,Repairs & Maintenance,Penty Contractors Ltd,21015277,425.00
Borough Council of Kings Lynn and West Norfolk,E07000146,23/05/2022,GM Central Area,Materials,Origin Amenity Solutions Ltd,21014792,"1,358.00"
Borough Council of Kings Lynn and West Norfolk,E07000146,23/05/2022,Grounds Northern Area,Materials,Origin Amenity Solutions Ltd,21014872,"2,206.00"
Borough Council of Kings Lynn and West Norfolk,E07000146,23/05/2022,Grounds Northern Area,Materials,Origin Amenity Solutions Ltd,21014872,540.00
Borough Council of Kings Lynn and West Norfolk,E07000146,23/05/2022,Financial Services,Postages,Royal Mail Group Ltd,22008209,89.28
Borough Council of Kings Lynn and West Norfolk,E07000146,23/05/2022,Benefit Administration,Postages,Royal Mail Group Ltd,22008209,374.40
Borough Council of Kings Lynn and West Norfolk,E07000146,23/05/2022,Cost of Collection - CTax,Postages,Royal Mail Group Ltd,22008209,545.22
Borough Council of Kings Lynn and West Norfolk,E07000146,23/05/2022,Kings Lynn Bid,Postages,Royal Mail Group Ltd,22008209,74.40
Borough Council of Kings Lynn and West Norfolk,E07000146,23/05/2022,Financial Services,Postages,Royal Mail Group Ltd,22008209,1.41
Borough Council of Kings Lynn and West Norfolk,E07000146,23/05/2022,Benefit Administration,Postages,Royal Mail Group Ltd,22008209,6.50
Borough Council of Kings Lynn and West Norfolk,E07000146,23/05/2022,KL Arts Centre,Hirings Ticketed,KL Operatic & Dramatic Society,22008205,"13,350.00"
Borough Council of Kings Lynn and West Norfolk,E07000146,23/05/2022,KL Arts Centre,Hiring Charges Income,KL Operatic & Dramatic Society,22008205,"-2,669.98"
Borough Council of Kings Lynn and West Norfolk,E07000146,23/05/2022,KL Arts Centre,Commission On Box Office,KL Operatic & Dramatic Society,22008205,-801.00
Borough Council of Kings Lynn and West Norfolk,E07000146,23/05/2022,KL Arts Centre,PRS Recharge,KL Operatic & Dramatic Society,22008205,-11.66
Borough Council of Kings Lynn and West Norfolk,E07000146,23/05/2022,KL Arts Centre,Credit Card Recharge,KL Operatic & Dramatic Society,22008205,-474.00
Borough Council of Kings Lynn and West Norfolk,E07000146,23/05/2022,KL Arts Centre,Staff Recharge,KL Operatic & Dramatic Society,22008205,-200.00
Borough Council of Kings Lynn and West Norfolk,E07000146,23/05/2022,Supplier Holding Account,Vehicle - repairs & Maint,Paul Johnson Motor Services Ltd,22008206,355.80
Borough Council of Kings Lynn and West Norfolk,E07000146,23/05/2022,Supplier Holding Account,Vehicle - repairs & Maint,Paul Johnson Motor Services Ltd,22008206,"5,480.04"
Borough Council of Kings Lynn and West Norfolk,E07000146,23/05/2022,Cafe in the Park,Confectionery - Supplies,Eden Farm Hulleys Ltd,21015347,"1,185.88"
Borough Council of Kings Lynn and West Norfolk,E07000146,23/05/2022,NNDC Carpark Operation,Broadband Charge,Claranet Ltd,21015340,188.36
Borough Council of Kings Lynn and West Norfolk,E07000146,23/05/2022,ICT,Broadband Charge,Claranet Ltd,21015340,48.32
Borough Council of Kings Lynn and West Norfolk,E07000146,23/05/2022,South Lynn Community Centre,Broadband Charge,Claranet Ltd,21015340,48.32
Borough Council of Kings Lynn and West Norfolk,E07000146,23/05/2022,Benefit Administration,Broadband Charge,Claranet Ltd,21015340,288.85
Borough Council of Kings Lynn and West Norfolk,E07000146,23/05/2022,Town Hall Kings Lynn,Broadband Charge,Claranet Ltd,21015340,69.27
Borough Council of Kings Lynn and West Norfolk,E07000146,23/05/2022,Public Cleansing,Vehicle - repairs & Maint,Bucher Muncipal Ltd,21015220,439.38
Borough Council of Kings Lynn and West Norfolk,E07000146,23/05/2022,Jubilee 2022,Professional Fees,Whitelightning Pyrotechnics,21015314,"4,500.00"
Borough Council of Kings Lynn and West Norfolk,E07000146,23/05/2022,LILY 5,Lily Advisor Payments,West Norfolk Befriending,21015313,"1,030.00"
Borough Council of Kings Lynn and West Norfolk,E07000146,23/05/2022,Community Projects CRS,Service Level Agreements,SWAN Youth Project (Norfolk),21015325,"5,000.00"
Borough Council of Kings Lynn and West Norfolk,E07000146,23/05/2022,ICT,Computer Hardware Maint,Avanite Ltd,21014750,"2,532.00"
Borough Council of Kings Lynn and West Norfolk,E07000146,23/05/2022,Parks & Open Spaces,Tree Surgery,Golden Tree Surgeons Ltd,21015274,"1,230.00"
Borough Council of Kings Lynn and West Norfolk,E07000146,23/05/2022,Salters Road,Works,Golden Tree Surgeons Ltd,21015273,"5,020.00"
Borough Council of Kings Lynn and West Norfolk,E07000146,23/05/2022,West Winch Growth Area,Professional Fees,Engaging People Company,21015222,825.00
Borough Council of Kings Lynn and West Norfolk,E07000146,23/05/2022,LILY 5,Lily Advisor Payments,Family Action,21015241,987.08
Borough Council of Kings Lynn and West Norfolk,E07000146,23/05/2022,LILY 5,Lily Advisor Payments,West Norfolk Carers Association,21015312,"1,908.00"
Borough Council of Kings Lynn and West Norfolk,E07000146,23/05/2022,Salters Road,Professional Fees,Gateley Plc,21015212,"4,000.00"
Borough Council of Kings Lynn and West Norfolk,E07000146,23/05/2022,Replacement Financial Ledger,Computer Equip (Software),Embridge Consulting (UK) Ltd,21015327,688.00
Borough Council of Kings Lynn and West Norfolk,E07000146,23/05/2022,Financial Services,Contracted Services,Embridge Consulting (UK) Ltd,21015299,"1,244.84"
Borough Council of Kings Lynn and West Norfolk,E07000146,23/05/2022,Network Hardware holding,Tools And Equipment,Quality Essential Distribution Ltd,21014869,"4,738.08"
Borough Council of Kings Lynn and West Norfolk,E07000146,23/05/2022,Rough Sleeper Fund,Covid 19,Excaliber Security Services Ltd,21015243,"6,297.60"
Borough Council of Kings Lynn and West Norfolk,E07000146,23/05/2022,Rough Sleeper Fund,Covid 19,Excaliber Security Services Ltd,21015244,"6,297.60"
Borough Council of Kings Lynn and West Norfolk,E07000146,23/05/2022,Rough Sleeper Fund,Covid 19,Excaliber Security Services Ltd,21015354,"6,297.60"
Borough Council of Kings Lynn and West Norfolk,E07000146,23/05/2022,Rough Sleeper Fund,Covid 19,Excaliber Security Services Ltd,21015233,"5,510.40"
Borough Council of Kings Lynn and West Norfolk,E07000146,23/05/2022,Rough Sleeper Fund,Covid 19,Excaliber Security Services Ltd,21015353,"5,510.40"
Borough Council of Kings Lynn and West Norfolk,E07000146,23/05/2022,ICT,Computer Software Maint,MarXtar Ltd,21014797,"5,968.94"
Borough Council of Kings Lynn and West Norfolk,E07000146,23/05/2022,Parks and Open Space Replacement Play Area Equipment,Works,Playdale Playgrounds Ltd,21015231,"5,023.00"
Borough Council of Kings Lynn and West Norfolk,E07000146,23/05/2022,Parks and Open Space Replacement Play Area Equipment,Equipment/Materials,Playdale Playgrounds Ltd,21015231,"7,167.70"
Borough Council of Kings Lynn and West Norfolk,E07000146,23/05/2022,Southgate Regen Area,Professional Fees,Building Design Partnership Ltd,21015230,"23,076.00"
Borough Council of Kings Lynn and West Norfolk,E07000146,23/05/2022,Training Holding Account,Training,EQV (UK) Ltd,21014885,"3,980.00"
Borough Council of Kings Lynn and West Norfolk,E07000146,23/05/2022,Training Holding Account,Training,EQV (UK) Ltd,21014884,"4,285.00"
Borough Council of Kings Lynn and West Norfolk,E07000146,23/05/2022,Community Safety,Financial Assistance,Hanseatic Union charity,22008204,"5,856.00"
Borough Council of Kings Lynn and West Norfolk,E07000146,23/05/2022,Public conveniences,Sewerage/Cesspool Empty,BACO-Compak (Norfolk) Ltd,21015256,640.00
Borough Council of Kings Lynn and West Norfolk,E07000146,23/05/2022,Public conveniences,Sewerage/Cesspool Empty,BACO-Compak (Norfolk) Ltd,21015227,550.00
Borough Council of Kings Lynn and West Norfolk,E07000146,23/05/2022,ICT,Telephones,British Telecommunications PLC,21015297,524.82
Borough Council of Kings Lynn and West Norfolk,E07000146,23/05/2022,ICT,Broadband Charge,British Telecommunications PLC,21015296,"1,122.18"
Borough Council of Kings Lynn and West Norfolk,E07000146,23/05/2022,ICT,Computer Software Maint,Capita Business Services Ltd,21014273,"3,022.50"
Borough Council of Kings Lynn and West Norfolk,E07000146,23/05/2022,Sth Quay Sommerfield & Thomas BRP,Works,CGM Group (East Anglia) Ltd,21015094,"2,100.00"
Borough Council of Kings Lynn and West Norfolk,E07000146,24/05/2022,Public Cleansing,Sweeper Consumables,Bucher Muncipal Ltd,21015381,729.02
Borough Council of Kings Lynn and West Norfolk,E07000146,24/05/2022,Public Cleansing,Sweeper Consumables,Bucher Muncipal Ltd,21015382,729.02
Borough Council of Kings Lynn and West Norfolk,E07000146,24/05/2022,Housing Options Programme,Temporary Accommodation,The Grange Hotel,21007245,479.15
Borough Council of Kings Lynn and West Norfolk,E07000146,25/05/2022,Vehicle Recharge on account,Fuel,Worldline IT Services UK Re Fuelgenie,22008277,"11,986.23"
Borough Council of Kings Lynn and West Norfolk,E07000146,25/05/2022,Corporate,Bank Charges,Allpay,22008259,610.95
Borough Council of Kings Lynn and West Norfolk,E07000146,25/05/2022,ICT,Computer Software Maint,Capita Business Services Ltd,22008264,568.54
Borough Council of Kings Lynn and West Norfolk,E07000146,25/05/2022,KL Innovation Centre,Telephones,Spitfire Network Services Ltd,22008265,912.45
Borough Council of Kings Lynn and West Norfolk,E07000146,25/05/2022,Corporate,Bank Charges,Worldpay Ltd,22008266,374.18
Borough Council of Kings Lynn and West Norfolk,E07000146,25/05/2022,Corporate,Bank Charges,Worldpay Ltd,22008266,"14,532.30"
Borough Council of Kings Lynn and West Norfolk,E07000146,25/05/2022,Parking Operations - Brgh,Electricity Bulk Billing,EDF Energy Ltd,22008275,"4,588.93"
Borough Council of Kings Lynn and West Norfolk,E07000146,25/05/2022,Parking Operations - Brgh,Electricity Bulk Billing,EDF Energy Ltd,22008272,"7,168.89"
Borough Council of Kings Lynn and West Norfolk,E07000146,25/05/2022,Utility Holding,Electricity Bulk Billing,EDF Energy Ltd,22008276,"86,332.83"
Borough Council of Kings Lynn and West Norfolk,E07000146,26/05/2022,Personnel Services,Personnel DBS Checks,Disclosure & Barring Service,22008227,270.00
Borough Council of Kings Lynn and West Norfolk,E07000146,26/05/2022,Resort Seafront,Personnel DBS Checks,Disclosure & Barring Service,22008227,78.00
Borough Council of Kings Lynn and West Norfolk,E07000146,26/05/2022,Licensing,CRB Forms - Expenditure,Disclosure & Barring Service,22008227,38.00
Borough Council of Kings Lynn and West Norfolk,E07000146,26/05/2022,Public Cleansing,Personnel DBS Checks,Disclosure & Barring Service,22008227,40.00
Borough Council of Kings Lynn and West Norfolk,E07000146,26/05/2022,Cafe in the Park,Personnel DBS Checks,Disclosure & Barring Service,22008227,38.00
Borough Council of Kings Lynn and West Norfolk,E07000146,26/05/2022,Home Improvements Agency,Personnel DBS Checks,Disclosure & Barring Service,22008227,38.00
Borough Council of Kings Lynn and West Norfolk,E07000146,26/05/2022,Parking Operations - Brgh,Personnel DBS Checks,Disclosure & Barring Service,22008227,38.00
Borough Council of Kings Lynn and West Norfolk,E07000146,26/05/2022,ICT,Computer Software Maint,BIP Solutions Ltd,21015408,"7,921.35"
Borough Council of Kings Lynn and West Norfolk,E07000146,26/05/2022,CCTV,Computer Equipment,Posturite (UK) Ltd,21015219,998.95
Borough Council of Kings Lynn and West Norfolk,E07000146,26/05/2022,Register of Electors,Stationery & Office,Civica Election Services Ltd,22008130,709.66
Borough Council of Kings Lynn and West Norfolk,E07000146,26/05/2022,Mintlyn Crematorium,Trade Waste,Facultatieve Technologies Ltd,21014967,912.06
Borough Council of Kings Lynn and West Norfolk,E07000146,26/05/2022,Kings Court Service Charges,Window Cleaning,Clearview Window Cleaning,21015451,535.00
Borough Council of Kings Lynn and West Norfolk,E07000146,26/05/2022,Public Cleansing,Vehicle - repairs & Maint,Trakm8 Limited,22008068,239.94
Borough Council of Kings Lynn and West Norfolk,E07000146,26/05/2022,Public Cleansing,Vehicle - repairs & Maint,Trakm8 Limited,22008068,239.94
Borough Council of Kings Lynn and West Norfolk,E07000146,26/05/2022,Public Cleansing,Vehicle - repairs & Maint,Trakm8 Limited,22008068,239.94
Borough Council of Kings Lynn and West Norfolk,E07000146,26/05/2022,Careline,Vehicle - repairs & Maint,Trakm8 Limited,22008197,51.00
Borough Council of Kings Lynn and West Norfolk,E07000146,26/05/2022,Neighbourhood Teams,Vehicle - repairs & Maint,Trakm8 Limited,22008197,51.00
Borough Council of Kings Lynn and West Norfolk,E07000146,26/05/2022,Public Cleansing,Vehicle - repairs & Maint,Trakm8 Limited,22008197,51.00
Borough Council of Kings Lynn and West Norfolk,E07000146,26/05/2022,Domestic Refuse,Vehicle - repairs & Maint,Trakm8 Limited,22008197,51.00
Borough Council of Kings Lynn and West Norfolk,E07000146,26/05/2022,Public Cleansing,Vehicle - repairs & Maint,Trakm8 Limited,22008197,51.00
Borough Council of Kings Lynn and West Norfolk,E07000146,26/05/2022,Tech/Officers/Repairs,Vehicle - repairs & Maint,Trakm8 Limited,22008197,9.99
Borough Council of Kings Lynn and West Norfolk,E07000146,26/05/2022,Tech/Officers/Repairs,Vehicle - repairs & Maint,Trakm8 Limited,22008197,9.99
Borough Council of Kings Lynn and West Norfolk,E07000146,26/05/2022,Grounds Northern Area,Vehicle - repairs & Maint,Trakm8 Limited,22008197,9.99
Borough Council of Kings Lynn and West Norfolk,E07000146,26/05/2022,Tech/Officers/Repairs,Vehicle - repairs & Maint,Trakm8 Limited,22008197,51.00
Borough Council of Kings Lynn and West Norfolk,E07000146,26/05/2022,Public Cleansing,Vehicle - repairs & Maint,Trakm8 Limited,22008197,51.00
Borough Council of Kings Lynn and West Norfolk,E07000146,26/05/2022,Grounds Northern Area,Vehicle - repairs & Maint,Trakm8 Limited,22008197,51.00
Borough Council of Kings Lynn and West Norfolk,E07000146,26/05/2022,Public Cleansing,Vehicle - repairs & Maint,Trakm8 Limited,22008197,51.00
Borough Council of Kings Lynn and West Norfolk,E07000146,26/05/2022,Planning Control,Professional Fees,Strutt & Parker LLP,21015412,"1,895.20"
Borough Council of Kings Lynn and West Norfolk,E07000146,26/05/2022,Kings Court Service Charges,Cleaning Material & Equip,Ken Booth & Co Ltd,21014948,462.49
Borough Council of Kings Lynn and West Norfolk,E07000146,26/05/2022,ICT,Telephones,Adept Technology Group Plc,21015287,"5,929.87"
Borough Council of Kings Lynn and West Norfolk,E07000146,26/05/2022,Sports Grounds South,Repairs & Maintenance,Beacon Water Treatments Ltd,21013245,580.00
Borough Council of Kings Lynn and West Norfolk,E07000146,26/05/2022,Training Holding Account,Training,March on Stress,22008234,"5,837.54"
Borough Council of Kings Lynn and West Norfolk,E07000146,26/05/2022,Parking Operations - Brgh,Repairs & Maintenance,E Akers,21015395,925.00
Borough Council of Kings Lynn and West Norfolk,E07000146,26/05/2022,CCTV,Vehicle - repairs & Maint,Ford & Slater DAF Kings Lynn,21015417,524.34
Borough Council of Kings Lynn and West Norfolk,E07000146,26/05/2022,Cashless Pk JI (GY Carparks),Agency,Great Yarmouth Borough Council,22008229,"87,953.00"
Borough Council of Kings Lynn and West Norfolk,E07000146,26/05/2022,Parking Operations - Brgh,Tools And Equipment,Metric Group Ltd,21014911,"2,107.00"
Borough Council of Kings Lynn and West Norfolk,E07000146,26/05/2022,General Property,Repairs & Maintenance,Neville Godfrey Ltd,21015401,"1,675.00"
Borough Council of Kings Lynn and West Norfolk,E07000146,26/05/2022,General Property,Repairs & Maintenance,Neville Godfrey Ltd,21015275,"1,895.00"
Borough Council of Kings Lynn and West Norfolk,E07000146,26/05/2022,Guildhall & Art - Supp,Agency Staff,Norfolk County Council,21015148,"2,357.00"
Borough Council of Kings Lynn and West Norfolk,E07000146,26/05/2022,Parkway - Gaywood,External Fees/Consultancy,Norfolk County Council,21015367,"3,244.80"
Borough Council of Kings Lynn and West Norfolk,E07000146,26/05/2022,Cashless Pk JE (NN Carparks),Agency,North Norfolk District Council,22008230,"36,072.10"
Borough Council of Kings Lynn and West Norfolk,E07000146,26/05/2022,Parking Operations - Brgh,Professional Fees,North Norfolk District Council,21015450,"1,265.00"
Borough Council of Kings Lynn and West Norfolk,E07000146,26/05/2022,Head of Legal Services,Professional Fees,North Norfolk District Council,21015432,550.00
Borough Council of Kings Lynn and West Norfolk,E07000146,26/05/2022,General Property,Repairs & Maintenance,Smith Building Services Ltd,21015403,"1,545.00"
Borough Council of Kings Lynn and West Norfolk,E07000146,26/05/2022,GM Central Area,Vehicle - repairs & Maint,Thurlow Nunn Standen Ltd,21015002,973.61
Borough Council of Kings Lynn and West Norfolk,E07000146,26/05/2022,Parks & Open Spaces,Insurance Excess,Zurich Insurance Plc,22008240,500.00
Borough Council of Kings Lynn and West Norfolk,E07000146,26/05/2022,ICT,MPhone Usage & Top-up,Vodafone (Corporate) Ltd,22008241,806.87
Borough Council of Kings Lynn and West Norfolk,E07000146,26/05/2022,ICT,MPhone Usage & Top-up,Vodafone (Corporate) Ltd,22008241,-0.11
Borough Council of Kings Lynn and West Norfolk,E07000146,26/05/2022,ICT,MPhone Usage & Top-up,Vodafone (Corporate) Ltd,22008241,-460.55
Borough Council of Kings Lynn and West Norfolk,E07000146,26/05/2022,ICT,MPhone Usage & Top-up,Vodafone (Corporate) Ltd,22008242,"5,494.98"
Borough Council of Kings Lynn and West Norfolk,E07000146,26/05/2022,ICT,MPhone Usage & Top-up,Vodafone (Corporate) Ltd,22008242,-606.69
Borough Council of Kings Lynn and West Norfolk,E07000146,26/05/2022,ICT,MPhone Usage & Top-up,Vodafone (Corporate) Ltd,22008242,-2.93
Borough Council of Kings Lynn and West Norfolk,E07000146,26/05/2022,Rough Sleeper Initiative Y3,Consultants Fees,The Purfleet Trust,21015425,"32,310.50"
Borough Council of Kings Lynn and West Norfolk,E07000146,26/05/2022,ICT,Repairs & Maintenance,PPL PRS Ltd,21015445,823.01
Borough Council of Kings Lynn and West Norfolk,E07000146,26/05/2022,Printroom,Materials,Premier Paper Group Ltd,21015370,"1,779.35"
Borough Council of Kings Lynn and West Norfolk,E07000146,26/05/2022,Printroom,Materials,Premier Paper Group Ltd,21015370,8.46
Borough Council of Kings Lynn and West Norfolk,E07000146,26/05/2022,Financial Services,Agency Staff,Hays Specialist Recruitment,21015467,"3,040.25"
Borough Council of Kings Lynn and West Norfolk,E07000146,26/05/2022,Careline,Membership & Subscription,Northern Housing Consortium,21015449,"1,275.00"
Borough Council of Kings Lynn and West Norfolk,E07000146,26/05/2022,Subscriptions,Membership & Subscription,District Councils Network,21014889,"4,008.00"
Borough Council of Kings Lynn and West Norfolk,E07000146,26/05/2022,NNDC Carpark Operation,Security Services Charge,LOOMIS UK Ltd,21015455,278.27
Borough Council of Kings Lynn and West Norfolk,E07000146,26/05/2022,Leisure Management Costs,Security Services Charge,LOOMIS UK Ltd,21015455,524.92
Borough Council of Kings Lynn and West Norfolk,E07000146,26/05/2022,Parking Operations - Brgh,Security Services Charge,LOOMIS UK Ltd,21015455,727.42
Borough Council of Kings Lynn and West Norfolk,E07000146,26/05/2022,Street Lighting,Repairs & Maintenance,Westcotec Ltd,21014841,"1,103.97"
Borough Council of Kings Lynn and West Norfolk,E07000146,26/05/2022,Green Bins/Recycling,Equipment/Materials,MGB Plastics,21014878,"13,290.00"
Borough Council of Kings Lynn and West Norfolk,E07000146,26/05/2022,Parkway - Gaywood,Contractor Works,Lovell Partnerships Ltd,21015015,"23,937.17"
Borough Council of Kings Lynn and West Norfolk,E07000146,26/05/2022,NEWS Depot,Repairs & Maintenance,Core Technology Projects Ltd,21015342,882.00
Borough Council of Kings Lynn and West Norfolk,E07000146,26/05/2022,Home Improvements Agency,Agency Staff,Seven Resourcing Ltd,21015005,"1,538.50"
Borough Council of Kings Lynn and West Norfolk,E07000146,26/05/2022,Training Holding Account,Training,St Thomas Training Ltd,21015135,625.00
Borough Council of Kings Lynn and West Norfolk,E07000146,26/05/2022,Training Holding Account,Training,St Thomas Training Ltd,21015136,625.00
Borough Council of Kings Lynn and West Norfolk,E07000146,26/05/2022,Stories of Lynn,Advertising & Marketing,Kingfisher Media Ltd,21015028,500.00
Borough Council of Kings Lynn and West Norfolk,E07000146,26/05/2022,P Health- BJF Outreach,Homeless Prevention Fund,Benjamin Foundation,21015086,"2,500.00"
Borough Council of Kings Lynn and West Norfolk,E07000146,26/05/2022,Public Realm/Town Deal,Equipment/Materials,Stuart Power Ltd,21015379,857.14
Borough Council of Kings Lynn and West Norfolk,E07000146,26/05/2022,Climate Change,Small Projects,Robert Fencing Ltd,21015284,"1,125.00"
Borough Council of Kings Lynn and West Norfolk,E07000146,26/05/2022,Climate Change,Small Projects,Robert Fencing Ltd,21015284,"2,393.32"
Borough Council of Kings Lynn and West Norfolk,E07000146,26/05/2022,Network Hardware holding,Tools And Equipment,Quality Essential Distribution Ltd,21014870,"19,643.26"
Borough Council of Kings Lynn and West Norfolk,E07000146,26/05/2022,Crematorium Trading Account,Webcasts/Tributes/Recordings,Vivedia Ltd,21014929,"2,666.00"
Borough Council of Kings Lynn and West Norfolk,E07000146,26/05/2022,West Winch Growth Area,Professional Fees,Gerald Eve LLP,21015357,"2,595.00"
Borough Council of Kings Lynn and West Norfolk,E07000146,26/05/2022,KL Innovation Centre,Repairs & Maintenance,Lucid Systems Ltd,21014822,430.50
Borough Council of Kings Lynn and West Norfolk,E07000146,26/05/2022,Climate Change,Contractor Payments,University of East Anglia,21015473,"5,119.00"
Borough Council of Kings Lynn and West Norfolk,E07000146,26/05/2022,Rough Sleeper Fund,Covid 19,Bunkabin Ltd,21015087,"2,112.00"
Borough Council of Kings Lynn and West Norfolk,E07000146,26/05/2022,Rough Sleeper Fund,Covid 19,Bunkabin Ltd,21015088,"1,848.00"
Borough Council of Kings Lynn and West Norfolk,E07000146,26/05/2022,EZ Premises Costs,Professional Fees,EDP Environmental Ltd,21015200,676.00
Borough Council of Kings Lynn and West Norfolk,E07000146,26/05/2022,Sports Grounds North,Materials,Advance Grass Solutions,21015405,"1,618.46"
Borough Council of Kings Lynn and West Norfolk,E07000146,26/05/2022,Sports Grounds Central,Materials,Advance Grass Solutions,21015405,456.00
Borough Council of Kings Lynn and West Norfolk,E07000146,26/05/2022,Sports Grounds North,Materials,Advance Grass Solutions,21015456,842.50
Borough Council of Kings Lynn and West Norfolk,E07000146,26/05/2022,Sports Grounds Central,Materials,Advance Grass Solutions,21015456,842.50
Borough Council of Kings Lynn and West Norfolk,E07000146,26/05/2022,NEWS Depot,Repairs & Maintenance,Acumen Waste Services Ltd,21014985,860.00
Borough Council of Kings Lynn and West Norfolk,E07000146,26/05/2022,ICT,Communications,Nominet UK,21014953,765.94
Borough Council of Kings Lynn and West Norfolk,E07000146,26/05/2022,Careline,Tools And Equipment,HOIP Telecom Ltd,21015443,792.50
Borough Council of Kings Lynn and West Norfolk,E07000146,26/05/2022,Neighbourhood Teams,Covid 19,Enterprise Flex-E Rent,21015034,693.00
Borough Council of Kings Lynn and West Norfolk,E07000146,26/05/2022,COMF Phase 3,Agency Staff,Vivid Resourcing,21014861,"2,619.79"
Borough Council of Kings Lynn and West Norfolk,E07000146,26/05/2022,VAT,VAT Input - VAT Only Purchases,Marston (Holdings) Ltd,22008199,"1,785.80"
Borough Council of Kings Lynn and West Norfolk,E07000146,26/05/2022,Head of Legal Services,External Legal fees,Iken Business Ltd,22008257,"5,057.00"
Borough Council of Kings Lynn and West Norfolk,E07000146,26/05/2022,Public Realm/Town Deal,Professional Fees,Mills & Reeve LLP,21015416,"2,779.50"
Borough Council of Kings Lynn and West Norfolk,E07000146,26/05/2022,Planning Control,Professional Fees,RCA Regeneration Ltd,21014868,"2,250.00"
Borough Council of Kings Lynn and West Norfolk,E07000146,26/05/2022,Resort Seafront,Repairs & Maintenance,E King Painter & Decorator,21015268,"4,485.00"
Borough Council of Kings Lynn and West Norfolk,E07000146,26/05/2022,Resort Seafront,Repairs & Maintenance,E King Painter & Decorator,21015268,700.00
Borough Council of Kings Lynn and West Norfolk,E07000146,30/05/2022,Closed Churchyards,Repairs & Maintenance,PIKESTAFF BUILDING CO LTD,21015283,"5,705.00"
Borough Council of Kings Lynn and West Norfolk,E07000146,30/05/2022,Closed Churchyards,Repairs & Maintenance,PIKESTAFF BUILDING CO LTD,21015283,"2,000.00"
Borough Council of Kings Lynn and West Norfolk,E07000146,30/05/2022,Environmental Protection,Agency Staff,Vivid Resourcing,21015478,"3,011.04"
Borough Council of Kings Lynn and West Norfolk,E07000146,30/05/2022,Careline,Tools And Equipment,Chiptech International Ltd,21015474,"8,240.20"
Borough Council of Kings Lynn and West Norfolk,E07000146,30/05/2022,Chrg Priv Water Supplies,Drinking Water,Carol Sherry T/A Aqua Samplers,21015479,"2,022.25"
Borough Council of Kings Lynn and West Norfolk,E07000146,30/05/2022,Public Realm/Town Deal,Professional Fees,Mills & Reeve LLP,21015549,459.00
Borough Council of Kings Lynn and West Norfolk,E07000146,30/05/2022,Towns Fund Active and Clean Connectivity,Professional Fees,Pell Frischmann Consultants Ltd,21015143,"9,255.36"
Borough Council of Kings Lynn and West Norfolk,E07000146,30/05/2022,Extra planning Income - 20%,Agency Staff,Capita Property & Infrastructure Ltd,21015505,"17,498.00"
Borough Council of Kings Lynn and West Norfolk,E07000146,30/05/2022,Food Hygiene General,Professional Fees,E Churchill,22008280,"1,000.00"
Borough Council of Kings Lynn and West Norfolk,E07000146,30/05/2022,Jubilee 2022,Professional Fees,Sam Cook,22008292,900.00
Borough Council of Kings Lynn and West Norfolk,E07000146,30/05/2022,Home Improvements Agency,Miscellaneous,Chas D Allflatt Ltd,22008279,852.02
Borough Council of Kings Lynn and West Norfolk,E07000146,30/05/2022,CCTV,Repairs & Maintenance,E Akers,21015265,"1,167.59"
Borough Council of Kings Lynn and West Norfolk,E07000146,30/05/2022,KL Innovation Centre,Contract Cleaning,Mr Brights Ltd,21015430,"2,067.12"
Borough Council of Kings Lynn and West Norfolk,E07000146,30/05/2022,Financial Services,Postages,Royal Mail Group Ltd,22008298,104.47
Borough Council of Kings Lynn and West Norfolk,E07000146,30/05/2022,Benefit Administration,Postages,Royal Mail Group Ltd,22008298,439.03
Borough Council of Kings Lynn and West Norfolk,E07000146,30/05/2022,Cost of Collection - CTax,Postages,Royal Mail Group Ltd,22008298,491.47
Borough Council of Kings Lynn and West Norfolk,E07000146,30/05/2022,Kings Lynn Bid,Postages,Royal Mail Group Ltd,22008298,1.47
Borough Council of Kings Lynn and West Norfolk,E07000146,30/05/2022,Benefit Administration,Postages,Royal Mail Group Ltd,22008298,3.92
Borough Council of Kings Lynn and West Norfolk,E07000146,30/05/2022,Cost of Collection - CTax,Postages,Royal Mail Group Ltd,22008298,2.45
Borough Council of Kings Lynn and West Norfolk,E07000146,30/05/2022,Pub & Tourism int charges,Postages,Royal Mail Group Ltd,22008298,6.86
Borough Council of Kings Lynn and West Norfolk,E07000146,30/05/2022,Rough Sleeper Initiative Y3,Miscellaneous,The Purfleet Trust,21015246,795.00
Borough Council of Kings Lynn and West Norfolk,E07000146,30/05/2022,Home Improvements Agency,Agency,David Trundley Design Services Ltd,21015319,525.00
Borough Council of Kings Lynn and West Norfolk,E07000146,30/05/2022,Community Safety,Corporate Items,Mallard Consultancy Ltd,21015223,999.00
Borough Council of Kings Lynn and West Norfolk,E07000146,30/05/2022,Civic Function Expenses,Civic Regalia,Vaughtons,21014862,781.09
Borough Council of Kings Lynn and West Norfolk,E07000146,30/05/2022,Housing Options Programme,Temporary Accommodation,The Grange Hotel,21015484,550.02
Borough Council of Kings Lynn and West Norfolk,E07000146,30/05/2022,Housing Options Programme,Temporary Accommodation,The Grange Hotel,21015485,725.00
Borough Council of Kings Lynn and West Norfolk,E07000146,30/05/2022,Housing Options Programme,Temporary Accommodation,The Grange Hotel,21015486,641.69
Borough Council of Kings Lynn and West Norfolk,E07000146,30/05/2022,Housing Options Programme,Temporary Accommodation,The Grange Hotel,21015487,641.69
Borough Council of Kings Lynn and West Norfolk,E07000146,30/05/2022,Natl Assist Act Burials,Burial Fees-Nat.Ass.Act,Thornalley Funeral Services Ltd,21015559,"1,170.00"
Borough Council of Kings Lynn and West Norfolk,E07000146,30/05/2022,Housing Options Programme,Homeless Prevention Fund,Freebridge Community Housing,21015530,"2,748.95"
Borough Council of Kings Lynn and West Norfolk,E07000146,30/05/2022,Financial Services,Agency Staff,Hays Specialist Recruitment,21015539,"3,040.25"
Borough Council of Kings Lynn and West Norfolk,E07000146,30/05/2022,Home Improvements Agency,Advertising & Marketing,Hunstanton Town and Around,21015563,267.00
Borough Council of Kings Lynn and West Norfolk,E07000146,30/05/2022,LILY 5,Advertising & Marketing,Hunstanton Town and Around,21015563,267.00
Borough Council of Kings Lynn and West Norfolk,E07000146,30/05/2022,Careline,Advertising & Marketing,Hunstanton Town and Around,21015563,275.10
Borough Council of Kings Lynn and West Norfolk,E07000146,30/05/2022,Parks & Open Spaces,Tree Surgery,Golden Tree Surgeons Ltd,21015519,"3,070.00"
Borough Council of Kings Lynn and West Norfolk,E07000146,30/05/2022,Parks & Open Spaces,Tree Surgery,Golden Tree Surgeons Ltd,21015520,"2,470.00"
Borough Council of Kings Lynn and West Norfolk,E07000146,30/05/2022,Parks & Open Spaces,Tree Surgery,Golden Tree Surgeons Ltd,21015521,"2,300.00"
Borough Council of Kings Lynn and West Norfolk,E07000146,30/05/2022,Parks & Open Spaces,Tree Surgery,Golden Tree Surgeons Ltd,21015522,"3,500.00"
Borough Council of Kings Lynn and West Norfolk,E07000146,30/05/2022,Riverfront regeneration,Professional Fees,Survey Solutions,21015433,"4,335.00"
Borough Council of Kings Lynn and West Norfolk,E07000146,30/05/2022,Development Control,Planning Fees,Portal / Planquest Ltd,22008291,"3,234.00"
Borough Council of Kings Lynn and West Norfolk,E07000146,30/05/2022,LILY 5,Lily Advisor Payments,Norfolk and Waveney Mind,21015551,"1,908.00"
Borough Council of Kings Lynn and West Norfolk,E07000146,30/05/2022,Neighbourhood Teams,Vehicle - repairs & Maint,Able Engineering Ltd,21015476,"4,528.20"
Borough Council of Kings Lynn and West Norfolk,E07000146,30/05/2022,Neighbourhood Teams,Vehicle - repairs & Maint,Able Engineering Ltd,21015477,"3,773.50"
Borough Council of Kings Lynn and West Norfolk,E07000146,30/05/2022,Public Cleansing,Cleaning Material & Equip,V & J Knitwear Ltd,21015571,605.81
Borough Council of Kings Lynn and West Norfolk,E07000146,06/06/2022,Air Quality,Tools And Equipment,Dell Corporation Ltd,21015446,633.70
Borough Council of Kings Lynn and West Norfolk,E07000146,06/06/2022,Kings Court Kings Lynn,Furniture,ESPO,21015350,526.00
Borough Council of Kings Lynn and West Norfolk,E07000146,06/06/2022,Public Cleansing,Vehicle - repairs & Maint,Ford & Slater DAF Kings Lynn,21015592,"1,141.80"
Borough Council of Kings Lynn and West Norfolk,E07000146,06/06/2022,Public Cleansing,Vehicle - repairs & Maint,Ford & Slater DAF Kings Lynn,21015592,91.00
Borough Council of Kings Lynn and West Norfolk,E07000146,06/06/2022,Public Cleansing,Cleaning Material & Equip,Glasdon UK Ltd,21015044,970.55
Borough Council of Kings Lynn and West Norfolk,E07000146,06/06/2022,Parking Operations - Brgh,Repairs & Maintenance,Metric Group Ltd,21015060,891.94
Borough Council of Kings Lynn and West Norfolk,E07000146,06/06/2022,Parking Operations - Brgh,Repairs & Maintenance,Metric Group Ltd,21015061,535.10
Borough Council of Kings Lynn and West Norfolk,E07000146,06/06/2022,Open Cemeteries,Repairs & Maintenance,Neville Godfrey Ltd,21015627,"1,545.00"
Borough Council of Kings Lynn and West Norfolk,E07000146,06/06/2022,Planning Policy - Dept,Professional Fees,Norwich City Council,21015672,"10,000.00"
Borough Council of Kings Lynn and West Norfolk,E07000146,06/06/2022,North Lynn Industrial Estate,Repairs & Maintenance,Smith Building Services Ltd,21015285,"1,045.00"
Borough Council of Kings Lynn and West Norfolk,E07000146,06/06/2022,GM Central Area,Materials,Kernock Park Plants Ltd,21015482,"1,324.00"
Borough Council of Kings Lynn and West Norfolk,E07000146,06/06/2022,EZ Dev of Spec Units,External Fees/Consultancy,G C Baxter & Associates Ltd,21015636,"6,045.00"
Borough Council of Kings Lynn and West Norfolk,E07000146,06/06/2022,Jubilee 2022,Professional Fees,Able Engineering Ltd,21015618,"3,330.00"
Borough Council of Kings Lynn and West Norfolk,E07000146,06/06/2022,Printroom,Materials,Canon (UK) Limited,21014904,923.25
Borough Council of Kings Lynn and West Norfolk,E07000146,06/06/2022,Cafe in the Park,Confectionery - Supplies,Eden Farm Hulleys Ltd,21015633,"1,145.00"
Borough Council of Kings Lynn and West Norfolk,E07000146,06/06/2022,NNDC Carpark Operation,Stationery & Office,Bemrose Booth Paragon Ltd,21014899,"2,752.00"
Borough Council of Kings Lynn and West Norfolk,E07000146,06/06/2022,KL Innovation Centre,Repairs & Maintenance,NVCS Ltd,21015009,780.00
Borough Council of Kings Lynn and West Norfolk,E07000146,06/06/2022,Housing Options Programme,Temporary Accommodation,The Grange Hotel,21015651,641.69
Borough Council of Kings Lynn and West Norfolk,E07000146,06/06/2022,Housing Options Programme,Temporary Accommodation,The Grange Hotel,21015652,641.69
Borough Council of Kings Lynn and West Norfolk,E07000146,06/06/2022,Housing Options Programme,Temporary Accommodation,The Grange Hotel,21015654,554.19
Borough Council of Kings Lynn and West Norfolk,E07000146,06/06/2022,Housing Options Programme,Temporary Accommodation,The Grange Hotel,21015657,554.19
Borough Council of Kings Lynn and West Norfolk,E07000146,06/06/2022,Public Cleansing,Cleaning Material & Equip,V & J Knitwear Ltd,21015597,760.56
Borough Council of Kings Lynn and West Norfolk,E07000146,06/06/2022,Public Cleansing,Cleaning Material & Equip,V & J Knitwear Ltd,21015578,600.85
Borough Council of Kings Lynn and West Norfolk,E07000146,06/06/2022,Resort Seafront,Tools And Equipment,GrafityP,21015213,912.34
Borough Council of Kings Lynn and West Norfolk,E07000146,06/06/2022,Kings Court Service Charges,Cleaning Material & Equip,Ken Booth & Co Ltd,21015033,422.48
Borough Council of Kings Lynn and West Norfolk,E07000146,06/06/2022,CCTV Breckland,Repairs & Maintenance,Focus Security (East Anglia) Ltd,21015634,192.00
Borough Council of Kings Lynn and West Norfolk,E07000146,06/06/2022,CCTV,Repairs & Maintenance,Focus Security (East Anglia) Ltd,21015634,500.00
Borough Council of Kings Lynn and West Norfolk,E07000146,06/06/2022,ICT,Telephones,EE Limited,21015177,452.44
Borough Council of Kings Lynn and West Norfolk,E07000146,06/06/2022,Planning Control,Professional Fees,T Leader St Johns Regulatory Fee Share Account,21015684,"1,250.00"
Borough Council of Kings Lynn and West Norfolk,E07000146,06/06/2022,Planning Control,Professional Fees,T Leader St Johns Regulatory Fee Share Account,21015683,"3,000.00"
Borough Council of Kings Lynn and West Norfolk,E07000146,06/06/2022,Home Improvements Agency,Agency Staff,Seven Resourcing Ltd,21015300,"1,136.04"
Borough Council of Kings Lynn and West Norfolk,E07000146,06/06/2022,Parks & Open Spaces,Tree Surgery,Golden Tree Surgeons Ltd,21015626,"4,000.00"
Borough Council of Kings Lynn and West Norfolk,E07000146,06/06/2022,DWP at Kings Court,Repairs & Maintenance,MPD FM Ltd,21015161,"6,496.56"
Borough Council of Kings Lynn and West Norfolk,E07000146,06/06/2022,DWP at Kings Court,Repairs & Maintenance,MPD FM Ltd,21015160,"2,609.55"
Borough Council of Kings Lynn and West Norfolk,E07000146,06/06/2022,Sth Quay Sommerfield & Thomas BRP,External Fees/Consultancy,Roderick Shelton Ltd,21015676,"1,800.00"
Borough Council of Kings Lynn and West Norfolk,E07000146,06/06/2022,Stories of Lynn,Purchased For Resale,Bittern Books (Unilake Ltd),21015598,692.46
Borough Council of Kings Lynn and West Norfolk,E07000146,06/06/2022,Housing Options Programme,Homeless Prevention Fund,Broadland Housing Association,22008300,600.10
Borough Council of Kings Lynn and West Norfolk,E07000146,06/06/2022,NORA Phase 4,Professional Fees,Gateley Plc,21015588,"3,000.00"
Borough Council of Kings Lynn and West Norfolk,E07000146,06/06/2022,Crematorium Trading Account,Memorial Plates,Anglia Sign Casting Ltd,21015021,857.10
Borough Council of Kings Lynn and West Norfolk,E07000146,06/06/2022,Crematorium Trading Account,Renewal Plates - Exp,Anglia Sign Casting Ltd,21015021,15.00
Borough Council of Kings Lynn and West Norfolk,E07000146,06/06/2022,Decarbonisation ReFit 2,Works,Ameresco Ltd,21015619,"228,681.47"
Borough Council of Kings Lynn and West Norfolk,E07000146,06/06/2022,Resort Seafront,Repairs & Maintenance,E King Painter & Decorator,21015622,500.00
Borough Council of Kings Lynn and West Norfolk,E07000146,06/06/2022,Resort Seafront,Repairs & Maintenance,E King Painter & Decorator,21015622,165.00
Borough Council of Kings Lynn and West Norfolk,E07000146,06/06/2022,Resort Seafront,Repairs & Maintenance,E King Painter & Decorator,21015515,930.00
Borough Council of Kings Lynn and West Norfolk,E07000146,06/06/2022,Resort Seafront,Repairs & Maintenance,E King Painter & Decorator,21015515,200.00
Borough Council of Kings Lynn and West Norfolk,E07000146,06/06/2022,Resort Seafront,Repairs & Maintenance,E King Painter & Decorator,21015621,"2,000.00"
Borough Council of Kings Lynn and West Norfolk,E07000146,06/06/2022,Resort Seafront,Repairs & Maintenance,E King Painter & Decorator,21015621,465.00
Borough Council of Kings Lynn and West Norfolk,E07000146,06/06/2022,Heritage Action Zone,Professional Fees,NUAV Ltd,22008306,990.00
Borough Council of Kings Lynn and West Norfolk,E07000146,06/06/2022,Cllr Allowance & Exps,Members Allowance Panel,MH Press,22008305,616.20
Borough Council of Kings Lynn and West Norfolk,E07000146,09/06/2022,Comm Infrastructure Levy,Small Projects,Hunstanton Town Council,22008309,"9,000.00"
Borough Council of Kings Lynn and West Norfolk,E07000146,09/06/2022,Parking Operations - Brgh,Repairs & Maintenance,Metric Group Ltd,21015103,"2,314.50"
Borough Council of Kings Lynn and West Norfolk,E07000146,09/06/2022,Local Land Charges,Agency,Norfolk County Council,22008311,"3,602.48"
Borough Council of Kings Lynn and West Norfolk,E07000146,09/06/2022,Habitat Regulations,Small Projects,Norfolk County Council,21015770,"8,031.17"
Borough Council of Kings Lynn and West Norfolk,E07000146,09/06/2022,Local Land Charges,Agency,Norfolk County Council,22008312,"8,044.96"
Borough Council of Kings Lynn and West Norfolk,E07000146,09/06/2022,Planning Policy - Dept,Computer Equipment,Phoenix Software Ltd,21015142,735.02
Borough Council of Kings Lynn and West Norfolk,E07000146,09/06/2022,Street Sweeping,Bins,Huws Gray Ridgeons Ltd,21015761,848.50
Borough Council of Kings Lynn and West Norfolk,E07000146,09/06/2022,Postage Services K Court,Postages,Royal Mail Group Ltd,22008338,419.50
Borough Council of Kings Lynn and West Norfolk,E07000146,09/06/2022,Postage Services K Court,Postages,Royal Mail Group Ltd,22008339,734.18
Borough Council of Kings Lynn and West Norfolk,E07000146,09/06/2022,Register of Electors,Stationery & Office,Civica Election Services Ltd,22008191,"2,400.44"
Borough Council of Kings Lynn and West Norfolk,E07000146,09/06/2022,Mintlyn Crematorium,Repairs & Maintenance,Facultatieve Technologies Ltd,21015098,"2,918.02"
Borough Council of Kings Lynn and West Norfolk,E07000146,09/06/2022,Mintlyn Crematorium,Repairs & Maintenance,Facultatieve Technologies Ltd,21015099,"1,105.55"
Borough Council of Kings Lynn and West Norfolk,E07000146,09/06/2022,Mintlyn Crematorium,Trade Waste,Facultatieve Technologies Ltd,21015158,858.09
Borough Council of Kings Lynn and West Norfolk,E07000146,09/06/2022,Natl Assist Act Burials,Burial Fees-Nat.Ass.Act,Thornalley Funeral Services Ltd,21015772,"1,170.00"
Borough Council of Kings Lynn and West Norfolk,E07000146,09/06/2022,Noise Control,Tools And Equipment,Campbell Associates Ltd,21015092,"12,960.00"
Borough Council of Kings Lynn and West Norfolk,E07000146,09/06/2022,LILY 5,Lily Advisor Payments,West Norfolk Befriending,21015771,"1,030.00"
Borough Council of Kings Lynn and West Norfolk,E07000146,09/06/2022,Recycling Composting,Waste Processing Cost,Greenworld Sales Ltd t/a Greenworld,21015819,"26,979.62"
Borough Council of Kings Lynn and West Norfolk,E07000146,09/06/2022,Grounds Northern Area,Vehicle - repairs & Maint,Ernest Doe & Sons Ltd,21015822,676.26
Borough Council of Kings Lynn and West Norfolk,E07000146,09/06/2022,Grounds Northern Area,Vehicle - repairs & Maint,Ernest Doe & Sons Ltd,21015826,655.19
Borough Council of Kings Lynn and West Norfolk,E07000146,09/06/2022,IDOX project,Computer Equip (Software),Idox Software Ltd,21015173,"5,900.00"
Borough Council of Kings Lynn and West Norfolk,E07000146,09/06/2022,ICT,Communications,Adept Technology Group Plc,21015404,"3,185.28"
Borough Council of Kings Lynn and West Norfolk,E07000146,09/06/2022,ICT,Recoverable Fees,Adept Technology Group Plc,21015404,186.17
Borough Council of Kings Lynn and West Norfolk,E07000146,09/06/2022,Corporate,Stationery & Office,Adept Technology Group Plc,21015404,"1,148.44"
Borough Council of Kings Lynn and West Norfolk,E07000146,09/06/2022,CCTV,Repairs & Maintenance,Adept Technology Group Plc,21015404,350.00
Borough Council of Kings Lynn and West Norfolk,E07000146,09/06/2022,Public Cleansing,Repairs & Maintenance,R & L Engineering Ltd,21015581,"2,400.00"
Borough Council of Kings Lynn and West Norfolk,E07000146,09/06/2022,Financial Services,Agency Staff,Hays Specialist Recruitment,21015758,"3,040.25"
Borough Council of Kings Lynn and West Norfolk,E07000146,09/06/2022,Grounds Southern Area,Fuel,UK Fuels Ltd,22008323,436.73
Borough Council of Kings Lynn and West Norfolk,E07000146,09/06/2022,Grounds Southern Area,Fuel,UK Fuels Ltd,22008323,183.95
Borough Council of Kings Lynn and West Norfolk,E07000146,09/06/2022,Public Cleansing,Fuel,UK Fuels Ltd,22008323,593.75
Borough Council of Kings Lynn and West Norfolk,E07000146,09/06/2022,Grounds Southern Area,Fuel,UK Fuels Ltd,22008323,28.18
Borough Council of Kings Lynn and West Norfolk,E07000146,09/06/2022,Grounds Southern Area,Fuel,UK Fuels Ltd,22008323,569.54
Borough Council of Kings Lynn and West Norfolk,E07000146,09/06/2022,Grounds Southern Area,Fuel,UK Fuels Ltd,22008323,166.84
Borough Council of Kings Lynn and West Norfolk,E07000146,09/06/2022,North Sea Haven,Repairs & Maintenance,Robert Fox,21015725,835.00
Borough Council of Kings Lynn and West Norfolk,E07000146,09/06/2022,North Sea Haven,Repairs & Maintenance,Robert Fox,21015725,320.00
Borough Council of Kings Lynn and West Norfolk,E07000146,09/06/2022,Rough Sleeper Fund,Covid 19,BACO-Compak (Norfolk) Ltd,21015806,815.00
Borough Council of Kings Lynn and West Norfolk,E07000146,09/06/2022,Community Transport,Transport Subsidies,West Norfolk Community Transport Project,21015776,"12,494.00"
Borough Council of Kings Lynn and West Norfolk,E07000146,09/06/2022,Comm Infrastructure Levy,Small Projects,West Norfolk Community Transport Project,22008329,"12,049.50"
Borough Council of Kings Lynn and West Norfolk,E07000146,09/06/2022,Community Transport,Transport Subsidies,West Norfolk Community Transport Project,21015777,"32,344.50"
Borough Council of Kings Lynn and West Norfolk,E07000146,09/06/2022,Printroom,Materials,Antalis Ltd,21015289,"1,213.01"
Borough Council of Kings Lynn and West Norfolk,E07000146,09/06/2022,Supplier Holding Account,Vehicle - repairs & Maint,North Street Tyres,22008326,"1,136.14"
Borough Council of Kings Lynn and West Norfolk,E07000146,09/06/2022,Lease Cars,Leasing,Commercial Services Trading Ltd,22008308,"4,919.01"
Borough Council of Kings Lynn and West Norfolk,E07000146,09/06/2022,Lease Cars,Leasing,Commercial Services Trading Ltd,22008308,"4,631.56"
Borough Council of Kings Lynn and West Norfolk,E07000146,09/06/2022,Public Cleansing,Vehicle - repairs & Maint,Bucher Muncipal Ltd,21015189,439.38
Borough Council of Kings Lynn and West Norfolk,E07000146,09/06/2022,Housing Options Programme,Temporary Accommodation,The Grange Hotel,21015744,554.19
Borough Council of Kings Lynn and West Norfolk,E07000146,09/06/2022,Housing Options Programme,Temporary Accommodation,The Grange Hotel,21015745,554.19
Borough Council of Kings Lynn and West Norfolk,E07000146,09/06/2022,Housing Options Programme,Temporary Accommodation,The Grange Hotel,21015747,554.19
Borough Council of Kings Lynn and West Norfolk,E07000146,09/06/2022,Housing Options Programme,Temporary Accommodation,The Grange Hotel,21015748,554.19
Borough Council of Kings Lynn and West Norfolk,E07000146,09/06/2022,Housing Options Programme,Temporary Accommodation,The Grange Hotel,21015756,554.19
Borough Council of Kings Lynn and West Norfolk,E07000146,09/06/2022,Housing Options Programme,Temporary Accommodation,The Grange Hotel,21015757,554.19
Borough Council of Kings Lynn and West Norfolk,E07000146,09/06/2022,Housing Options Programme,Temporary Accommodation,The Grange Hotel,21015754,458.35
Borough Council of Kings Lynn and West Norfolk,E07000146,09/06/2022,North Sea Haven,Repairs & Maintenance,Robert Fox,21015724,"3,220.00"
Borough Council of Kings Lynn and West Norfolk,E07000146,09/06/2022,North Sea Haven,Repairs & Maintenance,Robert Fox,21015724,590.00
Borough Council of Kings Lynn and West Norfolk,E07000146,09/06/2022,Jubilee 2022,Professional Fees,Your Local Paper Ltd,21015775,"1,200.00"
Borough Council of Kings Lynn and West Norfolk,E07000146,09/06/2022,Heacham Toilets South Beach,Works,WEL Medical Ltd,21015574,795.00
Borough Council of Kings Lynn and West Norfolk,E07000146,09/06/2022,Heacham Toilets South Beach,Works,WEL Medical Ltd,21015574,9.95
Borough Council of Kings Lynn and West Norfolk,E07000146,09/06/2022,Refuse - Black Bins,Equipment/Materials,MGB Plastics,21015163,"8,010.00"
Borough Council of Kings Lynn and West Norfolk,E07000146,09/06/2022,Brown Bins/Compost,Equipment/Materials,MGB Plastics,21015163,"6,972.00"
Borough Council of Kings Lynn and West Norfolk,E07000146,09/06/2022,Lynnsport 1,Contractor Works,Lovell Partnerships Ltd,21015718,914.56
Borough Council of Kings Lynn and West Norfolk,E07000146,09/06/2022,Hunstanton Bus Station & NCC Library,Contractor Works,Lovell Partnerships Ltd,21015720,"2,265.84"
Borough Council of Kings Lynn and West Norfolk,E07000146,09/06/2022,Parkway - Gaywood,Contractor Works,Lovell Partnerships Ltd,21015721,"42,741.42"
Borough Council of Kings Lynn and West Norfolk,E07000146,09/06/2022,Hunstanton Southend Road,Contractor Works,Lovell Partnerships Ltd,21015719,"32,169.58"
Borough Council of Kings Lynn and West Norfolk,E07000146,09/06/2022,Careline,Tools And Equipment,AMR Fire and Security Limited,21015700,"2,556.72"
Borough Council of Kings Lynn and West Norfolk,E07000146,09/06/2022,Day visitor awareness,Advertising & Marketing,APL Media Ltd,21015699,"1,000.00"
Borough Council of Kings Lynn and West Norfolk,E07000146,09/06/2022,Parks & Open Spaces,Tree Surgery,Golden Tree Surgeons Ltd,21015818,"4,980.00"
Borough Council of Kings Lynn and West Norfolk,E07000146,09/06/2022,Parks & Open Spaces,Tree Surgery,Golden Tree Surgeons Ltd,21015815,"4,920.00"
Borough Council of Kings Lynn and West Norfolk,E07000146,09/06/2022,Parks & Open Spaces,Tree Surgery,Golden Tree Surgeons Ltd,21015816,"2,880.00"
Borough Council of Kings Lynn and West Norfolk,E07000146,09/06/2022,Parks & Open Spaces,Tree Work/Storm Damage,Golden Tree Surgeons Ltd,21015817,740.00
Borough Council of Kings Lynn and West Norfolk,E07000146,09/06/2022,Parkway - Gaywood,Contractor Works,Golden Tree Surgeons Ltd,21015717,980.00
Borough Council of Kings Lynn and West Norfolk,E07000146,09/06/2022,Housing Options Programme,Homeless Prevention Fund,Broadland Housing Association,21015707,"1,322.20"
Borough Council of Kings Lynn and West Norfolk,E07000146,09/06/2022,Jubilee 2022,Tools And Equipment,NAL Ltd,21015152,690.76
Borough Council of Kings Lynn and West Norfolk,E07000146,09/06/2022,Housing standards,Furniture,Office Wise Ltd,21015794,"1,094.22"
Borough Council of Kings Lynn and West Norfolk,E07000146,09/06/2022,Printing&Copying-Floor Copiers,Click Charges,Capita Business Services Ltd,21015192,"1,535.77"
Borough Council of Kings Lynn and West Norfolk,E07000146,09/06/2022,Head of Legal Services,External Legal fees,Greenhalgh Kerr,22008307,"1,140.50"
Borough Council of Kings Lynn and West Norfolk,E07000146,09/06/2022,Careline,Tools And Equipment,Lifeline24 Ltd,21015457,"5,702.40"
Borough Council of Kings Lynn and West Norfolk,E07000146,09/06/2022,Brochure & lead genrtn,Marketing / Tourism,Reg Clarke,21015789,"1,523.65"
Borough Council of Kings Lynn and West Norfolk,E07000146,09/06/2022,Resort Seafront,Repairs & Maintenance,E King Painter & Decorator,21015714,400.00
Borough Council of Kings Lynn and West Norfolk,E07000146,09/06/2022,Resort Seafront,Repairs & Maintenance,E King Painter & Decorator,21015714,120.00
Borough Council of Kings Lynn and West Norfolk,E07000146,09/06/2022,NORA Phase 4,Professional Fees,BAE Associates Ltd T/A GC Baxter & Associates,21015742,640.00
Borough Council of Kings Lynn and West Norfolk,E07000146,09/06/2022,Salters Road,Professional Fees,BAE Associates Ltd T/A GC Baxter & Associates,21015742,640.00
Borough Council of Kings Lynn and West Norfolk,E07000146,09/06/2022,Community Projects CRS,Service Level Agreements,Creative Artists Agency UK Ltd,21015828,"10,000.00"
Borough Council of Kings Lynn and West Norfolk,E07000146,09/06/2022,Community Projects CRS,Service Level Agreements,Industry Live Agency,21015831,"5,000.00"
Borough Council of Kings Lynn and West Norfolk,E07000146,09/06/2022,Community Projects CRS,Service Level Agreements,Industry Live Agency,21015832,"5,000.00"
Borough Council of Kings Lynn and West Norfolk,E07000146,09/06/2022,Housing Options Programme,Miscellaneous Income,M Dale,22008310,650.00
Borough Council of Kings Lynn and West Norfolk,E07000146,09/06/2022,Heritage Action Zone,Professional Fees,Gutter Clean Co,22008318,"3,700.00"
Borough Council of Kings Lynn and West Norfolk,E07000146,09/06/2022,Heritage Action Zone,Professional Fees,Gutter Clean Co,22008315,"2,000.00"
Borough Council of Kings Lynn and West Norfolk,E07000146,09/06/2022,Jubilee 2022,Professional Fees,Live Music Management,22008331,"1,100.00"
Borough Council of Kings Lynn and West Norfolk,E07000146,09/06/2022,NORA Phase 4,Works,WSP UK Ltd,21015301,600.00
Borough Council of Kings Lynn and West Norfolk,E07000146,09/06/2022,Corporate Health & Safety,Staff Health & Safety,Skyguard Ltd T/A Peoplesafe,21015138,"1,336.50"
Borough Council of Kings Lynn and West Norfolk,E07000146,09/06/2022,LILY 5,Lily Advisor Payments,Family Action,21015739,987.08
Borough Council of Kings Lynn and West Norfolk,E07000146,13/06/2022,ICT,Communications,Vodafone Ltd,21015845,"1,781.55"
Borough Council of Kings Lynn and West Norfolk,E07000146,13/06/2022,Standard Desktop Refresh,Equipment/Materials,Dell Corporation Ltd,21015632,677.07
Borough Council of Kings Lynn and West Norfolk,E07000146,13/06/2022,Parking Operations - Brgh,Tools And Equipment,Mobius Networks Ltd,21015886,691.12
Borough Council of Kings Lynn and West Norfolk,E07000146,13/06/2022,Resort Seafront,Professional Fees,MED PTS Ambulance Services,21015889,"4,485.72"
Borough Council of Kings Lynn and West Norfolk,E07000146,13/06/2022,Housing Options Programme,Computer Equipment,TelefonicaO2UK Ltd,21015881,724.30
Borough Council of Kings Lynn and West Norfolk,E07000146,13/06/2022,Home Improvements Agency,Agency Staff,Seven Resourcing Ltd,21015437,"1,603.81"
Borough Council of Kings Lynn and West Norfolk,E07000146,13/06/2022,KL Arts Centre,Hirings Ticketed,Shakespeares Guildhall Trust,22008355,"1,242.50"
Borough Council of Kings Lynn and West Norfolk,E07000146,13/06/2022,KL Arts Centre,Hiring Charges Income,Shakespeares Guildhall Trust,22008355,-200.00
Borough Council of Kings Lynn and West Norfolk,E07000146,13/06/2022,KL Arts Centre,Commission On Box Office,Shakespeares Guildhall Trust,22008355,-74.55
Borough Council of Kings Lynn and West Norfolk,E07000146,13/06/2022,KL Arts Centre,PRS Recharge,Shakespeares Guildhall Trust,22008355,-62.62
Borough Council of Kings Lynn and West Norfolk,E07000146,13/06/2022,KL Arts Centre,Credit Card Recharge,Shakespeares Guildhall Trust,22008355,-35.44
Borough Council of Kings Lynn and West Norfolk,E07000146,13/06/2022,KL Arts Centre,Hire Of Equipment,Shakespeares Guildhall Trust,22008355,-347.00
Borough Council of Kings Lynn and West Norfolk,E07000146,13/06/2022,Rough Sleeper Fund,Covid 19,Excaliber Security Services Ltd,21015905,"11,020.80"
Borough Council of Kings Lynn and West Norfolk,E07000146,13/06/2022,Sports Grounds North,Materials,Advance Grass Solutions,21015937,533.25
Borough Council of Kings Lynn and West Norfolk,E07000146,13/06/2022,Sports Grounds Central,Materials,Advance Grass Solutions,21015937,533.25
Borough Council of Kings Lynn and West Norfolk,E07000146,13/06/2022,Jubilee 2022,Professional Fees,Millington Enterprises t/a Radio West Norfolk,21015879,"2,175.00"
Borough Council of Kings Lynn and West Norfolk,E07000146,13/06/2022,KL Innovation Centre,Repairs & Maintenance,Safe Water IO Ltd,21015376,650.00
Borough Council of Kings Lynn and West Norfolk,E07000146,13/06/2022,Kings Court Service Charges,Repairs & Maintenance,Safe Water IO Ltd,21015377,650.00
,,13/06/2022,North Lynn Managed Workshops,Repairs & Maintenance,Safe Water IO Ltd,21015378,650.00
,,13/06/2022,Regis Place,Repairs & Maintenance,Safe Water IO Ltd,21015374,650.00
Borough Council of Kings Lynn and West Norfolk,E07000146,13/06/2022,Printroom,Repairs & Maintenance,Safe Water IO Ltd,21015375,650.00
Borough Council of Kings Lynn and West Norfolk,E07000146,13/06/2022,Cashless Pk JI (GY Carparks),Agency,Great Yarmouth Borough Council,21015901,"24,261.91"
Borough Council of Kings Lynn and West Norfolk,E07000146,13/06/2022,NEWS Depot,Contract Cleaning,Marathon Services Ltd,21015892,"1,567.90"
Borough Council of Kings Lynn and West Norfolk,E07000146,13/06/2022,Planning Control,Professional Fees,North Norfolk District Council,21015602,6.00
Borough Council of Kings Lynn and West Norfolk,E07000146,13/06/2022,Planning Control,Professional Fees,North Norfolk District Council,21015602,"1,145.42"
Borough Council of Kings Lynn and West Norfolk,E07000146,13/06/2022,KL Arts Centre,Hirings Ticketed,Pitney Bowes Finance Ltd,22008362,"6,550.83"
Borough Council of Kings Lynn and West Norfolk,E07000146,13/06/2022,KL Arts Centre,Hiring Charges Income,Pitney Bowes Finance Ltd,22008362,"-2,883.34"
Borough Council of Kings Lynn and West Norfolk,E07000146,13/06/2022,KL Arts Centre,Hirings Ticketed,Pitney Bowes Finance Ltd,22008362,200.00
Borough Council of Kings Lynn and West Norfolk,E07000146,13/06/2022,KL Arts Centre,Commission On Box Office,Pitney Bowes Finance Ltd,22008362,-393.05
Borough Council of Kings Lynn and West Norfolk,E07000146,13/06/2022,KL Arts Centre,Credit Card Recharge,Pitney Bowes Finance Ltd,22008362,-197.12
Borough Council of Kings Lynn and West Norfolk,E07000146,13/06/2022,KL Arts Centre,Staff Recharge,Pitney Bowes Finance Ltd,22008362,-58.00
Borough Council of Kings Lynn and West Norfolk,E07000146,13/06/2022,KL Arts Centre,Advertising Recharge,Pitney Bowes Finance Ltd,22008362,-150.00
Borough Council of Kings Lynn and West Norfolk,E07000146,13/06/2022,Sports Grounds North,Materials,Origin Amenity Solutions Ltd,21015843,495.00
Borough Council of Kings Lynn and West Norfolk,E07000146,13/06/2022,Sports Grounds Central,Materials,Origin Amenity Solutions Ltd,21015843,495.00
Borough Council of Kings Lynn and West Norfolk,E07000146,13/06/2022,Cashless Pk JC (SN Carparks),Agency,South Norfolk Council,21015875,"5,500.53"
Borough Council of Kings Lynn and West Norfolk,E07000146,13/06/2022,Dry Box Collection Scheme,Waste Processing Cost,Norse Environmental Services,21015848,"43,409.96"
Borough Council of Kings Lynn and West Norfolk,E07000146,13/06/2022,Food Waste,Waste Processing Cost,Norse Environmental Services,21015847,"7,154.09"
Borough Council of Kings Lynn and West Norfolk,E07000146,13/06/2022,Public Cleansing,Cleaning Material & Equip,V & J Knitwear Ltd,21015862,901.66
Borough Council of Kings Lynn and West Norfolk,E07000146,13/06/2022,NEWS Depot,Repairs & Maintenance,Switchshop Ltd,21015785,552.00
Borough Council of Kings Lynn and West Norfolk,E07000146,13/06/2022,Mintlyn Crematorium,Trade Waste,Facultatieve Technologies Ltd,21015844,"1,087.19"
Borough Council of Kings Lynn and West Norfolk,E07000146,13/06/2022,Financial Services,Agency Staff,Hays Specialist Recruitment,21015899,"1,824.15"
Borough Council of Kings Lynn and West Norfolk,E07000146,13/06/2022,Financial Services,Membership & Subscription,Lavat Consulting Ltd,21015365,"2,065.00"
Borough Council of Kings Lynn and West Norfolk,E07000146,13/06/2022,Supplier Holding Account,Vehicle - repairs & Maint,Paul Johnson Motor Services Ltd,22008359,"11,202.64"
Borough Council of Kings Lynn and West Norfolk,E07000146,13/06/2022,Supplier Holding Account,Vehicle - repairs & Maint,Paul Johnson Motor Services Ltd,22008359,342.20
Borough Council of Kings Lynn and West Norfolk,E07000146,13/06/2022,Major Housing Management,Professional Fees,G C Baxter & Associates Ltd,21015902,640.00
Borough Council of Kings Lynn and West Norfolk,E07000146,14/06/2022,NORA Phase 4,Contractor Works,Lovell Partnerships Ltd,21015959,"649,591.82"
Borough Council of Kings Lynn and West Norfolk,E07000146,14/06/2022,Salters Road,Contractor Works,Lovell Partnerships Ltd,21015960,"554,014.58"
Borough Council of Kings Lynn and West Norfolk,E07000146,14/06/2022,Planning Policy,Professional Fees,Dell Corporation Ltd,21015838,545.53
Borough Council of Kings Lynn and West Norfolk,E07000146,14/06/2022,Street Sweeping,Animal Removal,Peaceful Pets Ltd,21015944,"1,105.00"
Borough Council of Kings Lynn and West Norfolk,E07000146,14/06/2022,Street Sweeping,Animal Removal,Peaceful Pets Ltd,21015945,850.00
Borough Council of Kings Lynn and West Norfolk,E07000146,14/06/2022,Kings Court Service Charges,Repairs & Maintenance,AMR Electrical Services Ltd,21015709,"1,902.00"
Borough Council of Kings Lynn and West Norfolk,E07000146,14/06/2022,Jubilee 2022,Professional Fees,M Usher,21015949,950.00
Borough Council of Kings Lynn and West Norfolk,E07000146,14/06/2022,Refuse & Recyc Mgmt,Miscellaneous,T Leader St Johns Regulatory Fee Share Account,21015940,850.00
Borough Council of Kings Lynn and West Norfolk,E07000146,14/06/2022,Community Projects CS,Service Level Agreements,Money Advise Hub,21015946,"42,000.00"
Borough Council of Kings Lynn and West Norfolk,E07000146,16/06/2022,Grounds Northern Area,Vehicle - repairs & Maint,Anglia Mowers,21016001,420.17
Borough Council of Kings Lynn and West Norfolk,E07000146,16/06/2022,Home Improvements Agency,Agency Staff,Seven Resourcing Ltd,21015682,"1,540.85"
Borough Council of Kings Lynn and West Norfolk,E07000146,16/06/2022,Parks & Open Spaces,Tree Surgery,Golden Tree Surgeons Ltd,21015994,"6,295.00"
Borough Council of Kings Lynn and West Norfolk,E07000146,16/06/2022,Parks & Open Spaces,Tree Surgery,Golden Tree Surgeons Ltd,21015995,"4,500.00"
Borough Council of Kings Lynn and West Norfolk,E07000146,16/06/2022,Development and Estates Capital Receipts,Disposal Costs Physical Works,MD Insurance Services Ltd IBA,22008401,500.00
Borough Council of Kings Lynn and West Norfolk,E07000146,16/06/2022,LILY 5,Lily Advisor Payments,West Norfolk Carers Association,21015774,"1,908.00"
Borough Council of Kings Lynn and West Norfolk,E07000146,16/06/2022,Princess Theatre Roof Replacement,Professional Fees,Parsons Consulting Engineers Ltd,21015552,880.00
Borough Council of Kings Lynn and West Norfolk,E07000146,16/06/2022,Housing Options Programme,Homeless Prevention Fund,Broadland Housing Association,21015974,616.85
Borough Council of Kings Lynn and West Norfolk,E07000146,16/06/2022,CCTV,Repairs & Maintenance,Quality Essential Distribution Ltd,21015444,"2,269.28"
Borough Council of Kings Lynn and West Norfolk,E07000146,16/06/2022,Food Hygiene/H&S Sals/Sup,Recruitment,TMP (UK) Ltd,22008295,"2,489.89"
Borough Council of Kings Lynn and West Norfolk,E07000146,16/06/2022,Housing Options Programme,Homeless Prevention Fund,A1 Removals Ltd,21016034,524.00
Borough Council of Kings Lynn and West Norfolk,E07000146,16/06/2022,Careline,Tools And Equipment,HOIP Telecom Ltd,21015964,635.50
Borough Council of Kings Lynn and West Norfolk,E07000146,16/06/2022,COMF Phase 3,Agency Staff,Danielle Barrett,21016011,640.00
Borough Council of Kings Lynn and West Norfolk,E07000146,16/06/2022,Resort Seafront,Repairs & Maintenance,E King Painter & Decorator,21015997,808.00
Borough Council of Kings Lynn and West Norfolk,E07000146,16/06/2022,Resort Seafront,Repairs & Maintenance,E King Painter & Decorator,21015997,300.00
Borough Council of Kings Lynn and West Norfolk,E07000146,16/06/2022,Resort Seafront,Repairs & Maintenance,E King Painter & Decorator,21015998,355.00
Borough Council of Kings Lynn and West Norfolk,E07000146,16/06/2022,Resort Seafront,Repairs & Maintenance,E King Painter & Decorator,21015998,150.00
Borough Council of Kings Lynn and West Norfolk,E07000146,16/06/2022,Jubilee 2022,Professional Fees,Team Legends Productions,22008399,900.00
Borough Council of Kings Lynn and West Norfolk,E07000146,16/06/2022,Food Hygiene General,Professional Fees,E Churchill,22008394,"3,000.00"
Borough Council of Kings Lynn and West Norfolk,E07000146,16/06/2022,CCTV,Repairs & Maintenance,E Akers,21015914,350.00
Borough Council of Kings Lynn and West Norfolk,E07000146,16/06/2022,CCTV,Repairs & Maintenance,E Akers,21015914,96.19
Borough Council of Kings Lynn and West Norfolk,E07000146,16/06/2022,Jubilee 2022,Repairs & Maintenance,E Akers,21015920,475.00
Borough Council of Kings Lynn and West Norfolk,E07000146,16/06/2022,Jubilee 2022,Repairs & Maintenance,E Akers,21015920,448.00
Borough Council of Kings Lynn and West Norfolk,E07000146,16/06/2022,Public Cleansing,Tools And Equipment,Lawn Boy (Farm Services),21016029,685.00
Borough Council of Kings Lynn and West Norfolk,E07000146,16/06/2022,Kings Court Service Charges,Contract Cleaning,Marathon Services Ltd,21016032,675.00
Borough Council of Kings Lynn and West Norfolk,E07000146,16/06/2022,Fairstead Community  Centre,Repairs & Maintenance,Millar West,21015454,"3,112.60"
Borough Council of Kings Lynn and West Norfolk,E07000146,16/06/2022,Decriminalisation,Works,Penty Contractors Ltd,21015985,"2,300.00"
Borough Council of Kings Lynn and West Norfolk,E07000146,16/06/2022,Parks - Other - Supp,Repairs & Maintenance,Penty Contractors Ltd,21015986,500.00
Borough Council of Kings Lynn and West Norfolk,E07000146,16/06/2022,Town Hall Kings Lynn,Repairs & Maintenance,Penty Contractors Ltd,21015992,470.00
Borough Council of Kings Lynn and West Norfolk,E07000146,16/06/2022,Careline,Tools And Equipment,Tunstall Healthcare (UK) Ltd,21016018,"7,494.00"
Borough Council of Kings Lynn and West Norfolk,E07000146,16/06/2022,Parking Operations - Brgh,Repairs & Maintenance,Wallgate Ltd,21015414,"1,449.00"
Borough Council of Kings Lynn and West Norfolk,E07000146,16/06/2022,Public Cleansing,Repairs & Maintenance,Wallgate Ltd,21015414,"8,114.40"
Borough Council of Kings Lynn and West Norfolk,E07000146,16/06/2022,Sports Grounds South,Electricity,Downham Town Sports Federation,21015971,516.14
Borough Council of Kings Lynn and West Norfolk,E07000146,16/06/2022,Planning Control,Professional Fees,Sharpe Pritchard,21015556,500.00
Borough Council of Kings Lynn and West Norfolk,E07000146,16/06/2022,Custom House & Tics,Rent,R Gawn 1990 Accumulation & Maint Sett't,22008141,"1,280.00"
Borough Council of Kings Lynn and West Norfolk,E07000146,16/06/2022,Public Cleansing,Vehicle - repairs & Maint,Bucher Muncipal Ltd,21016007,439.38
Borough Council of Kings Lynn and West Norfolk,E07000146,16/06/2022,Public Cleansing,Vehicle - repairs & Maint,Bucher Muncipal Ltd,21016010,972.40
Borough Council of Kings Lynn and West Norfolk,E07000146,16/06/2022,Mintlyn Crematorium,Repairs & Maintenance,Facultatieve Technologies Ltd,21016017,"1,793.28"
Borough Council of Kings Lynn and West Norfolk,E07000146,16/06/2022,Mintlyn Crematorium,Repairs & Maintenance,Facultatieve Technologies Ltd,21015516,"1,036.70"
Borough Council of Kings Lynn and West Norfolk,E07000146,16/06/2022,Valentine Road Hunstanton,Repairs & Maintenance,Enhance,21015715,458.00
Borough Council of Kings Lynn and West Norfolk,E07000146,16/06/2022,Valentine Road Hunstanton,Repairs & Maintenance,Enhance,21015715,250.00
Borough Council of Kings Lynn and West Norfolk,E07000146,16/06/2022,Vehicle Recharge on account,Fuel,Worldline IT Services UK Re Fuelgenie,22008390,"18,023.33"
Borough Council of Kings Lynn and West Norfolk,E07000146,16/06/2022,Parking Operations - Brgh,Tools And Equipment,Supreme Surfacing Ltd,21015988,"4,950.00"
Borough Council of Kings Lynn and West Norfolk,E07000146,16/06/2022,Financial Services,Membership & Subscription,The Technology Forge Ltd,21015938,"1,973.00"
Borough Council of Kings Lynn and West Norfolk,E07000146,16/06/2022,Food Hygiene General,Shellfish Sampling,Eastern IFCA,21016014,768.00
Borough Council of Kings Lynn and West Norfolk,E07000146,16/06/2022,Day visitor awareness,Advertising & Marketing,Countrywide Publications,21015538,500.00
Borough Council of Kings Lynn and West Norfolk,E07000146,16/06/2022,Hanse,Professional Fees,Your Local Paper Ltd,21016013,"1,200.00"
Borough Council of Kings Lynn and West Norfolk,E07000146,16/06/2022,North Lynn Managed Workshops,Repairs & Maintenance,AMR Mechanical Services Ltd,21015710,606.35
Borough Council of Kings Lynn and West Norfolk,E07000146,16/06/2022,Stories of Lynn,Ticket Sales,Kings Lynn Town Guides,22008392,930.00
Borough Council of Kings Lynn and West Norfolk,E07000146,20/06/2022,Closed Churchyards,Repairs & Maintenance,CGM Group (East Anglia) Ltd,21015990,502.25
Borough Council of Kings Lynn and West Norfolk,E07000146,20/06/2022,Cashless Pk JI (GY Carparks),Agency,Great Yarmouth Borough Council,22008406,"61,299.70"
Borough Council of Kings Lynn and West Norfolk,E07000146,20/06/2022,Cashless Pk JE (NN Carparks),Agency,North Norfolk District Council,22008411,"31,614.80"
Borough Council of Kings Lynn and West Norfolk,E07000146,20/06/2022,Housing standards,Miscellaneous,North Norfolk District Council,21016092,"2,700.00"
Borough Council of Kings Lynn and West Norfolk,E07000146,20/06/2022,Financial Services,Postages,Royal Mail Group Ltd,22008412,"1,452.46"
Borough Council of Kings Lynn and West Norfolk,E07000146,20/06/2022,Benefit Administration,Postages,Royal Mail Group Ltd,22008412,735.84
Borough Council of Kings Lynn and West Norfolk,E07000146,20/06/2022,Cost of Collection - CTax,Postages,Royal Mail Group Ltd,22008412,903.02
Borough Council of Kings Lynn and West Norfolk,E07000146,20/06/2022,Kings Lynn Bid,Postages,Royal Mail Group Ltd,22008412,9.16
Borough Council of Kings Lynn and West Norfolk,E07000146,20/06/2022,Benefit Administration,Postages,Royal Mail Group Ltd,22008412,15.19
Borough Council of Kings Lynn and West Norfolk,E07000146,20/06/2022,Pub & Tourism int charges,Postages,Royal Mail Group Ltd,22008412,1.47
Borough Council of Kings Lynn and West Norfolk,E07000146,20/06/2022,Food Hygiene/H&S Sals/Sup,Postages,Royal Mail Group Ltd,22008412,0.98
Borough Council of Kings Lynn and West Norfolk,E07000146,20/06/2022,Public Cleansing,Cleaning Material & Equip,V & J Knitwear Ltd,21016103,715.02
Borough Council of Kings Lynn and West Norfolk,E07000146,20/06/2022,Public Cleansing,Cleaning Material & Equip,V & J Knitwear Ltd,21016103,0.76
Borough Council of Kings Lynn and West Norfolk,E07000146,20/06/2022,ICT,Communications,Claranet Ltd,21016055,"1,359.02"
Borough Council of Kings Lynn and West Norfolk,E07000146,20/06/2022,Mintlyn Crematorium,Broadband Charge,Claranet Ltd,21016055,147.47
Borough Council of Kings Lynn and West Norfolk,E07000146,20/06/2022,NNDC Carpark Operation,Broadband Charge,Claranet Ltd,21016055,188.36
Borough Council of Kings Lynn and West Norfolk,E07000146,20/06/2022,ICT,Broadband Charge,Claranet Ltd,21016055,48.32
Borough Council of Kings Lynn and West Norfolk,E07000146,20/06/2022,South Lynn Community Centre,Broadband Charge,Claranet Ltd,21016055,48.32
Borough Council of Kings Lynn and West Norfolk,E07000146,20/06/2022,Benefit Administration,Broadband Charge,Claranet Ltd,21016055,288.85
Borough Council of Kings Lynn and West Norfolk,E07000146,20/06/2022,Air Quality,Broadband Charge,Claranet Ltd,21016055,138.54
Borough Council of Kings Lynn and West Norfolk,E07000146,20/06/2022,CCTV,Broadband Charge,Claranet Ltd,21016055,69.27
Borough Council of Kings Lynn and West Norfolk,E07000146,20/06/2022,Radio Phones,Communications,Claranet Ltd,21016055,67.76
Borough Council of Kings Lynn and West Norfolk,E07000146,20/06/2022,Brown Bins/Compost,Equipment/Materials,SSI Schaefer Limited,21015557,"14,786.40"
Borough Council of Kings Lynn and West Norfolk,E07000146,20/06/2022,South Lynn Community Centre,Repairs & Maintenance,Cooks Blinds & Shutters Ltd,21015394,"1,195.00"
Borough Council of Kings Lynn and West Norfolk,E07000146,20/06/2022,Financial Services,Agency Staff,Hays Specialist Recruitment,21016070,"3,040.25"
Borough Council of Kings Lynn and West Norfolk,E07000146,20/06/2022,Towns Fund,Consultants Fees,New Anglia Local Enterprise Ptn Ltd,21016091,"2,500.00"
Borough Council of Kings Lynn and West Norfolk,E07000146,20/06/2022,Dog Warden and Services,Contracted Services,Dogotel Kennels & Cattery,22008405,"1,095.00"
Borough Council of Kings Lynn and West Norfolk,E07000146,20/06/2022,Dog Warden and Services,Kennel Fees,Dogotel Kennels & Cattery,22008405,344.00
Borough Council of Kings Lynn and West Norfolk,E07000146,20/06/2022,Dog Warden and Services,Kennel Fees Recd - Extl,Dogotel Kennels & Cattery,22008405,-211.50
Borough Council of Kings Lynn and West Norfolk,E07000146,20/06/2022,Community Renewal Fund,Consultants Fees,Ricardo-AEA Ltd,21015553,"46,299.00"
Borough Council of Kings Lynn and West Norfolk,E07000146,20/06/2022,Community Renewal Fund,Consultants Fees,Ricardo-AEA Ltd,21015554,"30,866.00"
Borough Council of Kings Lynn and West Norfolk,E07000146,20/06/2022,VAT,VAT Input - VAT Only Purchases,Newlyn PLC,22008410,716.03
Borough Council of Kings Lynn and West Norfolk,E07000146,20/06/2022,VAT,VAT Input - VAT Only Purchases,Newlyn PLC,22008409,"1,707.34"
Borough Council of Kings Lynn and West Norfolk,E07000146,20/06/2022,Day visitor awareness,Advertising & Marketing,APL Media Ltd,21016039,"1,250.00"
Borough Council of Kings Lynn and West Norfolk,E07000146,20/06/2022,Decarbonisation ReFit 2,Professional Fees,Local Partnerships LLP,21016030,"59,500.00"
Borough Council of Kings Lynn and West Norfolk,E07000146,20/06/2022,Grounds Northern Area,Vehicle & Plant Hire,Brandon Hire Station Ltd,21015929,471.00
Borough Council of Kings Lynn and West Norfolk,E07000146,20/06/2022,LILY 5,Lily Advisor Payments,Norfolk and Waveney Mind,21016086,"1,908.00"
Borough Council of Kings Lynn and West Norfolk,E07000146,20/06/2022,Hanse,Professional Fees,Excaliber Security Services Ltd,21016063,"1,353.60"
Borough Council of Kings Lynn and West Norfolk,E07000146,20/06/2022,Jubilee 2022,Professional Fees,Excaliber Security Services Ltd,21016064,"8,938.95"
Borough Council of Kings Lynn and West Norfolk,E07000146,20/06/2022,Hanse,Professional Fees,Millington Enterprises t/a Radio West Norfolk,21016095,487.50
Borough Council of Kings Lynn and West Norfolk,E07000146,20/06/2022,Kings Court Kings Lynn,Covid 19,XL Displays Limited,21015123,"10,381.20"
Borough Council of Kings Lynn and West Norfolk,E07000146,20/06/2022,Community Renewal Fund,Consultants Fees,Hydrogen East Ltd T/A Net Zero East,21015174,"30,000.00"
Borough Council of Kings Lynn and West Norfolk,E07000146,20/06/2022,Heacham Toilets South Beach,Works,Walker Construction Services Ltd,21016054,"40,976.97"
Borough Council of Kings Lynn and West Norfolk,E07000146,20/06/2022,CCTV,Repairs & Maintenance,Misco Technologies,21015888,"1,755.98"
Borough Council of Kings Lynn and West Norfolk,E07000146,20/06/2022,KL Arts Centre,Hirings Ticketed,Kings Lynn Players,22008420,"6,550.83"
Borough Council of Kings Lynn and West Norfolk,E07000146,20/06/2022,KL Arts Centre,Hiring Charges Income,Kings Lynn Players,22008420,"-2,883.34"
Borough Council of Kings Lynn and West Norfolk,E07000146,20/06/2022,KL Arts Centre,Hirings Ticketed,Kings Lynn Players,22008420,200.00
Borough Council of Kings Lynn and West Norfolk,E07000146,20/06/2022,KL Arts Centre,Commission On Box Office,Kings Lynn Players,22008420,-393.05
Borough Council of Kings Lynn and West Norfolk,E07000146,20/06/2022,KL Arts Centre,Credit Card Recharge,Kings Lynn Players,22008420,-197.12
Borough Council of Kings Lynn and West Norfolk,E07000146,20/06/2022,KL Arts Centre,Staff Recharge,Kings Lynn Players,22008420,-58.00
Borough Council of Kings Lynn and West Norfolk,E07000146,20/06/2022,KL Arts Centre,Advertising Recharge,Kings Lynn Players,22008420,-150.00
Borough Council of Kings Lynn and West Norfolk,E07000146,20/06/2022,Corporate,Bank Charges,Allpay,22008439,"1,483.44"
Borough Council of Kings Lynn and West Norfolk,E07000146,20/06/2022,ICT,Computer Software Maint,Capita Business Services Ltd,22008445,938.49
Borough Council of Kings Lynn and West Norfolk,E07000146,20/06/2022,Subscriptions,Membership & Subscription,Local Government Association,22008448,"11,089.63"
Borough Council of Kings Lynn and West Norfolk,E07000146,20/06/2022,Subscriptions,Membership & Subscription,Local Government Association,22008448,0.00
Borough Council of Kings Lynn and West Norfolk,E07000146,20/06/2022,Financial Services,Applications Licence,Pay.UK,22008449,"1,950.00"
Borough Council of Kings Lynn and West Norfolk,E07000146,20/06/2022,KL Innovation Centre,Telephones,Spitfire Network Services Ltd,22008454,912.45
Borough Council of Kings Lynn and West Norfolk,E07000146,20/06/2022,ICT,MPhone Usage & Top-up,TelefonicaO2UK Ltd,22008455,"1,317.85"
Borough Council of Kings Lynn and West Norfolk,E07000146,20/06/2022,Corporate,Bank Charges,Worldpay Ltd,22008456,"17,092.62"
Borough Council of Kings Lynn and West Norfolk,E07000146,20/06/2022,Corporate,Bank Charges,Worldpay Ltd,22008456,616.00
Borough Council of Kings Lynn and West Norfolk,E07000146,23/06/2022,Public conveniences,Sewerage/Cesspool Empty,BACO-Compak (Norfolk) Ltd,21016154,460.00
Borough Council of Kings Lynn and West Norfolk,E07000146,23/06/2022,Home Improvements Agency,Agency Staff,Seven Resourcing Ltd,21016117,"1,352.41"
Borough Council of Kings Lynn and West Norfolk,E07000146,23/06/2022,Home Improvements Agency,Agency Staff,Seven Resourcing Ltd,21015878,"1,582.02"
Borough Council of Kings Lynn and West Norfolk,E07000146,23/06/2022,Parks & Open Spaces,Tree Surgery,Golden Tree Surgeons Ltd,21016195,"2,960.00"
Borough Council of Kings Lynn and West Norfolk,E07000146,23/06/2022,Parks & Open Spaces,Tree Work/Storm Damage,Golden Tree Surgeons Ltd,21016196,"1,150.00"
Borough Council of Kings Lynn and West Norfolk,E07000146,23/06/2022,Corporate Policy,Small Projects,Iliffe Media Publishing Ltd,21015895,575.00
Borough Council of Kings Lynn and West Norfolk,E07000146,23/06/2022,Replacement Financial Ledger,Computer Equip (Software),Embridge Consulting (UK) Ltd,21016127,"1,448.58"
Borough Council of Kings Lynn and West Norfolk,E07000146,23/06/2022,Financial Services,Contracted Services,Embridge Consulting (UK) Ltd,21016160,471.48
Borough Council of Kings Lynn and West Norfolk,E07000146,23/06/2022,Decarbonisation ReFit 2,Works,Ameresco Ltd,21016193,"71,230.61"
Borough Council of Kings Lynn and West Norfolk,E07000146,23/06/2022,Chapel Street,Professional Fees,Feilden & Mawson LLP1,21015415,"10,678.12"
Borough Council of Kings Lynn and West Norfolk,E07000146,23/06/2022,Chapel Street,Professional Fees,Feilden & Mawson LLP1,21015415,"3,412.20"
Borough Council of Kings Lynn and West Norfolk,E07000146,23/06/2022,South Lynn Community Centre,Electricity,IMServ Europe Ltd,21016199,84.33
Borough Council of Kings Lynn and West Norfolk,E07000146,23/06/2022,Downham MSports Centre,Electricity,IMServ Europe Ltd,21016199,84.33
Borough Council of Kings Lynn and West Norfolk,E07000146,23/06/2022,Kings Court Service Charges,Electricity,IMServ Europe Ltd,21016199,84.33
Borough Council of Kings Lynn and West Norfolk,E07000146,23/06/2022,Oasis General Account,Electricity,IMServ Europe Ltd,21016199,84.33
Borough Council of Kings Lynn and West Norfolk,E07000146,23/06/2022,St James General Account,Electricity,IMServ Europe Ltd,21016199,84.32
Borough Council of Kings Lynn and West Norfolk,E07000146,23/06/2022,Head of Legal Services,External Legal fees,Greenhalgh Kerr,22008431,"1,585.00"
Borough Council of Kings Lynn and West Norfolk,E07000146,23/06/2022,Head of Legal Services,External Legal fees,Greenhalgh Kerr,22008431,1.50
Borough Council of Kings Lynn and West Norfolk,E07000146,23/06/2022,Public Realm/Town Deal,Equipment/Materials,Hardscape Products Ltd,21016124,560.00
Borough Council of Kings Lynn and West Norfolk,E07000146,23/06/2022,EZ Dev of Spec Units,Works,R G Carter Cambridge Ltd,21015628,"353,299.18"
Borough Council of Kings Lynn and West Norfolk,E07000146,23/06/2022,AV in Town Hall,Equipment/Materials,1plex Ltd,21015579,"5,000.00"
Borough Council of Kings Lynn and West Norfolk,E07000146,23/06/2022,AV in Town Hall,Equipment/Materials,1plex Ltd,21015580,"26,165.30"
Borough Council of Kings Lynn and West Norfolk,E07000146,23/06/2022,Resort Seafront,Tools And Equipment,Dell Corporation Ltd,21016057,545.53
Borough Council of Kings Lynn and West Norfolk,E07000146,23/06/2022,General Property,Repairs & Maintenance,KJN Landscapes,21016121,575.00
Borough Council of Kings Lynn and West Norfolk,E07000146,23/06/2022,KL Innovation Centre,Contract Cleaning,Mr Brights Ltd,21016183,"2,067.12"
Borough Council of Kings Lynn and West Norfolk,E07000146,23/06/2022,CIC Main,Translation Costs,Norfolk County Council,21016182,"2,325.00"
Borough Council of Kings Lynn and West Norfolk,E07000146,23/06/2022,Parking Operations - Brgh,Rent,Norfolk County Council,22008426,875.00
Borough Council of Kings Lynn and West Norfolk,E07000146,23/06/2022,Head of Legal Services,External Legal fees,North Norfolk District Council,22008424,"1,056.00"
Borough Council of Kings Lynn and West Norfolk,E07000146,23/06/2022,Head of Legal Services,External Legal fees,North Norfolk District Council,22008425,661.00
Borough Council of Kings Lynn and West Norfolk,E07000146,23/06/2022,Community Safety,Professional Fees,North Norfolk District Council,21016120,828.67
Borough Council of Kings Lynn and West Norfolk,E07000146,23/06/2022,Comm Infrastructure Levy,Small Projects,Burnham Overy Village Hall,22008434,"7,500.00"
Borough Council of Kings Lynn and West Norfolk,E07000146,23/06/2022,Comm Infrastructure Levy,Small Projects,Burnham Overy Village Hall,22008435,"10,000.00"
Borough Council of Kings Lynn and West Norfolk,E07000146,23/06/2022,Postage Services K Court,Postages,Pitney Bowes Purchase Power Pre Pay,22008421,"9,697.12"
Borough Council of Kings Lynn and West Norfolk,E07000146,23/06/2022,Postage Services K Court,Postages,Pitney Bowes Purchase Power Pre Pay,22008421,5.00
Borough Council of Kings Lynn and West Norfolk,E07000146,23/06/2022,ICT Development Programme,Equipment/Materials,Bechtle Direct Ltd,21015606,"8,271.96"
Borough Council of Kings Lynn and West Norfolk,E07000146,23/06/2022,Homechoice,Personnel DBS Checks,Disclosure & Barring Service,22008433,38.00
Borough Council of Kings Lynn and West Norfolk,E07000146,23/06/2022,Personnel Services,Personnel DBS Checks,Disclosure & Barring Service,22008433,114.00
Borough Council of Kings Lynn and West Norfolk,E07000146,23/06/2022,Licensing,CRB Forms - Expenditure,Disclosure & Barring Service,22008433,228.00
Borough Council of Kings Lynn and West Norfolk,E07000146,23/06/2022,Personnel Services,Personnel DBS Checks,Disclosure & Barring Service,22008433,114.00
Borough Council of Kings Lynn and West Norfolk,E07000146,23/06/2022,Corporate Policy,Personnel DBS Checks,Disclosure & Barring Service,22008433,38.00
Borough Council of Kings Lynn and West Norfolk,E07000146,23/06/2022,Public Cleansing,Cleaning Material & Equip,Graffiti Removal Ltd,21015637,542.00
Borough Council of Kings Lynn and West Norfolk,E07000146,23/06/2022,Housing Options Programme,Homeless Prevention Fund,Sequence UK Ltd,22008468,"1,615.00"
Borough Council of Kings Lynn and West Norfolk,E07000146,23/06/2022,CCTV,Repairs & Maintenance,Amey LG Ltd,21015708,"1,037.62"
Borough Council of Kings Lynn and West Norfolk,E07000146,23/06/2022,CCTV,Repairs & Maintenance,Amey LG Ltd,21015620,471.56
Borough Council of Kings Lynn and West Norfolk,E07000146,23/06/2022,Subscriptions,Membership & Subscription,East of England LGA,21016128,"10,007.03"
Borough Council of Kings Lynn and West Norfolk,E07000146,23/06/2022,Climate Change,Project Works,Your Local Paper Ltd,21016107,550.00
Borough Council of Kings Lynn and West Norfolk,E07000146,23/06/2022,Head of Legal Services,Professional Fees,Anthony Collins Solicitors LLP,21016151,554.00
Borough Council of Kings Lynn and West Norfolk,E07000146,23/06/2022,Downham Market Play Equipment,Equipment/Materials,Action Play & Leisure Ltd,21016192,"24,676.73"
Borough Council of Kings Lynn and West Norfolk,E07000146,23/06/2022,Rough Sleeper Fund,Offender Incentive Funding (expenditure),RG Debra,22008436,500.00
Borough Council of Kings Lynn and West Norfolk,E07000146,27/06/2022,Community Projects CRS,Service Level Agreements,Creative Artists Agency UK Ltd,21016290,"10,000.00"
Borough Council of Kings Lynn and West Norfolk,E07000146,27/06/2022,Rough Sleeper Fund,Covid 19,BACO-Compak (Norfolk) Ltd,21016258,960.00
Borough Council of Kings Lynn and West Norfolk,E07000146,27/06/2022,ICT,Broadband Charge,British Telecommunications PLC,21016274,"1,122.18"
Borough Council of Kings Lynn and West Norfolk,E07000146,27/06/2022,ICT,Telephones,British Telecommunications PLC,21016276,504.23
Borough Council of Kings Lynn and West Norfolk,E07000146,27/06/2022,Apprenticeship Scheme,Apprentice Levy,Bedford Borough Council,21016259,"4,762.00"
Borough Council of Kings Lynn and West Norfolk,E07000146,27/06/2022,Mintlyn Crematorium,Repairs & Maintenance,Facultatieve Technologies Ltd,21015912,787.72
Borough Council of Kings Lynn and West Norfolk,E07000146,27/06/2022,Habitat Regulations,Small Projects,Norfolk Wildlife Trust,22008472,"8,100.00"
Borough Council of Kings Lynn and West Norfolk,E07000146,27/06/2022,LILY 5,Website,Idox Software Ltd,21015763,450.00
Borough Council of Kings Lynn and West Norfolk,E07000146,27/06/2022,ICT,Computer Hardware Maint,Bluefort Security Ltd,21015703,"1,859.00"
Borough Council of Kings Lynn and West Norfolk,E07000146,27/06/2022,ICT,Communications,Adept Technology Group Plc,21016271,"3,185.28"
Borough Council of Kings Lynn and West Norfolk,E07000146,27/06/2022,ICT,Recoverable Fees,Adept Technology Group Plc,21016271,186.17
Borough Council of Kings Lynn and West Norfolk,E07000146,27/06/2022,Corporate,Stationery & Office,Adept Technology Group Plc,21016271,"1,148.44"
Borough Council of Kings Lynn and West Norfolk,E07000146,27/06/2022,CCTV,Repairs & Maintenance,Adept Technology Group Plc,21016271,350.00
Borough Council of Kings Lynn and West Norfolk,E07000146,27/06/2022,ICT,Telephones,Adept Technology Group Plc,21016272,"6,043.17"
Borough Council of Kings Lynn and West Norfolk,E07000146,27/06/2022,Head of Legal Services,External Legal fees,Birketts LLP,21016041,"1,045.00"
Borough Council of Kings Lynn and West Norfolk,E07000146,27/06/2022,Financial Services,Agency Staff,Hays Specialist Recruitment,21016235,"4,256.35"
Borough Council of Kings Lynn and West Norfolk,E07000146,27/06/2022,Handyperson Scheme K Lynn,Purchased For Resale,Norse Eastern Ltd,21015882,423.08
Borough Council of Kings Lynn and West Norfolk,E07000146,27/06/2022,NNDC Carpark Operation,Security Services Charge,LOOMIS UK Ltd,21016226,367.28
Borough Council of Kings Lynn and West Norfolk,E07000146,27/06/2022,Leisure Management Costs,Security Services Charge,LOOMIS UK Ltd,21016226,613.43
Borough Council of Kings Lynn and West Norfolk,E07000146,27/06/2022,Parking Operations - Brgh,Security Services Charge,LOOMIS UK Ltd,21016226,871.63
Borough Council of Kings Lynn and West Norfolk,E07000146,27/06/2022,Printroom,Other Machine Lease,Konica Minolta Business Solutions,21016232,"3,313.43"
Borough Council of Kings Lynn and West Norfolk,E07000146,27/06/2022,Bus Shelters,Repairs & Maintenance,Westcotec Ltd,21015908,"2,460.00"
Borough Council of Kings Lynn and West Norfolk,E07000146,27/06/2022,Hunstanton Southend Road,Contractor Works,Lovell Partnerships Ltd,21016242,"86,556.38"
Borough Council of Kings Lynn and West Norfolk,E07000146,27/06/2022,Lynnsport 1,Contractor Works,Lovell Partnerships Ltd,21016243,"17,008.66"
Borough Council of Kings Lynn and West Norfolk,E07000146,27/06/2022,Parkway - Gaywood,Contractor Works,Lovell Partnerships Ltd,21016245,"50,117.70"
Borough Council of Kings Lynn and West Norfolk,E07000146,27/06/2022,NORA Phase 4,Contractor Works,Lovell Partnerships Ltd,21016246,"491,897.27"
Borough Council of Kings Lynn and West Norfolk,E07000146,27/06/2022,Handyperson Scheme K Lynn,Purchased For Resale,Manage at Home Ltd,21015767,960.00
Borough Council of Kings Lynn and West Norfolk,E07000146,27/06/2022,VAT,VAT Input - VAT Only Purchases,Marston Group Ltd,22008429,"1,857.56"
Borough Council of Kings Lynn and West Norfolk,E07000146,27/06/2022,Stories of Lynn,Advertising & Marketing,Kingfisher Media Ltd,21015834,"1,525.00"
Borough Council of Kings Lynn and West Norfolk,E07000146,27/06/2022,Public Realm/Town Deal,Equipment/Materials,Stuart Power Ltd,21016097,885.71
Borough Council of Kings Lynn and West Norfolk,E07000146,27/06/2022,CCTV,Vehicle - repairs & Maint,Ford & Slater DAF Kings Lynn,21016289,493.61
Borough Council of Kings Lynn and West Norfolk,E07000146,27/06/2022,Sports Grounds North,Rent,Le Strange Estate,21016229,"1,750.00"
Borough Council of Kings Lynn and West Norfolk,E07000146,27/06/2022,Resort Trading Operations,Rent,Le Strange Estate,21016231,"3,587.50"
Borough Council of Kings Lynn and West Norfolk,E07000146,27/06/2022,Resort Seafront,Repairs & Maintenance,Penty Contractors Ltd,21016240,500.00
Borough Council of Kings Lynn and West Norfolk,E07000146,27/06/2022,Financial Services,Postages,Royal Mail Group Ltd,22008476,103.20
Borough Council of Kings Lynn and West Norfolk,E07000146,27/06/2022,Benefit Administration,Postages,Royal Mail Group Ltd,22008476,820.57
Borough Council of Kings Lynn and West Norfolk,E07000146,27/06/2022,Cost of Collection - CTax,Postages,Royal Mail Group Ltd,22008476,972.65
Borough Council of Kings Lynn and West Norfolk,E07000146,27/06/2022,Kings Lynn Bid,Postages,Royal Mail Group Ltd,22008476,0.48
